Workbook

Sheet Sheet1
O1: 26.08
A2: Основное (организованное меню) и пищевая ценность приготовляемых блюд для обучающихся 12 лет и старше на осенне-зимний период
A3: Рацион: ШК 11-18 лет | B3: 12 лет и старше | E3: День: | F3: понедельник
D4: Неделя: | F4: 1 | I4: Возраст: | K4: 12 лет и старше
A5: № рец. | B5: Прием пищи, наименование блюда | D5: Масса порции | E5: Пищевые вещества (г) | H5: Энерге- тическая ценность (ккал) | I5: Витамины (мг) | M5: Минеральные вещества (мг)
E6: Б | F6: Ж | G6: У | I6: B1 | J6: C | K6: A | L6: E | M6: Ca | N6: P | O6: Mg | P6: Fe
A7: 1 | B7: 2 | D7: 3 | E7: 4 | F7: 5 | G7: 6 | H7: 7 | I7: 8 | J7: 9 | K7: 10 | L7: 11 | M7: 12 | N7: 13 | O7: 14 | P7: 15
A8: Завтрак
A9: 445.36 | B9: Котлеты мясные с томатным соусом | D9: 60/40 | E9: 9.97 | F9: 11.9 | G9: 8.87 | H9: 182.53 | I9: 0.08 | J9: 2.19 | K9: 63.17 | L9: 2.27 | M9: 29.87 | N9: 109.59 | O9: 16.87 | P9: 1.65
A10: 175.12 | B10: Каша гречневая вязкая с маслом | D10: 180/5 | E10: 5.71 | F10: 5.11 | G10: 25.76 | H10: 171.65 | I10: 0.19 | K10: 23.4 | L10: 0.41 | M10: 13.51 | N10: 135.6 | O10: 90.2 | P10: 3.05
A11: 283 | B11: Чай с сахаром | D11: 200 | G11: 9,98 | H11: 39,9 | M11: 0,3 | P11: 0,03
A12: 420.02 | B12: Хлеб пшеничный обогащенный витаминами для детского питания | D12: 40 | E12: 3.2 | F12: 0.4 | G12: 22 | H12: 104 | I12: 0.14 | L12: 0.6 | M12: 8 | N12: 26 | O12: 5.6 | P12: 1
A13: 1,2 | B13: Хлеб ржано-пшеничный для детского питания | D13: 30 | E13: 2.40 | F13: 0,3 | G13: 13,8 | H13: 66 | I13: 0.12 | L13: 0,51 | M13: 8,7 | N13: 39 | O13: 12,6 | P13: 0,9
A14: Итого за Завтрак суммарная масса порции: 555 | E14: =E9+E10+E11+E12+E13 -> 21.28 | F14: 17.71 | G14: 80.41 | H14: 564.08 | I14: 0.53 | J14: 2.19 | K14: 86.57 | L14: 3.79 | M14: 60.38 | N14: 310.19 | O14: 125.27 | P14: 6.63
A15: Обед
A16: 66.62 | B16: Суп-лапша (вермишель) | D16: 250 | E16: 2.77 | F16: 5.29 | G16: 15.61 | H16: 121.35 | I16: 0.05 | J16: 1.5 | K16: 200 | L16: 2.26 | M16: 7.64 | N16: 11.44 | O16: 5.31 | P16: 0.43
A17: 80.62 | B17: Рыба, тушенная с овощами(филе минтая) | D17: 50/50 | E17: 10.18 | F17: 7.78 | G17: 2.17 | H17: 119.99 | I17: 0.08 | J17: 30.04 | K17: 446.15 | L17: 3.46 | M17: 45.28 | N17: 164.48 | O17: 43.48 | P17: 0.73
A18: 211.06 | B18: Макаронные изделия отварные с маслом | D18: 180/10 | E18: 6.97 | F18: 4.44 | G18: 44.48 | H18: 245.99 | I18: 0.11 | K18: 22.5 | L18: 1 | M18: 18.32 | N18: 56.31 | O18: 10.39 | P18: 1.06
A19: 305,11 | B19: Витаминизированный кисель | D19: 200 | G19: 23.5 | H19: 95 | I19: 0,3 | J19: 20,1
A20: 420.02 | B20: Хлеб пшеничный обогащенный витаминами для детского питания | D20: 40 | E20: 3.2 | F20: 0.4 | G20: 22 | H20: 104 | I20: 0.14 | L20: 0.6 | M20: 8 | N20: 26 | O20: 5.6 | P20: 1
A21: 421.11 | B21: Хлеб ржано-пшеничный для детского питания | D21: 40 | E21: 3.2 | F21: 0.4 | G21: 18.4 | H21: 88 | I21: 0.16 | L21: 0.68 | M21: 11.6 | N21: 52 | O21: 16.8 | P21: 1.2
A22: Итого за Обед суммарная масса порции: 820 | E22: =E16+E17+E18+E19+E20+E21 -> 26.32 | F22: =F16+F17+F18+F19+F20+F21 -> 18.31 | G22: 126.16 | H22: 774.33 | I22: 0.84 | J22: 51.64 | K22: 668.65 | L22: 8.00 | M22: 90.84 | N22: 310.23 | O22: 81.58 | P22: 4.42
A23: Итого за день | E23: =E14+E22 -> 47.60 | F23: 36.02 | G23: 206.57 | H23: 1338.41 | I23: 1.37 | J23: 53.83 | K23: 755.22 | L23: 11.79 | M23: 151.22 | N23: 620.42 | O23: 206.85 | P23: 11.05
A25: Основное (организованное меню) и пищевая ценность приготовляемых блюд для обучающихся 12 лет и старше (лист 2)
A26: Рацион: ШК 11-18 лет | B26: 12 лет и старше | E26: День: | F26: вторник
D27: Неделя: | F27: 1 | I27: Возраст: | K27: 12 лет и старше
A28: № рец. | B28: Прием пищи, наименование блюда | D28: Масса порции | E28: Пищевые вещества (г) | H28: Энерге- тическая ценность (ккал) | I28: Витамины (мг) | M28: Минеральные вещества (мг)
E29: Б | F29: Ж | G29: У | I29: B1 | J29: C | K29: A | L29: E | M29: Ca | N29: P | O29: Mg | P29: Fe
A30: 1 | B30: 2 | D30: 3 | E30: 4 | F30: 5 | G30: 6 | H30: 7 | I30: 8 | J30: 9 | K30: 10 | L30: 11 | M30: 12 | N30: 13 | O30: 14 | P30: 15
A31: Завтрак
A32: 38\83 | B32: Пельмени отварные | D32: 200 | E32: 20 | F32: 20 | G32: 38.2 | H32: 399 | M32: 36 | N32: 85 | O32: 1
A33: 285 | B33: Чай с лимоном и сахаром | D33: 200 | E33: 0,06 | F33: 0,01 | G33: 10,19 | H33: 42,28 | J33: 2,8 | K33: 0,14 | L33: 0,01 | M33: 3,1 | N33: 1,54 | O33: 0,84 | P33: 0,07
A34: 86.12 | B34: Сок фруктовый | D34: 200 | E34: 1 | F34: 0.2 | G34: 20.2 | H34: 92 | I34: 0.02 | J34: 4 | K34: 6,25 | L34: 0.2 | M34: 14 | N34: 14 | O34: 8 | P34: 2.8
A35: 1,1 | B35: Хлеб пшеничный обогащенный витаминами для детского питания | D35: 30 | E35: 2,4 | F35: 0,3 | G35: 16,5 | H35: 78 | I35: 0,1 | L35: 0,45 | M35: 6 | N35: 19,5 | O35: 4,2 | P35: 0,75
A36: Итого за Завтрак суммарная масса порции: 630 | E36: =E32+E33+E34+E35 -> 23.46 | F36: =F32+F33+F34+F35 -> 20.51 | G36: 85.09 | H36: 611.28 | I36: 0.12 | J36: 6.8 | K36: 6.39 | L36: 0.66 | M36: 59.1 | N36: 120.04 | O36: 14.04 | P36: 3.62
A37: Обед
A38: 58 | B38: Суп картофельный | D38: 250 | E38: 2.4 | F38: 2.5 | G38: 18.1 | H38: 107 | I38: 0.1 | J38: 9.64 | K38: 3 | M38: 15.1 | N38: 78.69 | O38: 27.13 | P38: 1.01
A39: 446.10 | B39: Котлеты куриные с томатным соусом | D39: 50/50 | E39: 9.60 | F39: 12.78 | G39: 8.63 | H39: 179.93 | I39: 0.08 | J39: 1.7 | K39: 48.17 | L39: 2.20 | M39: 29.01 | N39: 108.12 | O39: 16.0 | P39: 1.62
A40: 611.02 | B40: Рис припущенный | D40: 180 | E40: 4.55 | F40: 7.88 | G40: 46.75 | H40: 250 | I40: 0.05 | K40: 45 | L40: 0.35 | M40: 14.06 | N40: 97.5 | O40: 31.9 | P40: 0.7
A41: 293 | B41: Компот из смеси сухофруктов | D41: 200 | E41: 0.44 | F41: 0.09 | G41: 32.92 | H41: 128.6 | M41: 0.6 | P41: 0.06
A42: 420.02 | B42: Хлеб пшеничный обогащенный витаминами для детского питания | D42: 40 | E42: 3.2 | F42: 0.4 | G42: 22 | H42: 104 | I42: 0.14 | L42: 0.6 | M42: 8 | N42: 26 | O42: 5.6 | P42: 1
A43: 1,2 | B43: Хлеб ржано-пшеничный для детского питания | D43: 30 | E43: 2,4 | F43: 0,3 | G43: 13,8 | H43: 66 | I43: 0,12 | L43: 0,51 | M43: 8,7 | N43: 39 | O43: 12,6 | P43: 0,9
A44: Итого за Обед суммарная масса порции: 800 | E44: =E38+E39+E40+E41+E42+E43 -> 22.59 | F44: =F38+F39+F40+F41+F42+F43 -> 23.95 | G44: 142.20 | H44: 835.53 | I44: 0.49 | J44: 11.34 | K44: 96.17 | L44: 3.66 | M44: 75.47 | N44: 349.31 | O44: 93.26 | P44: 5.29
A45: Итого за день | E45: =E36+E44 -> 46.05 | F45: 44.46 | G45: 227.29 | H45: 1446.81 | I45: 0.61 | J45: 18.14 | K45: 102.56 | L45: 4.32 | M45: 134.57 | N45: 469.35 | O45: 107.3 | P45: 8.91
A49: Основное (организованное меню) и пищевая ценность приготовляемых блюд для обучающихся 12 лет и старше (лист 3)
A50: Рацион: ШК 11-18 лет | B50: 12 лет и старше | E50: День: | F50: среда
D51: Неделя: | F51: 1 | I51: Возраст: | K51: 12 лет и старше
A52: № рец. | B52: Прием пищи, наименование блюда | D52: Масса порции | E52: Пищевые вещества (г) | H52: Энерге- тическая ценность (ккал) | I52: Витамины (мг) | M52: Минеральные вещества (мг)
E53: Б | F53: Ж | G53: У | I53: B1 | J53: C | K53: A | L53: E | M53: Ca | N53: P | O53: Mg | P53: Fe
A54: 1 | B54: 2 | D54: 3 | E54: 4 | F54: 5 | G54: 6 | H54: 7 | I54: 8 | J54: 9 | K54: 10 | L54: 11 | M54: 12 | N54: 13 | O54: 14 | P54: 15
A55: Завтрак
A56: 56.15 | B56: Борщ со сметаной, с мясом птицы(филе) | D56: 250/10/30 | E56: 10.02 | F56: 6.3 | G56: 10.31 | H56: 136.45 | I56: 0.07 | J56: 20.16 | K56: 223.7 | L56: 1.96 | M56: 47.04 | N56: 91.71 | O56: 43.12 | P56: 1.43
A57: 1.28 | B57: Бутерброд с маслом и сыром | D57: 30\10\10 | E57: 5.11 | F57: 10.21 | G57: 16.63 | H57: 179.1 | I57: 0.11 | J57: 0.07 | K57: 68.8 | L57: 0.59 | M57: 108.4 | N57: 82.5 | O57: 9.7 | P57: 0.84
A58: 305,11 | B58: Витаминизированный кисель | D58: 200 | G58: 23.5 | H58: 95 | I58: 0,3 | J58: 20,1
A59: 421.11 | B59: Хлеб ржано-пшеничный для детского питания | D59: 40 | E59: 3.2 | F59: 0.4 | G59: 18.4 | H59: 88 | I59: 0.16 | L59: 0.68 | M59: 11.6 | N59: 52 | O59: 16.8 | P59: 1.2
A60: Итого за Завтрак суммарная масса порции: 580 | E60: =E56+E57+E58+E59 -> 18.33 | F60: =F56+F57+F58+F59 -> 16.91 | G60: 68.84 | H60: 498.55 | I60: 0.64 | J60: 40.33 | K60: 292.5 | L60: 3.23 | M60: 167.04 | N60: 226.21 | O60: 69.62 | P60: 3.47
A61: Обед
A62: 21\1 | B62: Салат витаминнный | D62: 100 | E62: 1.6 | F62: 4.6 | G62: 11.1 | H62: 90 | I62: 0.03 | J62: 11.1 | K62: 2.49 | L62: 1.87 | M62: 38.53 | N62: 26.55 | O62: 19.68 | P62: 0.96
A63: 129.14 | B63: Суп картофельный с горохом и гренками | D63: 250/20 | E63: 7.9 | F63: 4.3 | G63: 31.5 | H63: 199 | I63: 0.36 | J63: 11,65 | K63: 261,9 | L63: 2.46 | M63: 43.17 | N63: 108.03 | O63: 40.36 | P63: 2.88
A64: 684/1 | B64: Жаркое по-домашнему из мяса птицы (филе) | D64: 200 | E64: 12.82 | F64: 15.66 | G64: 23.44 | H64: 253 | I64: 0.2 | J64: 29.44 | K64: 13.6 | L64: 3.3 | M64: 26.5 | N64: 186.64 | O64: 45.97 | P64: 2.84
A65: 283 | B65: Чай с сахаром | D65: 200 | G65: 9,98 | H65: 39,9 | M65: 0,3 | P65: 0,03
A66: 420.02 | B66: Хлеб пшеничный обогащенный витаминами для детского питания | D66: 40 | E66: 3.2 | F66: 0.4 | G66: 22 | H66: 104 | I66: 0.14 | L66: 0.6 | M66: 8 | N66: 26 | O66: 5.6 | P66: 1
A67: 421.11 | B67: Хлеб ржано-пшеничный для детского питания | D67: 40 | E67: 3.2 | F67: 0.4 | G67: 18.4 | H67: 88 | I67: 0.16 | L67: 0.68 | M67: 11.6 | N67: 52 | O67: 16.8 | P67: 1.2
A68: Итого за Обед суммарная масса порции: 850 | E68: =E62+E63+E64+E65+E66+E67 -> 28.72 | F68: =F62+F63+F64+F65+F66+F67 -> 25.36 | G68: 116.42 | H68: 773.90 | I68: 0.89 | J68: 52.19 | K68: 277.99 | L68: 8.91 | M68: 128.10 | N68: 399.22 | O68: 128.41 | P68: 8.91
E69: =E60+E68 -> 47.05 | F69: 42.27 | G69: 185.26 | H69: 1272.45 | I69: 1.53 | J69: 92.52 | K69: 570.49 | L69: 12.14 | M69: 295.14 | N69: 625.43 | O69: 198.03 | P69: 12.38
A72: Примерное меню и пищевая ценность приготовляемых блюд (лист 4)
A73: Основное (организованное меню) и пищевая ценность приготовляемых блюд для обучающихся 12 лет и старше (лист 4)
A74: Рацион: ШК 11-18 лет | B74: 12 лет и старше | E74: День: | F74: четверг
D75: Неделя: | F75: 1 | I75: Возраст: | K75: 12 лет и старше
A76: № рец. | B76: Прием пищи, наименование блюда | D76: Масса порции | E76: Пищевые вещества (г) | H76: Энерге- тическая ценность (ккал) | I76: Витамины (мг) | M76: Минеральные вещества (мг)
E77: Б | F77: Ж | G77: У | I77: B1 | J77: C | K77: A | L77: E | M77: Ca | N77: P | O77: Mg | P77: Fe
A78: 1 | B78: 2 | D78: 3 | E78: 4 | F78: 5 | G78: 6 | H78: 7 | I78: 8 | J78: 9 | K78: 10 | L78: 11 | M78: 12 | N78: 13 | O78: 14 | P78: 15
A79: Завтрак
A80: 1.26 | B80: Огурец соленый порционно | D80: 100 | E80: 0.95 | F80: 0.2 | G80: 4 | H80: 20 | I80: 0.02 | J80: 25 | L80: 0.2 | P80: 2.8
A81: 131.81 | B81: Плов из мяса птицы (филе) | D81: 200 | E81: 16,9 | F81: 18.5 | G81: 30.3 | H81: 296 | I81: 0,12 | J81: 4.4 | K81: 275,6 | L81: 3.58 | M81: 24.9 | N81: 203.05 | O81: 46.98 | P81: 1.67
A82: 302 | B82: Напиток из плодов шиповника | D82: 200 | E82: 0.6 | F82: 0.2 | G82: 27 | H82: 111 | I82: 0.01 | J82: 80 | M82: 11.1 | O82: 2.96 | P82: 0.57 | Q82: 282.11 | R82: Напиток витаминнный | T82: 200 | W82: 9.7 | X82: 39 | Y82: 0.15 | Z82: 10 | AG82: 282.11 | AH82: Напиток витаминнный | AJ82: 200 | AM82: 9.7 | AN82: 39 | AO82: 0.15 | AP82: 10 | AW82: 282.11 | AX82: Напиток витаминнный | AZ82: 200 | BC82: 9.7 | BD82: 39 | BE82: 0.15 | BF82: 10 | BM82: 282.11 | BN82: Напиток витаминнный | BP82: 200 | BS82: 9.7 | BT82: 39 | BU82: 0.15 | BV82: 10 | CC82: 282.11 | CD82: Напиток витаминнный | CF82: 200 | CI82: 9.7 | CJ82: 39 | CK82: 0.15 | CL82: 10 | CS82: 282.11 | CT82: Напиток витаминнный | CV82: 200 | CY82: 9.7 | CZ82: 39 | DA82: 0.15 | DB82: 10 | DI82: 282.11 | DJ82: Напиток витаминнный | DL82: 200 | DO82: 9.7 | DP82: 39 | DQ82: 0.15 | DR82: 10 | DY82: 282.11 | DZ82: Напиток витаминнный | EB82: 200 | EE82: 9.7 | EF82: 39 | EG82: 0.15 | EH82: 10 | EO82: 282.11 | EP82: Напиток витаминнный | ER82: 200 | EU82: 9.7 | EV82: 39 | EW82: 0.15 | EX82: 10 | FE82: 282.11 | FF82: Напиток витаминнный | FH82: 200 | FK82: 9.7 | FL82: 39 | FM82: 0.15 | FN82: 10 | FU82: 282.11 | FV82: Напиток витаминнный | FX82: 200 | GA82: 9.7 | GB82: 39 | GC82: 0.15 | GD82: 10 | GK82: 282.11 | GL82: Напиток витаминнный | GN82: 200 | GQ82: 9.7 | GR82: 39 | GS82: 0.15 | GT82: 10 | HA82: 282.11 | HB82: Напиток витаминнный | HD82: 200 | HG82: 9.7 | HH82: 39 | HI82: 0.15 | HJ82: 10 | HQ82: 282.11 | HR82: Напиток витаминнный | HT82: 200 | HW82: 9.7 | HX82: 39 | HY82: 0.15 | HZ82: 10 | IG82: 282.11 | IH82: Напиток витаминнный | IJ82: 200 | IM82: 9.7 | IN82: 39 | IO82: 0.15 | IP82: 10 | IW82: 282.11 | IX82: Напиток витаминнный | IZ82: 200 | JC82: 9.7 | JD82: 39 | JE82: 0.15 | JF82: 10 | JM82: 282.11 | JN82: Напиток витаминнный | JP82: 200 | JS82: 9.7 | JT82: 39 | JU82: 0.15 | JV82: 10 | KC82: 282.11 | KD82: Напиток витаминнный | KF82: 200 | KI82: 9.7 | KJ82: 39 | KK82: 0.15 | KL82: 10 | KS82: 282.11 | KT82: Напиток витаминнный | KV82: 200 | KY82: 9.7 | KZ82: 39 | LA82: 0.15 | LB82: 10 | LI82: 282.11 | LJ82: Напиток витаминнный | LL82: 200 | LO82: 9.7 | LP82: 39 | LQ82: 0.15 | LR82: 10 | LY82: 282.11 | LZ82: Напиток витаминнный | MB82: 200 | ME82: 9.7 | MF82: 39 | MG82: 0.15 | MH82: 10 | MO82: 282.11 | MP82: Напиток витаминнный | MR82: 200 | MU82: 9.7 | MV82: 39 | MW82: 0.15 | MX82: 10 | NE82: 282.11 | NF82: Напиток витаминнный | NH82: 200 | NK82: 9.7 | NL82: 39 | NM82: 0.15 | NN82: 10 | NU82: 282.11 | NV82: Напиток витаминнный | NX82: 200 | OA82: 9.7 | OB82: 39 | OC82: 0.15 | OD82: 10 | OK82: 282.11 | OL82: Напиток витаминнный | ON82: 200 | OQ82: 9.7 | OR82: 39 | OS82: 0.15 | OT82: 10 | PA82: 282.11 | PB82: Напиток витаминнный | PD82: 200 | PG82: 9.7 | PH82: 39 | PI82: 0.15 | PJ82: 10 | PQ82: 282.11 | PR82: Напиток витаминнный | PT82: 200 | PW82: 9.7 | PX82: 39 | PY82: 0.15 | PZ82: 10 | QG82: 282.11 | QH82: Напиток витаминнный | QJ82: 200 | QM82: 9.7 | QN82: 39 | QO82: 0.15 | QP82: 10 | QW82: 282.11 | QX82: Напиток витаминнный | QZ82: 200 | RC82: 9.7 | RD82: 39 | RE82: 0.15 | RF82: 10 | RM82: 282.11 | RN82: Напиток витаминнный | RP82: 200 | RS82: 9.7 | RT82: 39 | RU82: 0.15 | RV82: 10 | SC82: 282.11 | SD82: Напиток витаминнный | SF82: 200 | SI82: 9.7 | SJ82: 39 | SK82: 0.15 | SL82: 10 | SS82: 282.11 | ST82: Напиток витаминнный | SV82: 200 | SY82: 9.7 | SZ82: 39 | TA82: 0.15 | TB82: 10 | TI82: 282.11 | TJ82: Напиток витаминнный | TL82: 200 | TO82: 9.7 | TP82: 39 | TQ82: 0.15 | TR82: 10 | TY82: 282.11 | TZ82: Напиток витаминнный | UB82: 200 | UE82: 9.7 | UF82: 39 | UG82: 0.15 | UH82: 10 | UO82: 282.11 | UP82: Напиток витаминнный | UR82: 200 | UU82: 9.7 | UV82: 39 | UW82: 0.15 | UX82: 10 | VE82: 282.11 | VF82: Напиток витаминнный | VH82: 200 | VK82: 9.7 | VL82: 39 | VM82: 0.15 | VN82: 10 | VU82: 282.11 | VV82: Напиток витаминнный | VX82: 200 | WA82: 9.7 | WB82: 39 | WC82: 0.15 | WD82: 10 | WK82: 282.11 | WL82: Напиток витаминнный | WN82: 200 | WQ82: 9.7 | WR82: 39 | WS82: 0.15 | WT82: 10 | XA82: 282.11 | XB82: Напиток витаминнный | XD82: 200 | XG82: 9.7 | XH82: 39 | XI82: 0.15 | XJ82: 10 | XQ82: 282.11 | XR82: Напиток витаминнный | XT82: 200 | XW82: 9.7 | XX82: 39 | XY82: 0.15 | XZ82: 10 | YG82: 282.11 | YH82: Напиток витаминнный | YJ82: 200 | YM82: 9.7 | YN82: 39 | YO82: 0.15 | YP82: 10 | YW82: 282.11 | YX82: Напиток витаминнный | YZ82: 200 | ZC82: 9.7 | ZD82: 39 | ZE82: 0.15 | ZF82: 10 | ZM82: 282.11 | ZN82: Напиток витаминнный | ZP82: 200 | ZS82: 9.7 | ZT82: 39 | ZU82: 0.15 | ZV82: 10 | AAC82: 282.11 | AAD82: Напиток витаминнный | AAF82: 200 | AAI82: 9.7 | AAJ82: 39 | AAK82: 0.15 | AAL82: 10 | AAS82: 282.11 | AAT82: Напиток витаминнный | AAV82: 200 | AAY82: 9.7 | AAZ82: 39 | ABA82: 0.15 | ABB82: 10 | ABI82: 282.11 | ABJ82: Напиток витаминнный | ABL82: 200 | ABO82: 9.7 | ABP82: 39 | ABQ82: 0.15 | ABR82: 10 | ABY82: 282.11 | ABZ82: Напиток витаминнный | ACB82: 200 | ACE82: 9.7 | ACF82: 39 | ACG82: 0.15 | ACH82: 10 | ACO82: 282.11 | ACP82: Напиток витаминнный | ACR82: 200 | ACU82: 9.7 | ACV82: 39 | ACW82: 0.15 | ACX82: 10 | ADE82: 282.11 | ADF82: Напиток витаминнный | ADH82: 200 | ADK82: 9.7 | ADL82: 39 | ADM82: 0.15 | ADN82: 10 | ADU82: 282.11 | ADV82: Напиток витаминнный | ADX82: 200 | AEA82: 9.7 | AEB82: 39 | AEC82: 0.15 | AED82: 10 | AEK82: 282.11 | AEL82: Напиток витаминнный | AEN82: 200 | AEQ82: 9.7 | AER82: 39 | AES82: 0.15 | AET82: 10 | AFA82: 282.11 | AFB82: Напиток витаминнный | AFD82: 200 | AFG82: 9.7 | AFH82: 39 | AFI82: 0.15 | AFJ82: 10 | AFQ82: 282.11 | AFR82: Напиток витаминнный | AFT82: 200 | AFW82: 9.7 | AFX82: 39 | AFY82: 0.15 | AFZ82: 10 | AGG82: 282.11 | AGH82: Напиток витаминнный | AGJ82: 200 | AGM82: 9.7 | AGN82: 39 | AGO82: 0.15 | AGP82: 10 | AGW82: 282.11 | AGX82: Напиток витаминнный | AGZ82: 200 | AHC82: 9.7 | AHD82: 39 | AHE82: 0.15 | AHF82: 10 | AHM82: 282.11 | AHN82: Напиток витаминнный | AHP82: 200 | AHS82: 9.7 | AHT82: 39 | AHU82: 0.15 | AHV82: 10 | AIC82: 282.11 | AID82: Напиток витаминнный | AIF82: 200 | AII82: 9.7 | AIJ82: 39 | AIK82: 0.15 | AIL82: 10 | AIS82: 282.11 | AIT82: Напиток витаминнный | AIV82: 200 | AIY82: 9.7 | AIZ82: 39 | AJA82: 0.15 | AJB82: 10 | AJI82: 282.11 | AJJ82: Напиток витаминнный | AJL82: 200 | AJO82: 9.7 | AJP82: 39 | AJQ82: 0.15 | AJR82: 10 | AJY82: 282.11 | AJZ82: Напиток витаминнный | AKB82: 200 | AKE82: 9.7 | AKF82: 39 | AKG82: 0.15 | AKH82: 10 | AKO82: 282.11 | AKP82: Напиток витаминнный | AKR82: 200 | AKU82: 9.7 | AKV82: 39 | AKW82: 0.15 | AKX82: 10 | ALE82: 282.11 | ALF82: Напиток витаминнный | ALH82: 200 | ALK82: 9.7 | ALL82: 39 | ALM82: 0.15 | ALN82: 10 | ALU82: 282.11 | ALV82: Напиток витаминнный | ALX82: 200 | AMA82: 9.7 | AMB82: 39 | AMC82: 0.15 | AMD82: 10 | AMK82: 282.11 | AML82: Напиток витаминнный | AMN82: 200 | AMQ82: 9.7 | AMR82: 39 | AMS82: 0.15 | AMT82: 10 | ANA82: 282.11 | ANB82: Напиток витаминнный | AND82: 200 | ANG82: 9.7 | ANH82: 39 | ANI82: 0.15 | ANJ82: 10 | ANQ82: 282.11 | ANR82: Напиток витаминнный | ANT82: 200 | ANW82: 9.7 | ANX82: 39 | ANY82: 0.15 | ANZ82: 10 | AOG82: 282.11 | AOH82: Напиток витаминнный | AOJ82: 200 | AOM82: 9.7 | AON82: 39 | AOO82: 0.15 | AOP82: 10 | AOW82: 282.11 | AOX82: Напиток витаминнный | AOZ82: 200 | APC82: 9.7 | APD82: 39 | APE82: 0.15 | APF82: 10 | APM82: 282.11 | APN82: Напиток витаминнный | APP82: 200 | APS82: 9.7 | APT82: 39 | APU82: 0.15 | APV82: 10 | AQC82: 282.11 | AQD82: Напиток витаминнный | AQF82: 200 | AQI82: 9.7 | AQJ82: 39 | AQK82: 0.15 | AQL82: 10 | AQS82: 282.11 | AQT82: Напиток витаминнный | AQV82: 200 | AQY82: 9.7 | AQZ82: 39 | ARA82: 0.15 | ARB82: 10 | ARI82: 282.11 | ARJ82: Напиток витаминнный | ARL82: 200 | ARO82: 9.7 | ARP82: 39 | ARQ82: 0.15 | ARR82: 10 | ARY82: 282.11 | ARZ82: Напиток витаминнный | ASB82: 200 | ASE82: 9.7 | ASF82: 39 | ASG82: 0.15 | ASH82: 10 | ASO82: 282.11 | ASP82: Напиток витаминнный | ASR82: 200 | ASU82: 9.7 | ASV82: 39 | ASW82: 0.15 | ASX82: 10 | ATE82: 282.11 | ATF82: Напиток витаминнный | ATH82: 200 | ATK82: 9.7 | ATL82: 39 | ATM82: 0.15 | ATN82: 10 | ATU82: 282.11 | ATV82: Напиток витаминнный | ATX82: 200 | AUA82: 9.7 | AUB82: 39 | AUC82: 0.15 | AUD82: 10 | AUK82: 282.11 | AUL82: Напиток витаминнный | AUN82: 200 | AUQ82: 9.7 | AUR82: 39 | AUS82: 0.15 | AUT82: 10 | AVA82: 282.11 | AVB82: Напиток витаминнный | AVD82: 200 | AVG82: 9.7 | AVH82: 39 | AVI82: 0.15 | AVJ82: 10 | AVQ82: 282.11 | AVR82: Напиток витаминнный | AVT82: 200 | AVW82: 9.7 | AVX82: 39 | AVY82: 0.15 | AVZ82: 10 | AWG82: 282.11 | AWH82: Напиток витаминнный | AWJ82: 200 | AWM82: 9.7 | AWN82: 39 | AWO82: 0.15 | AWP82: 10 | AWW82: 282.11 | AWX82: Напиток витаминнный | AWZ82: 200 | AXC82: 9.7 | AXD82: 39 | AXE82: 0.15 | AXF82: 10 | AXM82: 282.11 | AXN82: Напиток витаминнный | AXP82: 200 | AXS82: 9.7 | AXT82: 39 | AXU82: 0.15 | AXV82: 10 | AYC82: 282.11 | AYD82: Напиток витаминнный | AYF82: 200 | AYI82: 9.7 | AYJ82: 39 | AYK82: 0.15 | AYL82: 10 | AYS82: 282.11 | AYT82: Напиток витаминнный | AYV82: 200 | AYY82: 9.7 | AYZ82: 39 | AZA82: 0.15 | AZB82: 10 | AZI82: 282.11 | AZJ82: Напиток витаминнный | AZL82: 200 | AZO82: 9.7 | AZP82: 39 | AZQ82: 0.15 | AZR82: 10 | AZY82: 282.11 | AZZ82: Напиток витаминнный | BAB82: 200 | BAE82: 9.7 | BAF82: 39 | BAG82: 0.15 | BAH82: 10 | BAO82: 282.11 | BAP82: Напиток витаминнный | BAR82: 200 | BAU82: 9.7 | BAV82: 39 | BAW82: 0.15 | BAX82: 10 | BBE82: 282.11 | BBF82: Напиток витаминнный | BBH82: 200 | BBK82: 9.7 | BBL82: 39 | BBM82: 0.15 | BBN82: 10 | BBU82: 282.11 | BBV82: Напиток витаминнный | BBX82: 200 | BCA82: 9.7 | BCB82: 39 | BCC82: 0.15 | BCD82: 10 | BCK82: 282.11 | BCL82: Напиток витаминнный | BCN82: 200 | BCQ82: 9.7 | BCR82: 39 | BCS82: 0.15 | BCT82: 10 | BDA82: 282.11 | BDB82: Напиток витаминнный | BDD82: 200 | BDG82: 9.7 | BDH82: 39 | BDI82: 0.15 | BDJ82: 10 | BDQ82: 282.11 | BDR82: Напиток витаминнный | BDT82: 200 | BDW82: 9.7 | BDX82: 39 | BDY82: 0.15 | BDZ82: 10 | BEG82: 282.11 | BEH82: Напиток витаминнный | BEJ82: 200 | BEM82: 9.7 | BEN82: 39 | BEO82: 0.15 | BEP82: 10 | BEW82: 282.11 | BEX82: Напиток витаминнный | BEZ82: 200 | BFC82: 9.7 | BFD82: 39 | BFE82: 0.15 | BFF82: 10 | BFM82: 282.11 | BFN82: Напиток витаминнный | BFP82: 200 | BFS82: 9.7 | BFT82: 39 | BFU82: 0.15 | BFV82: 10 | BGC82: 282.11 | BGD82: Напиток витаминнный | BGF82: 200 | BGI82: 9.7 | BGJ82: 39 | BGK82: 0.15 | BGL82: 10 | BGS82: 282.11 | BGT82: Напиток витаминнный | BGV82: 200 | BGY82: 9.7 | BGZ82: 39 | BHA82: 0.15 | BHB82: 10 | BHI82: 282.11 | BHJ82: Напиток витаминнный | BHL82: 200 | BHO82: 9.7 | BHP82: 39 | BHQ82: 0.15 | BHR82: 10 | BHY82: 282.11 | BHZ82: Напиток витаминнный | BIB82: 200 | BIE82: 9.7 | BIF82: 39 | BIG82: 0.15 | BIH82: 10 | BIO82: 282.11 | BIP82: Напиток витаминнный | BIR82: 200 | BIU82: 9.7 | BIV82: 39 | BIW82: 0.15 | BIX82: 10 | BJE82: 282.11 | BJF82: Напиток витаминнный | BJH82: 200 | BJK82: 9.7 | BJL82: 39 | BJM82: 0.15 | BJN82: 10 | BJU82: 282.11 | BJV82: Напиток витаминнный | BJX82: 200 | BKA82: 9.7 | BKB82: 39 | BKC82: 0.15 | BKD82: 10 | BKK82: 282.11 | BKL82: Напиток витаминнный | BKN82: 200 | BKQ82: 9.7 | BKR82: 39 | BKS82: 0.15 | BKT82: 10 | BLA82: 282.11 | BLB82: Напиток витаминнный | BLD82: 200 | BLG82: 9.7 | BLH82: 39 | BLI82: 0.15 | BLJ82: 10 | BLQ82: 282.11 | BLR82: Напиток витаминнный | BLT82: 200 | BLW82: 9.7 | BLX82: 39 | BLY82: 0.15 | BLZ82: 10 | BMG82: 282.11 | BMH82: Напиток витаминнный | BMJ82: 200 | BMM82: 9.7 | BMN82: 39 | BMO82: 0.15 | BMP82: 10 | BMW82: 282.11 | BMX82: Напиток витаминнный | BMZ82: 200 | BNC82: 9.7 | BND82: 39 | BNE82: 0.15 | BNF82: 10 | BNM82: 282.11 | BNN82: Напиток витаминнный | BNP82: 200 | BNS82: 9.7 | BNT82: 39 | BNU82: 0.15 | BNV82: 10 | BOC82: 282.11 | BOD82: Напиток витаминнный | BOF82: 200 | BOI82: 9.7 | BOJ82: 39 | BOK82: 0.15 | BOL82: 10 | BOS82: 282.11 | BOT82: Напиток витаминнный | BOV82: 200 | BOY82: 9.7 | BOZ82: 39 | BPA82: 0.15 | BPB82: 10 | BPI82: 282.11 | BPJ82: Напиток витаминнный | BPL82: 200 | BPO82: 9.7 | BPP82: 39 | BPQ82: 0.15 | BPR82: 10 | BPY82: 282.11 | BPZ82: Напиток витаминнный | BQB82: 200 | BQE82: 9.7 | BQF82: 39 | BQG82: 0.15 | BQH82: 10 | BQO82: 282.11 | BQP82: Напиток витаминнный | BQR82: 200 | BQU82: 9.7 | BQV82: 39 | BQW82: 0.15 | BQX82: 10 | BRE82: 282.11 | BRF82: Напиток витаминнный | BRH82: 200 | BRK82: 9.7 | BRL82: 39 | BRM82: 0.15 | BRN82: 10 | BRU82: 282.11 | BRV82: Напиток витаминнный | BRX82: 200 | BSA82: 9.7 | BSB82: 39 | BSC82: 0.15 | BSD82: 10 | BSK82: 282.11 | BSL82: Напиток витаминнный | BSN82: 200 | BSQ82: 9.7 | BSR82: 39 | BSS82: 0.15 | BST82: 10 | BTA82: 282.11 | BTB82: Напиток витаминнный | BTD82: 200 | BTG82: 9.7 | BTH82: 39 | BTI82: 0.15 | BTJ82: 10 | BTQ82: 282.11 | BTR82: Напиток витаминнный | BTT82: 200 | BTW82: 9.7 | BTX82: 39 | BTY82: 0.15 | BTZ82: 10 | BUG82: 282.11 | BUH82: Напиток витаминнный | BUJ82: 200 | BUM82: 9.7 | BUN82: 39 | BUO82: 0.15 | BUP82: 10 | BUW82: 282.11 | BUX82: Напиток витаминнный | BUZ82: 200 | BVC82: 9.7 | BVD82: 39 | BVE82: 0.15 | BVF82: 10 | BVM82: 282.11 | BVN82: Напиток витаминнный | BVP82: 200 | BVS82: 9.7 | BVT82: 39 | BVU82: 0.15 | BVV82: 10 | BWC82: 282.11 | BWD82: Напиток витаминнный | BWF82: 200 | BWI82: 9.7 | BWJ82: 39 | BWK82: 0.15 | BWL82: 10 | BWS82: 282.11 | BWT82: Напиток витаминнный | BWV82: 200 | BWY82: 9.7 | BWZ82: 39 | BXA82: 0.15 | BXB82: 10 | BXI82: 282.11 | BXJ82: Напиток витаминнный | BXL82: 200 | BXO82: 9.7 | BXP82: 39 | BXQ82: 0.15 | BXR82: 10 | BXY82: 282.11 | BXZ82: Напиток витаминнный | BYB82: 200 | BYE82: 9.7 | BYF82: 39 | BYG82: 0.15 | BYH82: 10 | BYO82: 282.11 | BYP82: Напиток витаминнный | BYR82: 200 | BYU82: 9.7 | BYV82: 39 | BYW82: 0.15 | BYX82: 10 | BZE82: 282.11 | BZF82: Напиток витаминнный | BZH82: 200 | BZK82: 9.7 | BZL82: 39 | BZM82: 0.15 | BZN82: 10 | BZU82: 282.11 | BZV82: Напиток витаминнный | BZX82: 200 | CAA82: 9.7 | CAB82: 39 | CAC82: 0.15 | CAD82: 10 | CAK82: 282.11 | CAL82: Напиток витаминнный | CAN82: 200 | CAQ82: 9.7 | CAR82: 39 | CAS82: 0.15 | CAT82: 10 | CBA82: 282.11 | CBB82: Напиток витаминнный | CBD82: 200 | CBG82: 9.7 | CBH82: 39 | CBI82: 0.15 | CBJ82: 10 | CBQ82: 282.11 | CBR82: Напиток витаминнный | CBT82: 200 | CBW82: 9.7 | CBX82: 39 | CBY82: 0.15 | CBZ82: 10 | CCG82: 282.11 | CCH82: Напиток витаминнный | CCJ82: 200 | CCM82: 9.7 | CCN82: 39 | CCO82: 0.15 | CCP82: 10 | CCW82: 282.11 | CCX82: Напиток витаминнный | CCZ82: 200 | CDC82: 9.7 | CDD82: 39 | CDE82: 0.15 | CDF82: 10 | CDM82: 282.11 | CDN82: Напиток витаминнный | CDP82: 200 | CDS82: 9.7 | CDT82: 39 | CDU82: 0.15 | CDV82: 10 | CEC82: 282.11 | CED82: Напиток витаминнный | CEF82: 200 | CEI82: 9.7 | CEJ82: 39 | CEK82: 0.15 | CEL82: 10 | CES82: 282.11 | CET82: Напиток витаминнный | CEV82: 200 | CEY82: 9.7 | CEZ82: 39 | CFA82: 0.15 | CFB82: 10 | CFI82: 282.11 | CFJ82: Напиток витаминнный | CFL82: 200 | CFO82: 9.7 | CFP82: 39 | CFQ82: 0.15 | CFR82: 10 | CFY82: 282.11 | CFZ82: Напиток витаминнный | CGB82: 200 | CGE82: 9.7 | CGF82: 39 | CGG82: 0.15 | CGH82: 10 | CGO82: 282.11 | CGP82: Напиток витаминнный | CGR82: 200 | CGU82: 9.7 | CGV82: 39 | CGW82: 0.15 | CGX82: 10 | CHE82: 282.11 | CHF82: Напиток витаминнный | CHH82: 200 | CHK82: 9.7 | CHL82: 39 | CHM82: 0.15 | CHN82: 10 | CHU82: 282.11 | CHV82: Напиток витаминнный | CHX82: 200 | CIA82: 9.7 | CIB82: 39 | CIC82: 0.15 | CID82: 10 | CIK82: 282.11 | CIL82: Напиток витаминнный | CIN82: 200 | CIQ82: 9.7 | CIR82: 39 | CIS82: 0.15 | CIT82: 10 | CJA82: 282.11 | CJB82: Напиток витаминнный | CJD82: 200 | CJG82: 9.7 | CJH82: 39 | CJI82: 0.15 | CJJ82: 10 | CJQ82: 282.11 | CJR82: Напиток витаминнный | CJT82: 200 | CJW82: 9.7 | CJX82: 39 | CJY82: 0.15 | CJZ82: 10 | CKG82: 282.11 | CKH82: Напиток витаминнный | CKJ82: 200 | CKM82: 9.7 | CKN82: 39 | CKO82: 0.15 | CKP82: 10 | CKW82: 282.11 | CKX82: Напиток витаминнный | CKZ82: 200 | CLC82: 9.7 | CLD82: 39 | CLE82: 0.15 | CLF82: 10 | CLM82: 282.11 | CLN82: Напиток витаминнный | CLP82: 200 | CLS82: 9.7 | CLT82: 39 | CLU82: 0.15 | CLV82: 10 | CMC82: 282.11 | CMD82: Напиток витаминнный | CMF82: 200 | CMI82: 9.7 | CMJ82: 39 | CMK82: 0.15 | CML82: 10 | CMS82: 282.11 | CMT82: Напиток витаминнный | CMV82: 200 | CMY82: 9.7 | CMZ82: 39 | CNA82: 0.15 | CNB82: 10 | CNI82: 282.11 | CNJ82: Напиток витаминнный | CNL82: 200 | CNO82: 9.7 | CNP82: 39 | CNQ82: 0.15 | CNR82: 10 | CNY82: 282.11 | CNZ82: Напиток витаминнный | COB82: 200 | COE82: 9.7 | COF82: 39 | COG82: 0.15 | COH82: 10 | COO82: 282.11 | COP82: Напиток витаминнный | COR82: 200 | COU82: 9.7 | COV82: 39 | COW82: 0.15 | COX82: 10 | CPE82: 282.11 | CPF82: Напиток витаминнный | CPH82: 200 | CPK82: 9.7 | CPL82: 39 | CPM82: 0.15 | CPN82: 10 | CPU82: 282.11 | CPV82: Напиток витаминнный | CPX82: 200 | CQA82: 9.7 | CQB82: 39 | CQC82: 0.15 | CQD82: 10 | CQK82: 282.11 | CQL82: Напиток витаминнный | CQN82: 200 | CQQ82: 9.7 | CQR82: 39 | CQS82: 0.15 | CQT82: 10 | CRA82: 282.11 | CRB82: Напиток витаминнный | CRD82: 200 | CRG82: 9.7 | CRH82: 39 | CRI82: 0.15 | CRJ82: 10 | CRQ82: 282.11 | CRR82: Напиток витаминнный | CRT82: 200 | CRW82: 9.7 | CRX82: 39 | CRY82: 0.15 | CRZ82: 10 | CSG82: 282.11 | CSH82: Напиток витаминнный | CSJ82: 200 | CSM82: 9.7 | CSN82: 39 | CSO82: 0.15 | CSP82: 10 | CSW82: 282.11 | CSX82: Напиток витаминнный | CSZ82: 200 | CTC82: 9.7 | CTD82: 39 | CTE82: 0.15 | CTF82: 10 | CTM82: 282.11 | CTN82: Напиток витаминнный | CTP82: 200 | CTS82: 9.7 | CTT82: 39 | CTU82: 0.15 | CTV82: 10 | CUC82: 282.11 | CUD82: Напиток витаминнный | CUF82: 200 | CUI82: 9.7 | CUJ82: 39 | CUK82: 0.15 | CUL82: 10 | CUS82: 282.11 | CUT82: Напиток витаминнный | CUV82: 200 | CUY82: 9.7 | CUZ82: 39 | CVA82: 0.15 | CVB82: 10 | CVI82: 282.11 | CVJ82: Напиток витаминнный | CVL82: 200 | CVO82: 9.7 | CVP82: 39 | CVQ82: 0.15 | CVR82: 10 | CVY82: 282.11 | CVZ82: Напиток витаминнный | CWB82: 200 | CWE82: 9.7 | CWF82: 39 | CWG82: 0.15 | CWH82: 10 | CWO82: 282.11 | CWP82: Напиток витаминнный | CWR82: 200 | CWU82: 9.7 | CWV82: 39 | CWW82: 0.15 | CWX82: 10 | CXE82: 282.11 | CXF82: Напиток витаминнный | CXH82: 200 | CXK82: 9.7 | CXL82: 39 | CXM82: 0.15 | CXN82: 10 | CXU82: 282.11 | CXV82: Напиток витаминнный | CXX82: 200 | CYA82: 9.7 | CYB82: 39 | CYC82: 0.15 | CYD82: 10 | CYK82: 282.11 | CYL82: Напиток витаминнный | CYN82: 200 | CYQ82: 9.7 | CYR82: 39 | CYS82: 0.15 | CYT82: 10 | CZA82: 282.11 | CZB82: Напиток витаминнный | CZD82: 200 | CZG82: 9.7 | CZH82: 39 | CZI82: 0.15 | CZJ82: 10 | CZQ82: 282.11 | CZR82: Напиток витаминнный | CZT82: 200 | CZW82: 9.7 | CZX82: 39 | CZY82: 0.15 | CZZ82: 10 | DAG82: 282.11 | DAH82: Напиток витаминнный | DAJ82: 200 | DAM82: 9.7 | DAN82: 39 | DAO82: 0.15 | DAP82: 10 | DAW82: 282.11 | DAX82: Напиток витаминнный | DAZ82: 200 | DBC82: 9.7 | DBD82: 39 | DBE82: 0.15 | DBF82: 10 | DBM82: 282.11 | DBN82: Напиток витаминнный | DBP82: 200 | DBS82: 9.7 | DBT82: 39 | DBU82: 0.15 | DBV82: 10 | DCC82: 282.11 | DCD82: Напиток витаминнный | DCF82: 200 | DCI82: 9.7 | DCJ82: 39 | DCK82: 0.15 | DCL82: 10 | DCS82: 282.11 | DCT82: Напиток витаминнный | DCV82: 200 | DCY82: 9.7 | DCZ82: 39 | DDA82: 0.15 | DDB82: 10 | DDI82: 282.11 | DDJ82: Напиток витаминнный | DDL82: 200 | DDO82: 9.7 | DDP82: 39 | DDQ82: 0.15 | DDR82: 10 | DDY82: 282.11 | DDZ82: Напиток витаминнный | DEB82: 200 | DEE82: 9.7 | DEF82: 39 | DEG82: 0.15 | DEH82: 10 | DEO82: 282.11 | DEP82: Напиток витаминнный | DER82: 200 | DEU82: 9.7 | DEV82: 39 | DEW82: 0.15 | DEX82: 10 | DFE82: 282.11 | DFF82: Напиток витаминнный | DFH82: 200 | DFK82: 9.7 | DFL82: 39 | DFM82: 0.15 | DFN82: 10 | DFU82: 282.11 | DFV82: Напиток витаминнный | DFX82: 200 | DGA82: 9.7 | DGB82: 39 | DGC82: 0.15 | DGD82: 10 | DGK82: 282.11 | DGL82: Напиток витаминнный | DGN82: 200 | DGQ82: 9.7 | DGR82: 39 | DGS82: 0.15 | DGT82: 10 | DHA82: 282.11 | DHB82: Напиток витаминнный | DHD82: 200 | DHG82: 9.7 | DHH82: 39 | DHI82: 0.15 | DHJ82: 10 | DHQ82: 282.11 | DHR82: Напиток витаминнный | DHT82: 200 | DHW82: 9.7 | DHX82: 39 | DHY82: 0.15 | DHZ82: 10 | DIG82: 282.11 | DIH82: Напиток витаминнный | DIJ82: 200 | DIM82: 9.7 | DIN82: 39 | DIO82: 0.15 | DIP82: 10 | DIW82: 282.11 | DIX82: Напиток витаминнный | DIZ82: 200 | DJC82: 9.7 | DJD82: 39 | DJE82: 0.15 | DJF82: 10 | DJM82: 282.11 | DJN82: Напиток витаминнный | DJP82: 200 | DJS82: 9.7 | DJT82: 39 | DJU82: 0.15 | DJV82: 10 | DKC82: 282.11 | DKD82: Напиток витаминнный | DKF82: 200 | DKI82: 9.7 | DKJ82: 39 | DKK82: 0.15 | DKL82: 10 | DKS82: 282.11 | DKT82: Напиток витаминнный | DKV82: 200 | DKY82: 9.7 | DKZ82: 39 | DLA82: 0.15 | DLB82: 10 | DLI82: 282.11 | DLJ82: Напиток витаминнный | DLL82: 200 | DLO82: 9.7 | DLP82: 39 | DLQ82: 0.15 | DLR82: 10 | DLY82: 282.11 | DLZ82: Напиток витаминнный | DMB82: 200 | DME82: 9.7 | DMF82: 39 | DMG82: 0.15 | DMH82: 10 | DMO82: 282.11 | DMP82: Напиток витаминнный | DMR82: 200 | DMU82: 9.7 | DMV82: 39 | DMW82: 0.15 | DMX82: 10 | DNE82: 282.11 | DNF82: Напиток витаминнный | DNH82: 200 | DNK82: 9.7 | DNL82: 39 | DNM82: 0.15 | DNN82: 10 | DNU82: 282.11 | DNV82: Напиток витаминнный | DNX82: 200 | DOA82: 9.7 | DOB82: 39 | DOC82: 0.15 | DOD82: 10 | DOK82: 282.11 | DOL82: Напиток витаминнный | DON82: 200 | DOQ82: 9.7 | DOR82: 39 | DOS82: 0.15 | DOT82: 10 | DPA82: 282.11 | DPB82: Напиток витаминнный | DPD82: 200 | DPG82: 9.7 | DPH82: 39 | DPI82: 0.15 | DPJ82: 10 | DPQ82: 282.11 | DPR82: Напиток витаминнный | DPT82: 200 | DPW82: 9.7 | DPX82: 39 | DPY82: 0.15 | DPZ82: 10 | DQG82: 282.11 | DQH82: Напиток витаминнный | DQJ82: 200 | DQM82: 9.7 | DQN82: 39 | DQO82: 0.15 | DQP82: 10 | DQW82: 282.11 | DQX82: Напиток витаминнный | DQZ82: 200 | DRC82: 9.7 | DRD82: 39 | DRE82: 0.15 | DRF82: 10 | DRM82: 282.11 | DRN82: Напиток витаминнный | DRP82: 200 | DRS82: 9.7 | DRT82: 39 | DRU82: 0.15 | DRV82: 10 | DSC82: 282.11 | DSD82: Напиток витаминнный | DSF82: 200 | DSI82: 9.7 | DSJ82: 39 | DSK82: 0.15 | DSL82: 10 | DSS82: 282.11 | DST82: Напиток витаминнный | DSV82: 200 | DSY82: 9.7 | DSZ82: 39 | DTA82: 0.15 | DTB82: 10 | DTI82: 282.11 | DTJ82: Напиток витаминнный | DTL82: 200 | DTO82: 9.7 | DTP82: 39 | DTQ82: 0.15 | DTR82: 10 | DTY82: 282.11 | DTZ82: Напиток витаминнный | DUB82: 200 | DUE82: 9.7 | DUF82: 39 | DUG82: 0.15 | DUH82: 10 | DUO82: 282.11 | DUP82: Напиток витаминнный | DUR82: 200 | DUU82: 9.7 | DUV82: 39 | DUW82: 0.15 | DUX82: 10 | DVE82: 282.11 | DVF82: Напиток витаминнный | DVH82: 200 | DVK82: 9.7 | DVL82: 39 | DVM82: 0.15 | DVN82: 10 | DVU82: 282.11 | DVV82: Напиток витаминнный | DVX82: 200 | DWA82: 9.7 | DWB82: 39 | DWC82: 0.15 | DWD82: 10 | DWK82: 282.11 | DWL82: Напиток витаминнный | DWN82: 200 | DWQ82: 9.7 | DWR82: 39 | DWS82: 0.15 | DWT82: 10 | DXA82: 282.11 | DXB82: Напиток витаминнный | DXD82: 200 | DXG82: 9.7 | DXH82: 39 | DXI82: 0.15 | DXJ82: 10 | DXQ82: 282.11 | DXR82: Напиток витаминнный | DXT82: 200 | DXW82: 9.7 | DXX82: 39 | DXY82: 0.15 | DXZ82: 10 | DYG82: 282.11 | DYH82: Напиток витаминнный | DYJ82: 200 | DYM82: 9.7 | DYN82: 39 | DYO82: 0.15 | DYP82: 10 | DYW82: 282.11 | DYX82: Напиток витаминнный | DYZ82: 200 | DZC82: 9.7 | DZD82: 39 | DZE82: 0.15 | DZF82: 10 | DZM82: 282.11 | DZN82: Напиток витаминнный | DZP82: 200 | DZS82: 9.7 | DZT82: 39 | DZU82: 0.15 | DZV82: 10 | EAC82: 282.11 | EAD82: Напиток витаминнный | EAF82: 200 | EAI82: 9.7 | EAJ82: 39 | EAK82: 0.15 | EAL82: 10 | EAS82: 282.11 | EAT82: Напиток витаминнный | EAV82: 200 | EAY82: 9.7 | EAZ82: 39 | EBA82: 0.15 | EBB82: 10 | EBI82: 282.11 | EBJ82: Напиток витаминнный | EBL82: 200 | EBO82: 9.7 | EBP82: 39 | EBQ82: 0.15 | EBR82: 10 | EBY82: 282.11 | EBZ82: Напиток витаминнный | ECB82: 200 | ECE82: 9.7 | ECF82: 39 | ECG82: 0.15 | ECH82: 10 | ECO82: 282.11 | ECP82: Напиток витаминнный | ECR82: 200 | ECU82: 9.7 | ECV82: 39 | ECW82: 0.15 | ECX82: 10 | EDE82: 282.11 | EDF82: Напиток витаминнный | EDH82: 200 | EDK82: 9.7 | EDL82: 39 | EDM82: 0.15 | EDN82: 10 | EDU82: 282.11 | EDV82: Напиток витаминнный | EDX82: 200 | EEA82: 9.7 | EEB82: 39 | EEC82: 0.15 | EED82: 10 | EEK82: 282.11 | EEL82: Напиток витаминнный | EEN82: 200 | EEQ82: 9.7 | EER82: 39 | EES82: 0.15 | EET82: 10 | EFA82: 282.11 | EFB82: Напиток витаминнный | EFD82: 200 | EFG82: 9.7 | EFH82: 39 | EFI82: 0.15 | EFJ82: 10 | EFQ82: 282.11 | EFR82: Напиток витаминнный | EFT82: 200 | EFW82: 9.7 | EFX82: 39 | EFY82: 0.15 | EFZ82: 10 | EGG82: 282.11 | EGH82: Напиток витаминнный | EGJ82: 200 | EGM82: 9.7 | EGN82: 39 | EGO82: 0.15 | EGP82: 10 | EGW82: 282.11 | EGX82: Напиток витаминнный | EGZ82: 200 | EHC82: 9.7 | EHD82: 39 | EHE82: 0.15 | EHF82: 10 | EHM82: 282.11 | EHN82: Напиток витаминнный | EHP82: 200 | EHS82: 9.7 | EHT82: 39 | EHU82: 0.15 | EHV82: 10 | EIC82: 282.11 | EID82: Напиток витаминнный | EIF82: 200 | EII82: 9.7 | EIJ82: 39 | EIK82: 0.15 | EIL82: 10 | EIS82: 282.11 | EIT82: Напиток витаминнный | EIV82: 200 | EIY82: 9.7 | EIZ82: 39 | EJA82: 0.15 | EJB82: 10 | EJI82: 282.11 | EJJ82: Напиток витаминнный | EJL82: 200 | EJO82: 9.7 | EJP82: 39 | EJQ82: 0.15 | EJR82: 10 | EJY82: 282.11 | EJZ82: Напиток витаминнный | EKB82: 200 | EKE82: 9.7 | EKF82: 39 | EKG82: 0.15 | EKH82: 10 | EKO82: 282.11 | EKP82: Напиток витаминнный | EKR82: 200 | EKU82: 9.7 | EKV82: 39 | EKW82: 0.15 | EKX82: 10 | ELE82: 282.11 | ELF82: Напиток витаминнный | ELH82: 200 | ELK82: 9.7 | ELL82: 39 | ELM82: 0.15 | ELN82: 10 | ELU82: 282.11 | ELV82: Напиток витаминнный | ELX82: 200 | EMA82: 9.7 | EMB82: 39 | EMC82: 0.15 | EMD82: 10 | EMK82: 282.11 | EML82: Напиток витаминнный | EMN82: 200 | EMQ82: 9.7 | EMR82: 39 | EMS82: 0.15 | EMT82: 10 | ENA82: 282.11 | ENB82: Напиток витаминнный | END82: 200 | ENG82: 9.7 | ENH82: 39 | ENI82: 0.15 | ENJ82: 10 | ENQ82: 282.11 | ENR82: Напиток витаминнный | ENT82: 200 | ENW82: 9.7 | ENX82: 39 | ENY82: 0.15 | ENZ82: 10 | EOG82: 282.11 | EOH82: Напиток витаминнный | EOJ82: 200 | EOM82: 9.7 | EON82: 39 | EOO82: 0.15 | EOP82: 10 | EOW82: 282.11 | EOX82: Напиток витаминнный | EOZ82: 200 | EPC82: 9.7 | EPD82: 39 | EPE82: 0.15 | EPF82: 10 | EPM82: 282.11 | EPN82: Напиток витаминнный | EPP82: 200 | EPS82: 9.7 | EPT82: 39 | EPU82: 0.15 | EPV82: 10 | EQC82: 282.11 | EQD82: Напиток витаминнный | EQF82: 200 | EQI82: 9.7 | EQJ82: 39 | EQK82: 0.15 | EQL82: 10 | EQS82: 282.11 | EQT82: Напиток витаминнный | EQV82: 200 | EQY82: 9.7 | EQZ82: 39 | ERA82: 0.15 | ERB82: 10 | ERI82: 282.11 | ERJ82: Напиток витаминнный | ERL82: 200 | ERO82: 9.7 | ERP82: 39 | ERQ82: 0.15 | ERR82: 10 | ERY82: 282.11 | ERZ82: Напиток витаминнный | ESB82: 200 | ESE82: 9.7 | ESF82: 39 | ESG82: 0.15 | ESH82: 10 | ESO82: 282.11 | ESP82: Напиток витаминнный | ESR82: 200 | ESU82: 9.7 | ESV82: 39 | ESW82: 0.15 | ESX82: 10 | ETE82: 282.11 | ETF82: Напиток витаминнный | ETH82: 200 | ETK82: 9.7 | ETL82: 39 | ETM82: 0.15 | ETN82: 10 | ETU82: 282.11 | ETV82: Напиток витаминнный | ETX82: 200 | EUA82: 9.7 | EUB82: 39 | EUC82: 0.15 | EUD82: 10 | EUK82: 282.11 | EUL82: Напиток витаминнный | EUN82: 200 | EUQ82: 9.7 | EUR82: 39 | EUS82: 0.15 | EUT82: 10 | EVA82: 282.11 | EVB82: Напиток витаминнный | EVD82: 200 | EVG82: 9.7 | EVH82: 39 | EVI82: 0.15 | EVJ82: 10 | EVQ82: 282.11 | EVR82: Напиток витаминнный | EVT82: 200 | EVW82: 9.7 | EVX82: 39 | EVY82: 0.15 | EVZ82: 10 | EWG82: 282.11 | EWH82: Напиток витаминнный | EWJ82: 200 | EWM82: 9.7 | EWN82: 39 | EWO82: 0.15 | EWP82: 10 | EWW82: 282.11 | EWX82: Напиток витаминнный | EWZ82: 200 | EXC82: 9.7 | EXD82: 39 | EXE82: 0.15 | EXF82: 10 | EXM82: 282.11 | EXN82: Напиток витаминнный | EXP82: 200 | EXS82: 9.7 | EXT82: 39 | EXU82: 0.15 | EXV82: 10 | EYC82: 282.11 | EYD82: Напиток витаминнный | EYF82: 200 | EYI82: 9.7 | EYJ82: 39 | EYK82: 0.15 | EYL82: 10 | EYS82: 282.11 | EYT82: Напиток витаминнный | EYV82: 200 | EYY82: 9.7 | EYZ82: 39 | EZA82: 0.15 | EZB82: 10 | EZI82: 282.11 | EZJ82: Напиток витаминнный | EZL82: 200 | EZO82: 9.7 | EZP82: 39 | EZQ82: 0.15 | EZR82: 10 | EZY82: 282.11 | EZZ82: Напиток витаминнный | FAB82: 200 | FAE82: 9.7 | FAF82: 39 | FAG82: 0.15 | FAH82: 10 | FAO82: 282.11 | FAP82: Напиток витаминнный | FAR82: 200 | FAU82: 9.7 | FAV82: 39 | FAW82: 0.15 | FAX82: 10 | FBE82: 282.11 | FBF82: Напиток витаминнный | FBH82: 200 | FBK82: 9.7 | FBL82: 39 | FBM82: 0.15 | FBN82: 10 | FBU82: 282.11 | FBV82: Напиток витаминнный | FBX82: 200 | FCA82: 9.7 | FCB82: 39 | FCC82: 0.15 | FCD82: 10 | FCK82: 282.11 | FCL82: Напиток витаминнный | FCN82: 200 | FCQ82: 9.7 | FCR82: 39 | FCS82: 0.15 | FCT82: 10 | FDA82: 282.11 | FDB82: Напиток витаминнный | FDD82: 200 | FDG82: 9.7 | FDH82: 39 | FDI82: 0.15 | FDJ82: 10 | FDQ82: 282.11 | FDR82: Напиток витаминнный | FDT82: 200 | FDW82: 9.7 | FDX82: 39 | FDY82: 0.15 | FDZ82: 10 | FEG82: 282.11 | FEH82: Напиток витаминнный | FEJ82: 200 | FEM82: 9.7 | FEN82: 39 | FEO82: 0.15 | FEP82: 10 | FEW82: 282.11 | FEX82: Напиток витаминнный | FEZ82: 200 | FFC82: 9.7 | FFD82: 39 | FFE82: 0.15 | FFF82: 10 | FFM82: 282.11 | FFN82: Напиток витаминнный | FFP82: 200 | FFS82: 9.7 | FFT82: 39 | FFU82: 0.15 | FFV82: 10 | FGC82: 282.11 | FGD82: Напиток витаминнный | FGF82: 200 | FGI82: 9.7 | FGJ82: 39 | FGK82: 0.15 | FGL82: 10 | FGS82: 282.11 | FGT82: Напиток витаминнный | FGV82: 200 | FGY82: 9.7 | FGZ82: 39 | FHA82: 0.15 | FHB82: 10 | FHI82: 282.11 | FHJ82: Напиток витаминнный | FHL82: 200 | FHO82: 9.7 | FHP82: 39 | FHQ82: 0.15 | FHR82: 10 | FHY82: 282.11 | FHZ82: Напиток витаминнный | FIB82: 200 | FIE82: 9.7 | FIF82: 39 | FIG82: 0.15 | FIH82: 10 | FIO82: 282.11 | FIP82: Напиток витаминнный | FIR82: 200 | FIU82: 9.7 | FIV82: 39 | FIW82: 0.15 | FIX82: 10 | FJE82: 282.11 | FJF82: Напиток витаминнный | FJH82: 200 | FJK82: 9.7 | FJL82: 39 | FJM82: 0.15 | FJN82: 10 | FJU82: 282.11 | FJV82: Напиток витаминнный | FJX82: 200 | FKA82: 9.7 | FKB82: 39 | FKC82: 0.15 | FKD82: 10 | FKK82: 282.11 | FKL82: Напиток витаминнный | FKN82: 200 | FKQ82: 9.7 | FKR82: 39 | FKS82: 0.15 | FKT82: 10 | FLA82: 282.11 | FLB82: Напиток витаминнный | FLD82: 200 | FLG82: 9.7 | FLH82: 39 | FLI82: 0.15 | FLJ82: 10 | FLQ82: 282.11 | FLR82: Напиток витаминнный | FLT82: 200 | FLW82: 9.7 | FLX82: 39 | FLY82: 0.15 | FLZ82: 10 | FMG82: 282.11 | FMH82: Напиток витаминнный | FMJ82: 200 | FMM82: 9.7 | FMN82: 39 | FMO82: 0.15 | FMP82: 10 | FMW82: 282.11 | FMX82: Напиток витаминнный | FMZ82: 200 | FNC82: 9.7 | FND82: 39 | FNE82: 0.15 | FNF82: 10 | FNM82: 282.11 | FNN82: Напиток витаминнный | FNP82: 200 | FNS82: 9.7 | FNT82: 39 | FNU82: 0.15 | FNV82: 10 | FOC82: 282.11 | FOD82: Напиток витаминнный | FOF82: 200 | FOI82: 9.7 | FOJ82: 39 | FOK82: 0.15 | FOL82: 10 | FOS82: 282.11 | FOT82: Напиток витаминнный | FOV82: 200 | FOY82: 9.7 | FOZ82: 39 | FPA82: 0.15 | FPB82: 10 | FPI82: 282.11 | FPJ82: Напиток витаминнный | FPL82: 200 | FPO82: 9.7 | FPP82: 39 | FPQ82: 0.15 | FPR82: 10 | FPY82: 282.11 | FPZ82: Напиток витаминнный | FQB82: 200 | FQE82: 9.7 | FQF82: 39 | FQG82: 0.15 | FQH82: 10 | FQO82: 282.11 | FQP82: Напиток витаминнный | FQR82: 200 | FQU82: 9.7 | FQV82: 39 | FQW82: 0.15 | FQX82: 10 | FRE82: 282.11 | FRF82: Напиток витаминнный | FRH82: 200 | FRK82: 9.7 | FRL82: 39 | FRM82: 0.15 | FRN82: 10 | FRU82: 282.11 | FRV82: Напиток витаминнный | FRX82: 200 | FSA82: 9.7 | FSB82: 39 | FSC82: 0.15 | FSD82: 10 | FSK82: 282.11 | FSL82: Напиток витаминнный | FSN82: 200 | FSQ82: 9.7 | FSR82: 39 | FSS82: 0.15 | FST82: 10 | FTA82: 282.11 | FTB82: Напиток витаминнный | FTD82: 200 | FTG82: 9.7 | FTH82: 39 | FTI82: 0.15 | FTJ82: 10 | FTQ82: 282.11 | FTR82: Напиток витаминнный | FTT82: 200 | FTW82: 9.7 | FTX82: 39 | FTY82: 0.15 | FTZ82: 10 | FUG82: 282.11 | FUH82: Напиток витаминнный | FUJ82: 200 | FUM82: 9.7 | FUN82: 39 | FUO82: 0.15 | FUP82: 10 | FUW82: 282.11 | FUX82: Напиток витаминнный | FUZ82: 200 | FVC82: 9.7 | FVD82: 39 | FVE82: 0.15 | FVF82: 10 | FVM82: 282.11 | FVN82: Напиток витаминнный | FVP82: 200 | FVS82: 9.7 | FVT82: 39 | FVU82: 0.15 | FVV82: 10 | FWC82: 282.11 | FWD82: Напиток витаминнный | FWF82: 200 | FWI82: 9.7 | FWJ82: 39 | FWK82: 0.15 | FWL82: 10 | FWS82: 282.11 | FWT82: Напиток витаминнный | FWV82: 200 | FWY82: 9.7 | FWZ82: 39 | FXA82: 0.15 | FXB82: 10 | FXI82: 282.11 | FXJ82: Напиток витаминнный | FXL82: 200 | FXO82: 9.7 | FXP82: 39 | FXQ82: 0.15 | FXR82: 10 | FXY82: 282.11 | FXZ82: Напиток витаминнный | FYB82: 200 | FYE82: 9.7 | FYF82: 39 | FYG82: 0.15 | FYH82: 10 | FYO82: 282.11 | FYP82: Напиток витаминнный | FYR82: 200 | FYU82: 9.7 | FYV82: 39 | FYW82: 0.15 | FYX82: 10 | FZE82: 282.11 | FZF82: Напиток витаминнный | FZH82: 200 | FZK82: 9.7 | FZL82: 39 | FZM82: 0.15 | FZN82: 10 | FZU82: 282.11 | FZV82: Напиток витаминнный | FZX82: 200 | GAA82: 9.7 | GAB82: 39 | GAC82: 0.15 | GAD82: 10 | GAK82: 282.11 | GAL82: Напиток витаминнный | GAN82: 200 | GAQ82: 9.7 | GAR82: 39 | GAS82: 0.15 | GAT82: 10 | GBA82: 282.11 | GBB82: Напиток витаминнный | GBD82: 200 | GBG82: 9.7 | GBH82: 39 | GBI82: 0.15 | GBJ82: 10 | GBQ82: 282.11 | GBR82: Напиток витаминнный | GBT82: 200 | GBW82: 9.7 | GBX82: 39 | GBY82: 0.15 | GBZ82: 10 | GCG82: 282.11 | GCH82: Напиток витаминнный | GCJ82: 200 | GCM82: 9.7 | GCN82: 39 | GCO82: 0.15 | GCP82: 10 | GCW82: 282.11 | GCX82: Напиток витаминнный | GCZ82: 200 | GDC82: 9.7 | GDD82: 39 | GDE82: 0.15 | GDF82: 10 | GDM82: 282.11 | GDN82: Напиток витаминнный | GDP82: 200 | GDS82: 9.7 | GDT82: 39 | GDU82: 0.15 | GDV82: 10 | GEC82: 282.11 | GED82: Напиток витаминнный | GEF82: 200 | GEI82: 9.7 | GEJ82: 39 | GEK82: 0.15 | GEL82: 10 | GES82: 282.11 | GET82: Напиток витаминнный | GEV82: 200 | GEY82: 9.7 | GEZ82: 39 | GFA82: 0.15 | GFB82: 10 | GFI82: 282.11 | GFJ82: Напиток витаминнный | GFL82: 200 | GFO82: 9.7 | GFP82: 39 | GFQ82: 0.15 | GFR82: 10 | GFY82: 282.11 | GFZ82: Напиток витаминнный | GGB82: 200 | GGE82: 9.7 | GGF82: 39 | GGG82: 0.15 | GGH82: 10 | GGO82: 282.11 | GGP82: Напиток витаминнный | GGR82: 200 | GGU82: 9.7 | GGV82: 39 | GGW82: 0.15 | GGX82: 10 | GHE82: 282.11 | GHF82: Напиток витаминнный | GHH82: 200 | GHK82: 9.7 | GHL82: 39 | GHM82: 0.15 | GHN82: 10 | GHU82: 282.11 | GHV82: Напиток витаминнный | GHX82: 200 | GIA82: 9.7 | GIB82: 39 | GIC82: 0.15 | GID82: 10 | GIK82: 282.11 | GIL82: Напиток витаминнный | GIN82: 200 | GIQ82: 9.7 | GIR82: 39 | GIS82: 0.15 | GIT82: 10 | GJA82: 282.11 | GJB82: Напиток витаминнный | GJD82: 200 | GJG82: 9.7 | GJH82: 39 | GJI82: 0.15 | GJJ82: 10 | GJQ82: 282.11 | GJR82: Напиток витаминнный | GJT82: 200 | GJW82: 9.7 | GJX82: 39 | GJY82: 0.15 | GJZ82: 10 | GKG82: 282.11 | GKH82: Напиток витаминнный | GKJ82: 200 | GKM82: 9.7 | GKN82: 39 | GKO82: 0.15 | GKP82: 10 | GKW82: 282.11 | GKX82: Напиток витаминнный | GKZ82: 200 | GLC82: 9.7 | GLD82: 39 | GLE82: 0.15 | GLF82: 10 | GLM82: 282.11 | GLN82: Напиток витаминнный | GLP82: 200 | GLS82: 9.7 | GLT82: 39 | GLU82: 0.15 | GLV82: 10 | GMC82: 282.11 | GMD82: Напиток витаминнный | GMF82: 200 | GMI82: 9.7 | GMJ82: 39 | GMK82: 0.15 | GML82: 10 | GMS82: 282.11 | GMT82: Напиток витаминнный | GMV82: 200 | GMY82: 9.7 | GMZ82: 39 | GNA82: 0.15 | GNB82: 10 | GNI82: 282.11 | GNJ82: Напиток витаминнный | GNL82: 200 | GNO82: 9.7 | GNP82: 39 | GNQ82: 0.15 | GNR82: 10 | GNY82: 282.11 | GNZ82: Напиток витаминнный | GOB82: 200 | GOE82: 9.7 | GOF82: 39 | GOG82: 0.15 | GOH82: 10 | GOO82: 282.11 | GOP82: Напиток витаминнный | GOR82: 200 | GOU82: 9.7 | GOV82: 39 | GOW82: 0.15 | GOX82: 10 | GPE82: 282.11 | GPF82: Напиток витаминнный | GPH82: 200 | GPK82: 9.7 | GPL82: 39 | GPM82: 0.15 | GPN82: 10 | GPU82: 282.11 | GPV82: Напиток витаминнный | GPX82: 200 | GQA82: 9.7 | GQB82: 39 | GQC82: 0.15 | GQD82: 10 | GQK82: 282.11 | GQL82: Напиток витаминнный | GQN82: 200 | GQQ82: 9.7 | GQR82: 39 | GQS82: 0.15 | GQT82: 10 | GRA82: 282.11 | GRB82: Напиток витаминнный | GRD82: 200 | GRG82: 9.7 | GRH82: 39 | GRI82: 0.15 | GRJ82: 10 | GRQ82: 282.11 | GRR82: Напиток витаминнный | GRT82: 200 | GRW82: 9.7 | GRX82: 39 | GRY82: 0.15 | GRZ82: 10 | GSG82: 282.11 | GSH82: Напиток витаминнный | GSJ82: 200 | GSM82: 9.7 | GSN82: 39 | GSO82: 0.15 | GSP82: 10 | GSW82: 282.11 | GSX82: Напиток витаминнный | GSZ82: 200 | GTC82: 9.7 | GTD82: 39 | GTE82: 0.15 | GTF82: 10 | GTM82: 282.11 | GTN82: Напиток витаминнный | GTP82: 200 | GTS82: 9.7 | GTT82: 39 | GTU82: 0.15 | GTV82: 10 | GUC82: 282.11 | GUD82: Напиток витаминнный | GUF82: 200 | GUI82: 9.7 | GUJ82: 39 | GUK82: 0.15 | GUL82: 10 | GUS82: 282.11 | GUT82: Напиток витаминнный | GUV82: 200 | GUY82: 9.7 | GUZ82: 39 | GVA82: 0.15 | GVB82: 10 | GVI82: 282.11 | GVJ82: Напиток витаминнный | GVL82: 200 | GVO82: 9.7 | GVP82: 39 | GVQ82: 0.15 | GVR82: 10 | GVY82: 282.11 | GVZ82: Напиток витаминнный | GWB82: 200 | GWE82: 9.7 | GWF82: 39 | GWG82: 0.15 | GWH82: 10 | GWO82: 282.11 | GWP82: Напиток витаминнный | GWR82: 200 | GWU82: 9.7 | GWV82: 39 | GWW82: 0.15 | GWX82: 10 | GXE82: 282.11 | GXF82: Напиток витаминнный | GXH82: 200 | GXK82: 9.7 | GXL82: 39 | GXM82: 0.15 | GXN82: 10 | GXU82: 282.11 | GXV82: Напиток витаминнный | GXX82: 200 | GYA82: 9.7 | GYB82: 39 | GYC82: 0.15 | GYD82: 10 | GYK82: 282.11 | GYL82: Напиток витаминнный | GYN82: 200 | GYQ82: 9.7 | GYR82: 39 | GYS82: 0.15 | GYT82: 10 | GZA82: 282.11 | GZB82: Напиток витаминнный | GZD82: 200 | GZG82: 9.7 | GZH82: 39 | GZI82: 0.15 | GZJ82: 10 | GZQ82: 282.11 | GZR82: Напиток витаминнный | GZT82: 200 | GZW82: 9.7 | GZX82: 39 | GZY82: 0.15 | GZZ82: 10 | HAG82: 282.11 | HAH82: Напиток витаминнный | HAJ82: 200 | HAM82: 9.7 | HAN82: 39 | HAO82: 0.15 | HAP82: 10 | HAW82: 282.11 | HAX82: Напиток витаминнный | HAZ82: 200 | HBC82: 9.7 | HBD82: 39 | HBE82: 0.15 | HBF82: 10 | HBM82: 282.11 | HBN82: Напиток витаминнный | HBP82: 200 | HBS82: 9.7 | HBT82: 39 | HBU82: 0.15 | HBV82: 10 | HCC82: 282.11 | HCD82: Напиток витаминнный | HCF82: 200 | HCI82: 9.7 | HCJ82: 39 | HCK82: 0.15 | HCL82: 10 | HCS82: 282.11 | HCT82: Напиток витаминнный | HCV82: 200 | HCY82: 9.7 | HCZ82: 39 | HDA82: 0.15 | HDB82: 10 | HDI82: 282.11 | HDJ82: Напиток витаминнный | HDL82: 200 | HDO82: 9.7 | HDP82: 39 | HDQ82: 0.15 | HDR82: 10 | HDY82: 282.11 | HDZ82: Напиток витаминнный | HEB82: 200 | HEE82: 9.7 | HEF82: 39 | HEG82: 0.15 | HEH82: 10 | HEO82: 282.11 | HEP82: Напиток витаминнный | HER82: 200 | HEU82: 9.7 | HEV82: 39 | HEW82: 0.15 | HEX82: 10 | HFE82: 282.11 | HFF82: Напиток витаминнный | HFH82: 200 | HFK82: 9.7 | HFL82: 39 | HFM82: 0.15 | HFN82: 10 | HFU82: 282.11 | HFV82: Напиток витаминнный | HFX82: 200 | HGA82: 9.7 | HGB82: 39 | HGC82: 0.15 | HGD82: 10 | HGK82: 282.11 | HGL82: Напиток витаминнный | HGN82: 200 | HGQ82: 9.7 | HGR82: 39 | HGS82: 0.15 | HGT82: 10 | HHA82: 282.11 | HHB82: Напиток витаминнный | HHD82: 200 | HHG82: 9.7 | HHH82: 39 | HHI82: 0.15 | HHJ82: 10 | HHQ82: 282.11 | HHR82: Напиток витаминнный | HHT82: 200 | HHW82: 9.7 | HHX82: 39 | HHY82: 0.15 | HHZ82: 10 | HIG82: 282.11 | HIH82: Напиток витаминнный | HIJ82: 200 | HIM82: 9.7 | HIN82: 39 | HIO82: 0.15 | HIP82: 10 | HIW82: 282.11 | HIX82: Напиток витаминнный | HIZ82: 200 | HJC82: 9.7 | HJD82: 39 | HJE82: 0.15 | HJF82: 10 | HJM82: 282.11 | HJN82: Напиток витаминнный | HJP82: 200 | HJS82: 9.7 | HJT82: 39 | HJU82: 0.15 | HJV82: 10 | HKC82: 282.11 | HKD82: Напиток витаминнный | HKF82: 200 | HKI82: 9.7 | HKJ82: 39 | HKK82: 0.15 | HKL82: 10 | HKS82: 282.11 | HKT82: Напиток витаминнный | HKV82: 200 | HKY82: 9.7 | HKZ82: 39 | HLA82: 0.15 | HLB82: 10 | HLI82: 282.11 | HLJ82: Напиток витаминнный | HLL82: 200 | HLO82: 9.7 | HLP82: 39 | HLQ82: 0.15 | HLR82: 10 | HLY82: 282.11 | HLZ82: Напиток витаминнный | HMB82: 200 | HME82: 9.7 | HMF82: 39 | HMG82: 0.15 | HMH82: 10 | HMO82: 282.11 | HMP82: Напиток витаминнный | HMR82: 200 | HMU82: 9.7 | HMV82: 39 | HMW82: 0.15 | HMX82: 10 | HNE82: 282.11 | HNF82: Напиток витаминнный | HNH82: 200 | HNK82: 9.7 | HNL82: 39 | HNM82: 0.15 | HNN82: 10 | HNU82: 282.11 | HNV82: Напиток витаминнный | HNX82: 200 | HOA82: 9.7 | HOB82: 39 | HOC82: 0.15 | HOD82: 10 | HOK82: 282.11 | HOL82: Напиток витаминнный | HON82: 200 | HOQ82: 9.7 | HOR82: 39 | HOS82: 0.15 | HOT82: 10 | HPA82: 282.11 | HPB82: Напиток витаминнный | HPD82: 200 | HPG82: 9.7 | HPH82: 39 | HPI82: 0.15 | HPJ82: 10 | HPQ82: 282.11 | HPR82: Напиток витаминнный | HPT82: 200 | HPW82: 9.7 | HPX82: 39 | HPY82: 0.15 | HPZ82: 10 | HQG82: 282.11 | HQH82: Напиток витаминнный | HQJ82: 200 | HQM82: 9.7 | HQN82: 39 | HQO82: 0.15 | HQP82: 10 | HQW82: 282.11 | HQX82: Напиток витаминнный | HQZ82: 200 | HRC82: 9.7 | HRD82: 39 | HRE82: 0.15 | HRF82: 10 | HRM82: 282.11 | HRN82: Напиток витаминнный | HRP82: 200 | HRS82: 9.7 | HRT82: 39 | HRU82: 0.15 | HRV82: 10 | HSC82: 282.11 | HSD82: Напиток витаминнный | HSF82: 200 | HSI82: 9.7 | HSJ82: 39 | HSK82: 0.15 | HSL82: 10 | HSS82: 282.11 | HST82: Напиток витаминнный | HSV82: 200 | HSY82: 9.7 | HSZ82: 39 | HTA82: 0.15 | HTB82: 10 | HTI82: 282.11 | HTJ82: Напиток витаминнный | HTL82: 200 | HTO82: 9.7 | HTP82: 39 | HTQ82: 0.15 | HTR82: 10 | HTY82: 282.11 | HTZ82: Напиток витаминнный | HUB82: 200 | HUE82: 9.7 | HUF82: 39 | HUG82: 0.15 | HUH82: 10 | HUO82: 282.11 | HUP82: Напиток витаминнный | HUR82: 200 | HUU82: 9.7 | HUV82: 39 | HUW82: 0.15 | HUX82: 10 | HVE82: 282.11 | HVF82: Напиток витаминнный | HVH82: 200 | HVK82: 9.7 | HVL82: 39 | HVM82: 0.15 | HVN82: 10 | HVU82: 282.11 | HVV82: Напиток витаминнный | HVX82: 200 | HWA82: 9.7 | HWB82: 39 | HWC82: 0.15 | HWD82: 10 | HWK82: 282.11 | HWL82: Напиток витаминнный | HWN82: 200 | HWQ82: 9.7 | HWR82: 39 | HWS82: 0.15 | HWT82: 10 | HXA82: 282.11 | HXB82: Напиток витаминнный | HXD82: 200 | HXG82: 9.7 | HXH82: 39 | HXI82: 0.15 | HXJ82: 10 | HXQ82: 282.11 | HXR82: Напиток витаминнный | HXT82: 200 | HXW82: 9.7 | HXX82: 39 | HXY82: 0.15 | HXZ82: 10 | HYG82: 282.11 | HYH82: Напиток витаминнный | HYJ82: 200 | HYM82: 9.7 | HYN82: 39 | HYO82: 0.15 | HYP82: 10 | HYW82: 282.11 | HYX82: Напиток витаминнный | HYZ82: 200 | HZC82: 9.7 | HZD82: 39 | HZE82: 0.15 | HZF82: 10 | HZM82: 282.11 | HZN82: Напиток витаминнный | HZP82: 200 | HZS82: 9.7 | HZT82: 39 | HZU82: 0.15 | HZV82: 10 | IAC82: 282.11 | IAD82: Напиток витаминнный | IAF82: 200 | IAI82: 9.7 | IAJ82: 39 | IAK82: 0.15 | IAL82: 10 | IAS82: 282.11 | IAT82: Напиток витаминнный | IAV82: 200 | IAY82: 9.7 | IAZ82: 39 | IBA82: 0.15 | IBB82: 10 | IBI82: 282.11 | IBJ82: Напиток витаминнный | IBL82: 200 | IBO82: 9.7 | IBP82: 39 | IBQ82: 0.15 | IBR82: 10 | IBY82: 282.11 | IBZ82: Напиток витаминнный | ICB82: 200 | ICE82: 9.7 | ICF82: 39 | ICG82: 0.15 | ICH82: 10 | ICO82: 282.11 | ICP82: Напиток витаминнный | ICR82: 200 | ICU82: 9.7 | ICV82: 39 | ICW82: 0.15 | ICX82: 10 | IDE82: 282.11 | IDF82: Напиток витаминнный | IDH82: 200 | IDK82: 9.7 | IDL82: 39 | IDM82: 0.15 | IDN82: 10 | IDU82: 282.11 | IDV82: Напиток витаминнный | IDX82: 200 | IEA82: 9.7 | IEB82: 39 | IEC82: 0.15 | IED82: 10 | IEK82: 282.11 | IEL82: Напиток витаминнный | IEN82: 200 | IEQ82: 9.7 | IER82: 39 | IES82: 0.15 | IET82: 10 | IFA82: 282.11 | IFB82: Напиток витаминнный | IFD82: 200 | IFG82: 9.7 | IFH82: 39 | IFI82: 0.15 | IFJ82: 10 | IFQ82: 282.11 | IFR82: Напиток витаминнный | IFT82: 200 | IFW82: 9.7 | IFX82: 39 | IFY82: 0.15 | IFZ82: 10 | IGG82: 282.11 | IGH82: Напиток витаминнный | IGJ82: 200 | IGM82: 9.7 | IGN82: 39 | IGO82: 0.15 | IGP82: 10 | IGW82: 282.11 | IGX82: Напиток витаминнный | IGZ82: 200 | IHC82: 9.7 | IHD82: 39 | IHE82: 0.15 | IHF82: 10 | IHM82: 282.11 | IHN82: Напиток витаминнный | IHP82: 200 | IHS82: 9.7 | IHT82: 39 | IHU82: 0.15 | IHV82: 10 | IIC82: 282.11 | IID82: Напиток витаминнный | IIF82: 200 | III82: 9.7 | IIJ82: 39 | IIK82: 0.15 | IIL82: 10 | IIS82: 282.11 | IIT82: Напиток витаминнный | IIV82: 200 | IIY82: 9.7 | IIZ82: 39 | IJA82: 0.15 | IJB82: 10 | IJI82: 282.11 | IJJ82: Напиток витаминнный | IJL82: 200 | IJO82: 9.7 | IJP82: 39 | IJQ82: 0.15 | IJR82: 10 | IJY82: 282.11 | IJZ82: Напиток витаминнный | IKB82: 200 | IKE82: 9.7 | IKF82: 39 | IKG82: 0.15 | IKH82: 10 | IKO82: 282.11 | IKP82: Напиток витаминнный | IKR82: 200 | IKU82: 9.7 | IKV82: 39 | IKW82: 0.15 | IKX82: 10 | ILE82: 282.11 | ILF82: Напиток витаминнный | ILH82: 200 | ILK82: 9.7 | ILL82: 39 | ILM82: 0.15 | ILN82: 10 | ILU82: 282.11 | ILV82: Напиток витаминнный | ILX82: 200 | IMA82: 9.7 | IMB82: 39 | IMC82: 0.15 | IMD82: 10 | IMK82: 282.11 | IML82: Напиток витаминнный | IMN82: 200 | IMQ82: 9.7 | IMR82: 39 | IMS82: 0.15 | IMT82: 10 | INA82: 282.11 | INB82: Напиток витаминнный | IND82: 200 | ING82: 9.7 | INH82: 39 | INI82: 0.15 | INJ82: 10 | INQ82: 282.11 | INR82: Напиток витаминнный | INT82: 200 | INW82: 9.7 | INX82: 39 | INY82: 0.15 | INZ82: 10 | IOG82: 282.11 | IOH82: Напиток витаминнный | IOJ82: 200 | IOM82: 9.7 | ION82: 39 | IOO82: 0.15 | IOP82: 10 | IOW82: 282.11 | IOX82: Напиток витаминнный | IOZ82: 200 | IPC82: 9.7 | IPD82: 39 | IPE82: 0.15 | IPF82: 10 | IPM82: 282.11 | IPN82: Напиток витаминнный | IPP82: 200 | IPS82: 9.7 | IPT82: 39 | IPU82: 0.15 | IPV82: 10 | IQC82: 282.11 | IQD82: Напиток витаминнный | IQF82: 200 | IQI82: 9.7 | IQJ82: 39 | IQK82: 0.15 | IQL82: 10 | IQS82: 282.11 | IQT82: Напиток витаминнный | IQV82: 200 | IQY82: 9.7 | IQZ82: 39 | IRA82: 0.15 | IRB82: 10 | IRI82: 282.11 | IRJ82: Напиток витаминнный | IRL82: 200 | IRO82: 9.7 | IRP82: 39 | IRQ82: 0.15 | IRR82: 10 | IRY82: 282.11 | IRZ82: Напиток витаминнный | ISB82: 200 | ISE82: 9.7 | ISF82: 39 | ISG82: 0.15 | ISH82: 10 | ISO82: 282.11 | ISP82: Напиток витаминнный | ISR82: 200 | ISU82: 9.7 | ISV82: 39 | ISW82: 0.15 | ISX82: 10 | ITE82: 282.11 | ITF82: Напиток витаминнный | ITH82: 200 | ITK82: 9.7 | ITL82: 39 | ITM82: 0.15 | ITN82: 10 | ITU82: 282.11 | ITV82: Напиток витаминнный | ITX82: 200 | IUA82: 9.7 | IUB82: 39 | IUC82: 0.15 | IUD82: 10 | IUK82: 282.11 | IUL82: Напиток витаминнный | IUN82: 200 | IUQ82: 9.7 | IUR82: 39 | IUS82: 0.15 | IUT82: 10 | IVA82: 282.11 | IVB82: Напиток витаминнный | IVD82: 200 | IVG82: 9.7 | IVH82: 39 | IVI82: 0.15 | IVJ82: 10 | IVQ82: 282.11 | IVR82: Напиток витаминнный | IVT82: 200 | IVW82: 9.7 | IVX82: 39 | IVY82: 0.15 | IVZ82: 10 | IWG82: 282.11 | IWH82: Напиток витаминнный | IWJ82: 200 | IWM82: 9.7 | IWN82: 39 | IWO82: 0.15 | IWP82: 10 | IWW82: 282.11 | IWX82: Напиток витаминнный | IWZ82: 200 | IXC82: 9.7 | IXD82: 39 | IXE82: 0.15 | IXF82: 10 | IXM82: 282.11 | IXN82: Напиток витаминнный | IXP82: 200 | IXS82: 9.7 | IXT82: 39 | IXU82: 0.15 | IXV82: 10 | IYC82: 282.11 | IYD82: Напиток витаминнный | IYF82: 200 | IYI82: 9.7 | IYJ82: 39 | IYK82: 0.15 | IYL82: 10 | IYS82: 282.11 | IYT82: Напиток витаминнный | IYV82: 200 | IYY82: 9.7 | IYZ82: 39 | IZA82: 0.15 | IZB82: 10 | IZI82: 282.11 | IZJ82: Напиток витаминнный | IZL82: 200 | IZO82: 9.7 | IZP82: 39 | IZQ82: 0.15 | IZR82: 10 | IZY82: 282.11 | IZZ82: Напиток витаминнный | JAB82: 200 | JAE82: 9.7 | JAF82: 39 | JAG82: 0.15 | JAH82: 10 | JAO82: 282.11 | JAP82: Напиток витаминнный | JAR82: 200 | JAU82: 9.7 | JAV82: 39 | JAW82: 0.15 | JAX82: 10 | JBE82: 282.11 | JBF82: Напиток витаминнный | JBH82: 200 | JBK82: 9.7 | JBL82: 39 | JBM82: 0.15 | JBN82: 10 | JBU82: 282.11 | JBV82: Напиток витаминнный | JBX82: 200 | JCA82: 9.7 | JCB82: 39 | JCC82: 0.15 | JCD82: 10 | JCK82: 282.11 | JCL82: Напиток витаминнный | JCN82: 200 | JCQ82: 9.7 | JCR82: 39 | JCS82: 0.15 | JCT82: 10 | JDA82: 282.11 | JDB82: Напиток витаминнный | JDD82: 200 | JDG82: 9.7 | JDH82: 39 | JDI82: 0.15 | JDJ82: 10 | JDQ82: 282.11 | JDR82: Напиток витаминнный | JDT82: 200 | JDW82: 9.7 | JDX82: 39 | JDY82: 0.15 | JDZ82: 10 | JEG82: 282.11 | JEH82: Напиток витаминнный | JEJ82: 200 | JEM82: 9.7 | JEN82: 39 | JEO82: 0.15 | JEP82: 10 | JEW82: 282.11 | JEX82: Напиток витаминнный | JEZ82: 200 | JFC82: 9.7 | JFD82: 39 | JFE82: 0.15 | JFF82: 10 | JFM82: 282.11 | JFN82: Напиток витаминнный | JFP82: 200 | JFS82: 9.7 | JFT82: 39 | JFU82: 0.15 | JFV82: 10 | JGC82: 282.11 | JGD82: Напиток витаминнный | JGF82: 200 | JGI82: 9.7 | JGJ82: 39 | JGK82: 0.15 | JGL82: 10 | JGS82: 282.11 | JGT82: Напиток витаминнный | JGV82: 200 | JGY82: 9.7 | JGZ82: 39 | JHA82: 0.15 | JHB82: 10 | JHI82: 282.11 | JHJ82: Напиток витаминнный | JHL82: 200 | JHO82: 9.7 | JHP82: 39 | JHQ82: 0.15 | JHR82: 10 | JHY82: 282.11 | JHZ82: Напиток витаминнный | JIB82: 200 | JIE82: 9.7 | JIF82: 39 | JIG82: 0.15 | JIH82: 10 | JIO82: 282.11 | JIP82: Напиток витаминнный | JIR82: 200 | JIU82: 9.7 | JIV82: 39 | JIW82: 0.15 | JIX82: 10 | JJE82: 282.11 | JJF82: Напиток витаминнный | JJH82: 200 | JJK82: 9.7 | JJL82: 39 | JJM82: 0.15 | JJN82: 10 | JJU82: 282.11 | JJV82: Напиток витаминнный | JJX82: 200 | JKA82: 9.7 | JKB82: 39 | JKC82: 0.15 | JKD82: 10 | JKK82: 282.11 | JKL82: Напиток витаминнный | JKN82: 200 | JKQ82: 9.7 | JKR82: 39 | JKS82: 0.15 | JKT82: 10 | JLA82: 282.11 | JLB82: Напиток витаминнный | JLD82: 200 | JLG82: 9.7 | JLH82: 39 | JLI82: 0.15 | JLJ82: 10 | JLQ82: 282.11 | JLR82: Напиток витаминнный | JLT82: 200 | JLW82: 9.7 | JLX82: 39 | JLY82: 0.15 | JLZ82: 10 | JMG82: 282.11 | JMH82: Напиток витаминнный | JMJ82: 200 | JMM82: 9.7 | JMN82: 39 | JMO82: 0.15 | JMP82: 10 | JMW82: 282.11 | JMX82: Напиток витаминнный | JMZ82: 200 | JNC82: 9.7 | JND82: 39 | JNE82: 0.15 | JNF82: 10 | JNM82: 282.11 | JNN82: Напиток витаминнный | JNP82: 200 | JNS82: 9.7 | JNT82: 39 | JNU82: 0.15 | JNV82: 10 | JOC82: 282.11 | JOD82: Напиток витаминнный | JOF82: 200 | JOI82: 9.7 | JOJ82: 39 | JOK82: 0.15 | JOL82: 10 | JOS82: 282.11 | JOT82: Напиток витаминнный | JOV82: 200 | JOY82: 9.7 | JOZ82: 39 | JPA82: 0.15 | JPB82: 10 | JPI82: 282.11 | JPJ82: Напиток витаминнный | JPL82: 200 | JPO82: 9.7 | JPP82: 39 | JPQ82: 0.15 | JPR82: 10 | JPY82: 282.11 | JPZ82: Напиток витаминнный | JQB82: 200 | JQE82: 9.7 | JQF82: 39 | JQG82: 0.15 | JQH82: 10 | JQO82: 282.11 | JQP82: Напиток витаминнный | JQR82: 200 | JQU82: 9.7 | JQV82: 39 | JQW82: 0.15 | JQX82: 10 | JRE82: 282.11 | JRF82: Напиток витаминнный | JRH82: 200 | JRK82: 9.7 | JRL82: 39 | JRM82: 0.15 | JRN82: 10 | JRU82: 282.11 | JRV82: Напиток витаминнный | JRX82: 200 | JSA82: 9.7 | JSB82: 39 | JSC82: 0.15 | JSD82: 10 | JSK82: 282.11 | JSL82: Напиток витаминнный | JSN82: 200 | JSQ82: 9.7 | JSR82: 39 | JSS82: 0.15 | JST82: 10 | JTA82: 282.11 | JTB82: Напиток витаминнный | JTD82: 200 | JTG82: 9.7 | JTH82: 39 | JTI82: 0.15 | JTJ82: 10 | JTQ82: 282.11 | JTR82: Напиток витаминнный | JTT82: 200 | JTW82: 9.7 | JTX82: 39 | JTY82: 0.15 | JTZ82: 10 | JUG82: 282.11 | JUH82: Напиток витаминнный | JUJ82: 200 | JUM82: 9.7 | JUN82: 39 | JUO82: 0.15 | JUP82: 10 | JUW82: 282.11 | JUX82: Напиток витаминнный | JUZ82: 200 | JVC82: 9.7 | JVD82: 39 | JVE82: 0.15 | JVF82: 10 | JVM82: 282.11 | JVN82: Напиток витаминнный | JVP82: 200 | JVS82: 9.7 | JVT82: 39 | JVU82: 0.15 | JVV82: 10 | JWC82: 282.11 | JWD82: Напиток витаминнный | JWF82: 200 | JWI82: 9.7 | JWJ82: 39 | JWK82: 0.15 | JWL82: 10 | JWS82: 282.11 | JWT82: Напиток витаминнный | JWV82: 200 | JWY82: 9.7 | JWZ82: 39 | JXA82: 0.15 | JXB82: 10 | JXI82: 282.11 | JXJ82: Напиток витаминнный | JXL82: 200 | JXO82: 9.7 | JXP82: 39 | JXQ82: 0.15 | JXR82: 10 | JXY82: 282.11 | JXZ82: Напиток витаминнный | JYB82: 200 | JYE82: 9.7 | JYF82: 39 | JYG82: 0.15 | JYH82: 10 | JYO82: 282.11 | JYP82: Напиток витаминнный | JYR82: 200 | JYU82: 9.7 | JYV82: 39 | JYW82: 0.15 | JYX82: 10 | JZE82: 282.11 | JZF82: Напиток витаминнный | JZH82: 200 | JZK82: 9.7 | JZL82: 39 | JZM82: 0.15 | JZN82: 10 | JZU82: 282.11 | JZV82: Напиток витаминнный | JZX82: 200 | KAA82: 9.7 | KAB82: 39 | KAC82: 0.15 | KAD82: 10 | KAK82: 282.11 | KAL82: Напиток витаминнный | KAN82: 200 | KAQ82: 9.7 | KAR82: 39 | KAS82: 0.15 | KAT82: 10 | KBA82: 282.11 | KBB82: Напиток витаминнный | KBD82: 200 | KBG82: 9.7 | KBH82: 39 | KBI82: 0.15 | KBJ82: 10 | KBQ82: 282.11 | KBR82: Напиток витаминнный | KBT82: 200 | KBW82: 9.7 | KBX82: 39 | KBY82: 0.15 | KBZ82: 10 | KCG82: 282.11 | KCH82: Напиток витаминнный | KCJ82: 200 | KCM82: 9.7 | KCN82: 39 | KCO82: 0.15 | KCP82: 10 | KCW82: 282.11 | KCX82: Напиток витаминнный | KCZ82: 200 | KDC82: 9.7 | KDD82: 39 | KDE82: 0.15 | KDF82: 10 | KDM82: 282.11 | KDN82: Напиток витаминнный | KDP82: 200 | KDS82: 9.7 | KDT82: 39 | KDU82: 0.15 | KDV82: 10 | KEC82: 282.11 | KED82: Напиток витаминнный | KEF82: 200 | KEI82: 9.7 | KEJ82: 39 | KEK82: 0.15 | KEL82: 10 | KES82: 282.11 | KET82: Напиток витаминнный | KEV82: 200 | KEY82: 9.7 | KEZ82: 39 | KFA82: 0.15 | KFB82: 10 | KFI82: 282.11 | KFJ82: Напиток витаминнный | KFL82: 200 | KFO82: 9.7 | KFP82: 39 | KFQ82: 0.15 | KFR82: 10 | KFY82: 282.11 | KFZ82: Напиток витаминнный | KGB82: 200 | KGE82: 9.7 | KGF82: 39 | KGG82: 0.15 | KGH82: 10 | KGO82: 282.11 | KGP82: Напиток витаминнный | KGR82: 200 | KGU82: 9.7 | KGV82: 39 | KGW82: 0.15 | KGX82: 10 | KHE82: 282.11 | KHF82: Напиток витаминнный | KHH82: 200 | KHK82: 9.7 | KHL82: 39 | KHM82: 0.15 | KHN82: 10 | KHU82: 282.11 | KHV82: Напиток витаминнный | KHX82: 200 | KIA82: 9.7 | KIB82: 39 | KIC82: 0.15 | KID82: 10 | KIK82: 282.11 | KIL82: Напиток витаминнный | KIN82: 200 | KIQ82: 9.7 | KIR82: 39 | KIS82: 0.15 | KIT82: 10 | KJA82: 282.11 | KJB82: Напиток витаминнный | KJD82: 200 | KJG82: 9.7 | KJH82: 39 | KJI82: 0.15 | KJJ82: 10 | KJQ82: 282.11 | KJR82: Напиток витаминнный | KJT82: 200 | KJW82: 9.7 | KJX82: 39 | KJY82: 0.15 | KJZ82: 10 | KKG82: 282.11 | KKH82: Напиток витаминнный | KKJ82: 200 | KKM82: 9.7 | KKN82: 39 | KKO82: 0.15 | KKP82: 10 | KKW82: 282.11 | KKX82: Напиток витаминнный | KKZ82: 200 | KLC82: 9.7 | KLD82: 39 | KLE82: 0.15 | KLF82: 10 | KLM82: 282.11 | KLN82: Напиток витаминнный | KLP82: 200 | KLS82: 9.7 | KLT82: 39 | KLU82: 0.15 | KLV82: 10 | KMC82: 282.11 | KMD82: Напиток витаминнный | KMF82: 200 | KMI82: 9.7 | KMJ82: 39 | KMK82: 0.15 | KML82: 10 | KMS82: 282.11 | KMT82: Напиток витаминнный | KMV82: 200 | KMY82: 9.7 | KMZ82: 39 | KNA82: 0.15 | KNB82: 10 | KNI82: 282.11 | KNJ82: Напиток витаминнный | KNL82: 200 | KNO82: 9.7 | KNP82: 39 | KNQ82: 0.15 | KNR82: 10 | KNY82: 282.11 | KNZ82: Напиток витаминнный | KOB82: 200 | KOE82: 9.7 | KOF82: 39 | KOG82: 0.15 | KOH82: 10 | KOO82: 282.11 | KOP82: Напиток витаминнный | KOR82: 200 | KOU82: 9.7 | KOV82: 39 | KOW82: 0.15 | KOX82: 10 | KPE82: 282.11 | KPF82: Напиток витаминнный | KPH82: 200 | KPK82: 9.7 | KPL82: 39 | KPM82: 0.15 | KPN82: 10 | KPU82: 282.11 | KPV82: Напиток витаминнный | KPX82: 200 | KQA82: 9.7 | KQB82: 39 | KQC82: 0.15 | KQD82: 10 | KQK82: 282.11 | KQL82: Напиток витаминнный | KQN82: 200 | KQQ82: 9.7 | KQR82: 39 | KQS82: 0.15 | KQT82: 10 | KRA82: 282.11 | KRB82: Напиток витаминнный | KRD82: 200 | KRG82: 9.7 | KRH82: 39 | KRI82: 0.15 | KRJ82: 10 | KRQ82: 282.11 | KRR82: Напиток витаминнный | KRT82: 200 | KRW82: 9.7 | KRX82: 39 | KRY82: 0.15 | KRZ82: 10 | KSG82: 282.11 | KSH82: Напиток витаминнный | KSJ82: 200 | KSM82: 9.7 | KSN82: 39 | KSO82: 0.15 | KSP82: 10 | KSW82: 282.11 | KSX82: Напиток витаминнный | KSZ82: 200 | KTC82: 9.7 | KTD82: 39 | KTE82: 0.15 | KTF82: 10 | KTM82: 282.11 | KTN82: Напиток витаминнный | KTP82: 200 | KTS82: 9.7 | KTT82: 39 | KTU82: 0.15 | KTV82: 10 | KUC82: 282.11 | KUD82: Напиток витаминнный | KUF82: 200 | KUI82: 9.7 | KUJ82: 39 | KUK82: 0.15 | KUL82: 10 | KUS82: 282.11 | KUT82: Напиток витаминнный | KUV82: 200 | KUY82: 9.7 | KUZ82: 39 | KVA82: 0.15 | KVB82: 10 | KVI82: 282.11 | KVJ82: Напиток витаминнный | KVL82: 200 | KVO82: 9.7 | KVP82: 39 | KVQ82: 0.15 | KVR82: 10 | KVY82: 282.11 | KVZ82: Напиток витаминнный | KWB82: 200 | KWE82: 9.7 | KWF82: 39 | KWG82: 0.15 | KWH82: 10 | KWO82: 282.11 | KWP82: Напиток витаминнный | KWR82: 200 | KWU82: 9.7 | KWV82: 39 | KWW82: 0.15 | KWX82: 10 | KXE82: 282.11 | KXF82: Напиток витаминнный | KXH82: 200 | KXK82: 9.7 | KXL82: 39 | KXM82: 0.15 | KXN82: 10 | KXU82: 282.11 | KXV82: Напиток витаминнный | KXX82: 200 | KYA82: 9.7 | KYB82: 39 | KYC82: 0.15 | KYD82: 10 | KYK82: 282.11 | KYL82: Напиток витаминнный | KYN82: 200 | KYQ82: 9.7 | KYR82: 39 | KYS82: 0.15 | KYT82: 10 | KZA82: 282.11 | KZB82: Напиток витаминнный | KZD82: 200 | KZG82: 9.7 | KZH82: 39 | KZI82: 0.15 | KZJ82: 10 | KZQ82: 282.11 | KZR82: Напиток витаминнный | KZT82: 200 | KZW82: 9.7 | KZX82: 39 | KZY82: 0.15 | KZZ82: 10 | LAG82: 282.11 | LAH82: Напиток витаминнный | LAJ82: 200 | LAM82: 9.7 | LAN82: 39 | LAO82: 0.15 | LAP82: 10 | LAW82: 282.11 | LAX82: Напиток витаминнный | LAZ82: 200 | LBC82: 9.7 | LBD82: 39 | LBE82: 0.15 | LBF82: 10 | LBM82: 282.11 | LBN82: Напиток витаминнный | LBP82: 200 | LBS82: 9.7 | LBT82: 39 | LBU82: 0.15 | LBV82: 10 | LCC82: 282.11 | LCD82: Напиток витаминнный | LCF82: 200 | LCI82: 9.7 | LCJ82: 39 | LCK82: 0.15 | LCL82: 10 | LCS82: 282.11 | LCT82: Напиток витаминнный | LCV82: 200 | LCY82: 9.7 | LCZ82: 39 | LDA82: 0.15 | LDB82: 10 | LDI82: 282.11 | LDJ82: Напиток витаминнный | LDL82: 200 | LDO82: 9.7 | LDP82: 39 | LDQ82: 0.15 | LDR82: 10 | LDY82: 282.11 | LDZ82: Напиток витаминнный | LEB82: 200 | LEE82: 9.7 | LEF82: 39 | LEG82: 0.15 | LEH82: 10 | LEO82: 282.11 | LEP82: Напиток витаминнный | LER82: 200 | LEU82: 9.7 | LEV82: 39 | LEW82: 0.15 | LEX82: 10 | LFE82: 282.11 | LFF82: Напиток витаминнный | LFH82: 200 | LFK82: 9.7 | LFL82: 39 | LFM82: 0.15 | LFN82: 10 | LFU82: 282.11 | LFV82: Напиток витаминнный | LFX82: 200 | LGA82: 9.7 | LGB82: 39 | LGC82: 0.15 | LGD82: 10 | LGK82: 282.11 | LGL82: Напиток витаминнный | LGN82: 200 | LGQ82: 9.7 | LGR82: 39 | LGS82: 0.15 | LGT82: 10 | LHA82: 282.11 | LHB82: Напиток витаминнный | LHD82: 200 | LHG82: 9.7 | LHH82: 39 | LHI82: 0.15 | LHJ82: 10 | LHQ82: 282.11 | LHR82: Напиток витаминнный | LHT82: 200 | LHW82: 9.7 | LHX82: 39 | LHY82: 0.15 | LHZ82: 10 | LIG82: 282.11 | LIH82: Напиток витаминнный | LIJ82: 200 | LIM82: 9.7 | LIN82: 39 | LIO82: 0.15 | LIP82: 10 | LIW82: 282.11 | LIX82: Напиток витаминнный | LIZ82: 200 | LJC82: 9.7 | LJD82: 39 | LJE82: 0.15 | LJF82: 10 | LJM82: 282.11 | LJN82: Напиток витаминнный | LJP82: 200 | LJS82: 9.7 | LJT82: 39 | LJU82: 0.15 | LJV82: 10 | LKC82: 282.11 | LKD82: Напиток витаминнный | LKF82: 200 | LKI82: 9.7 | LKJ82: 39 | LKK82: 0.15 | LKL82: 10 | LKS82: 282.11 | LKT82: Напиток витаминнный | LKV82: 200 | LKY82: 9.7 | LKZ82: 39 | LLA82: 0.15 | LLB82: 10 | LLI82: 282.11 | LLJ82: Напиток витаминнный | LLL82: 200 | LLO82: 9.7 | LLP82: 39 | LLQ82: 0.15 | LLR82: 10 | LLY82: 282.11 | LLZ82: Напиток витаминнный | LMB82: 200 | LME82: 9.7 | LMF82: 39 | LMG82: 0.15 | LMH82: 10 | LMO82: 282.11 | LMP82: Напиток витаминнный | LMR82: 200 | LMU82: 9.7 | LMV82: 39 | LMW82: 0.15 | LMX82: 10 | LNE82: 282.11 | LNF82: Напиток витаминнный | LNH82: 200 | LNK82: 9.7 | LNL82: 39 | LNM82: 0.15 | LNN82: 10 | LNU82: 282.11 | LNV82: Напиток витаминнный | LNX82: 200 | LOA82: 9.7 | LOB82: 39 | LOC82: 0.15 | LOD82: 10 | LOK82: 282.11 | LOL82: Напиток витаминнный | LON82: 200 | LOQ82: 9.7 | LOR82: 39 | LOS82: 0.15 | LOT82: 10 | LPA82: 282.11 | LPB82: Напиток витаминнный | LPD82: 200 | LPG82: 9.7 | LPH82: 39 | LPI82: 0.15 | LPJ82: 10 | LPQ82: 282.11 | LPR82: Напиток витаминнный | LPT82: 200 | LPW82: 9.7 | LPX82: 39 | LPY82: 0.15 | LPZ82: 10 | LQG82: 282.11 | LQH82: Напиток витаминнный | LQJ82: 200 | LQM82: 9.7 | LQN82: 39 | LQO82: 0.15 | LQP82: 10 | LQW82: 282.11 | LQX82: Напиток витаминнный | LQZ82: 200 | LRC82: 9.7 | LRD82: 39 | LRE82: 0.15 | LRF82: 10 | LRM82: 282.11 | LRN82: Напиток витаминнный | LRP82: 200 | LRS82: 9.7 | LRT82: 39 | LRU82: 0.15 | LRV82: 10 | LSC82: 282.11 | LSD82: Напиток витаминнный | LSF82: 200 | LSI82: 9.7 | LSJ82: 39 | LSK82: 0.15 | LSL82: 10 | LSS82: 282.11 | LST82: Напиток витаминнный | LSV82: 200 | LSY82: 9.7 | LSZ82: 39 | LTA82: 0.15 | LTB82: 10 | LTI82: 282.11 | LTJ82: Напиток витаминнный | LTL82: 200 | LTO82: 9.7 | LTP82: 39 | LTQ82: 0.15 | LTR82: 10 | LTY82: 282.11 | LTZ82: Напиток витаминнный | LUB82: 200 | LUE82: 9.7 | LUF82: 39 | LUG82: 0.15 | LUH82: 10 | LUO82: 282.11 | LUP82: Напиток витаминнный | LUR82: 200 | LUU82: 9.7 | LUV82: 39 | LUW82: 0.15 | LUX82: 10 | LVE82: 282.11 | LVF82: Напиток витаминнный | LVH82: 200 | LVK82: 9.7 | LVL82: 39 | LVM82: 0.15 | LVN82: 10 | LVU82: 282.11 | LVV82: Напиток витаминнный | LVX82: 200 | LWA82: 9.7 | LWB82: 39 | LWC82: 0.15 | LWD82: 10 | LWK82: 282.11 | LWL82: Напиток витаминнный | LWN82: 200 | LWQ82: 9.7 | LWR82: 39 | LWS82: 0.15 | LWT82: 10 | LXA82: 282.11 | LXB82: Напиток витаминнный | LXD82: 200 | LXG82: 9.7 | LXH82: 39 | LXI82: 0.15 | LXJ82: 10 | LXQ82: 282.11 | LXR82: Напиток витаминнный | LXT82: 200 | LXW82: 9.7 | LXX82: 39 | LXY82: 0.15 | LXZ82: 10 | LYG82: 282.11 | LYH82: Напиток витаминнный | LYJ82: 200 | LYM82: 9.7 | LYN82: 39 | LYO82: 0.15 | LYP82: 10 | LYW82: 282.11 | LYX82: Напиток витаминнный | LYZ82: 200 | LZC82: 9.7 | LZD82: 39 | LZE82: 0.15 | LZF82: 10 | LZM82: 282.11 | LZN82: Напиток витаминнный | LZP82: 200 | LZS82: 9.7 | LZT82: 39 | LZU82: 0.15 | LZV82: 10 | MAC82: 282.11 | MAD82: Напиток витаминнный | MAF82: 200 | MAI82: 9.7 | MAJ82: 39 | MAK82: 0.15 | MAL82: 10 | MAS82: 282.11 | MAT82: Напиток витаминнный | MAV82: 200 | MAY82: 9.7 | MAZ82: 39 | MBA82: 0.15 | MBB82: 10 | MBI82: 282.11 | MBJ82: Напиток витаминнный | MBL82: 200 | MBO82: 9.7 | MBP82: 39 | MBQ82: 0.15 | MBR82: 10 | MBY82: 282.11 | MBZ82: Напиток витаминнный | MCB82: 200 | MCE82: 9.7 | MCF82: 39 | MCG82: 0.15 | MCH82: 10 | MCO82: 282.11 | MCP82: Напиток витаминнный | MCR82: 200 | MCU82: 9.7 | MCV82: 39 | MCW82: 0.15 | MCX82: 10 | MDE82: 282.11 | MDF82: Напиток витаминнный | MDH82: 200 | MDK82: 9.7 | MDL82: 39 | MDM82: 0.15 | MDN82: 10 | MDU82: 282.11 | MDV82: Напиток витаминнный | MDX82: 200 | MEA82: 9.7 | MEB82: 39 | MEC82: 0.15 | MED82: 10 | MEK82: 282.11 | MEL82: Напиток витаминнный | MEN82: 200 | MEQ82: 9.7 | MER82: 39 | MES82: 0.15 | MET82: 10 | MFA82: 282.11 | MFB82: Напиток витаминнный | MFD82: 200 | MFG82: 9.7 | MFH82: 39 | MFI82: 0.15 | MFJ82: 10 | MFQ82: 282.11 | MFR82: Напиток витаминнный | MFT82: 200 | MFW82: 9.7 | MFX82: 39 | MFY82: 0.15 | MFZ82: 10 | MGG82: 282.11 | MGH82: Напиток витаминнный | MGJ82: 200 | MGM82: 9.7 | MGN82: 39 | MGO82: 0.15 | MGP82: 10 | MGW82: 282.11 | MGX82: Напиток витаминнный | MGZ82: 200 | MHC82: 9.7 | MHD82: 39 | MHE82: 0.15 | MHF82: 10 | MHM82: 282.11 | MHN82: Напиток витаминнный | MHP82: 200 | MHS82: 9.7 | MHT82: 39 | MHU82: 0.15 | MHV82: 10 | MIC82: 282.11 | MID82: Напиток витаминнный | MIF82: 200 | MII82: 9.7 | MIJ82: 39 | MIK82: 0.15 | MIL82: 10 | MIS82: 282.11 | MIT82: Напиток витаминнный | MIV82: 200 | MIY82: 9.7 | MIZ82: 39 | MJA82: 0.15 | MJB82: 10 | MJI82: 282.11 | MJJ82: Напиток витаминнный | MJL82: 200 | MJO82: 9.7 | MJP82: 39 | MJQ82: 0.15 | MJR82: 10 | MJY82: 282.11 | MJZ82: Напиток витаминнный | MKB82: 200 | MKE82: 9.7 | MKF82: 39 | MKG82: 0.15 | MKH82: 10 | MKO82: 282.11 | MKP82: Напиток витаминнный | MKR82: 200 | MKU82: 9.7 | MKV82: 39 | MKW82: 0.15 | MKX82: 10 | MLE82: 282.11 | MLF82: Напиток витаминнный | MLH82: 200 | MLK82: 9.7 | MLL82: 39 | MLM82: 0.15 | MLN82: 10 | MLU82: 282.11 | MLV82: Напиток витаминнный | MLX82: 200 | MMA82: 9.7 | MMB82: 39 | MMC82: 0.15 | MMD82: 10 | MMK82: 282.11 | MML82: Напиток витаминнный | MMN82: 200 | MMQ82: 9.7 | MMR82: 39 | MMS82: 0.15 | MMT82: 10 | MNA82: 282.11 | MNB82: Напиток витаминнный | MND82: 200 | MNG82: 9.7 | MNH82: 39 | MNI82: 0.15 | MNJ82: 10 | MNQ82: 282.11 | MNR82: Напиток витаминнный | MNT82: 200 | MNW82: 9.7 | MNX82: 39 | MNY82: 0.15 | MNZ82: 10 | MOG82: 282.11 | MOH82: Напиток витаминнный | MOJ82: 200 | MOM82: 9.7 | MON82: 39 | MOO82: 0.15 | MOP82: 10 | MOW82: 282.11 | MOX82: Напиток витаминнный | MOZ82: 200 | MPC82: 9.7 | MPD82: 39 | MPE82: 0.15 | MPF82: 10 | MPM82: 282.11 | MPN82: Напиток витаминнный | MPP82: 200 | MPS82: 9.7 | MPT82: 39 | MPU82: 0.15 | MPV82: 10 | MQC82: 282.11 | MQD82: Напиток витаминнный | MQF82: 200 | MQI82: 9.7 | MQJ82: 39 | MQK82: 0.15 | MQL82: 10 | MQS82: 282.11 | MQT82: Напиток витаминнный | MQV82: 200 | MQY82: 9.7 | MQZ82: 39 | MRA82: 0.15 | MRB82: 10 | MRI82: 282.11 | MRJ82: Напиток витаминнный | MRL82: 200 | MRO82: 9.7 | MRP82: 39 | MRQ82: 0.15 | MRR82: 10 | MRY82: 282.11 | MRZ82: Напиток витаминнный | MSB82: 200 | MSE82: 9.7 | MSF82: 39 | MSG82: 0.15 | MSH82: 10 | MSO82: 282.11 | MSP82: Напиток витаминнный | MSR82: 200 | MSU82: 9.7 | MSV82: 39 | MSW82: 0.15 | MSX82: 10 | MTE82: 282.11 | MTF82: Напиток витаминнный | MTH82: 200 | MTK82: 9.7 | MTL82: 39 | MTM82: 0.15 | MTN82: 10 | MTU82: 282.11 | MTV82: Напиток витаминнный | MTX82: 200 | MUA82: 9.7 | MUB82: 39 | MUC82: 0.15 | MUD82: 10 | MUK82: 282.11 | MUL82: Напиток витаминнный | MUN82: 200 | MUQ82: 9.7 | MUR82: 39 | MUS82: 0.15 | MUT82: 10 | MVA82: 282.11 | MVB82: Напиток витаминнный | MVD82: 200 | MVG82: 9.7 | MVH82: 39 | MVI82: 0.15 | MVJ82: 10 | MVQ82: 282.11 | MVR82: Напиток витаминнный | MVT82: 200 | MVW82: 9.7 | MVX82: 39 | MVY82: 0.15 | MVZ82: 10 | MWG82: 282.11 | MWH82: Напиток витаминнный | MWJ82: 200 | MWM82: 9.7 | MWN82: 39 | MWO82: 0.15 | MWP82: 10 | MWW82: 282.11 | MWX82: Напиток витаминнный | MWZ82: 200 | MXC82: 9.7 | MXD82: 39 | MXE82: 0.15 | MXF82: 10 | MXM82: 282.11 | MXN82: Напиток витаминнный | MXP82: 200 | MXS82: 9.7 | MXT82: 39 | MXU82: 0.15 | MXV82: 10 | MYC82: 282.11 | MYD82: Напиток витаминнный | MYF82: 200 | MYI82: 9.7 | MYJ82: 39 | MYK82: 0.15 | MYL82: 10 | MYS82: 282.11 | MYT82: Напиток витаминнный | MYV82: 200 | MYY82: 9.7 | MYZ82: 39 | MZA82: 0.15 | MZB82: 10 | MZI82: 282.11 | MZJ82: Напиток витаминнный | MZL82: 200 | MZO82: 9.7 | MZP82: 39 | MZQ82: 0.15 | MZR82: 10 | MZY82: 282.11 | MZZ82: Напиток витаминнный | NAB82: 200 | NAE82: 9.7 | NAF82: 39 | NAG82: 0.15 | NAH82: 10 | NAO82: 282.11 | NAP82: Напиток витаминнный | NAR82: 200 | NAU82: 9.7 | NAV82: 39 | NAW82: 0.15 | NAX82: 10 | NBE82: 282.11 | NBF82: Напиток витаминнный | NBH82: 200 | NBK82: 9.7 | NBL82: 39 | NBM82: 0.15 | NBN82: 10 | NBU82: 282.11 | NBV82: Напиток витаминнный | NBX82: 200 | NCA82: 9.7 | NCB82: 39 | NCC82: 0.15 | NCD82: 10 | NCK82: 282.11 | NCL82: Напиток витаминнный | NCN82: 200 | NCQ82: 9.7 | NCR82: 39 | NCS82: 0.15 | NCT82: 10 | NDA82: 282.11 | NDB82: Напиток витаминнный | NDD82: 200 | NDG82: 9.7 | NDH82: 39 | NDI82: 0.15 | NDJ82: 10 | NDQ82: 282.11 | NDR82: Напиток витаминнный | NDT82: 200 | NDW82: 9.7 | NDX82: 39 | NDY82: 0.15 | NDZ82: 10 | NEG82: 282.11 | NEH82: Напиток витаминнный | NEJ82: 200 | NEM82: 9.7 | NEN82: 39 | NEO82: 0.15 | NEP82: 10 | NEW82: 282.11 | NEX82: Напиток витаминнный | NEZ82: 200 | NFC82: 9.7 | NFD82: 39 | NFE82: 0.15 | NFF82: 10 | NFM82: 282.11 | NFN82: Напиток витаминнный | NFP82: 200 | NFS82: 9.7 | NFT82: 39 | NFU82: 0.15 | NFV82: 10 | NGC82: 282.11 | NGD82: Напиток витаминнный | NGF82: 200 | NGI82: 9.7 | NGJ82: 39 | NGK82: 0.15 | NGL82: 10 | NGS82: 282.11 | NGT82: Напиток витаминнный | NGV82: 200 | NGY82: 9.7 | NGZ82: 39 | NHA82: 0.15 | NHB82: 10 | NHI82: 282.11 | NHJ82: Напиток витаминнный | NHL82: 200 | NHO82: 9.7 | NHP82: 39 | NHQ82: 0.15 | NHR82: 10 | NHY82: 282.11 | NHZ82: Напиток витаминнный | NIB82: 200 | NIE82: 9.7 | NIF82: 39 | NIG82: 0.15 | NIH82: 10 | NIO82: 282.11 | NIP82: Напиток витаминнный | NIR82: 200 | NIU82: 9.7 | NIV82: 39 | NIW82: 0.15 | NIX82: 10 | NJE82: 282.11 | NJF82: Напиток витаминнный | NJH82: 200 | NJK82: 9.7 | NJL82: 39 | NJM82: 0.15 | NJN82: 10 | NJU82: 282.11 | NJV82: Напиток витаминнный | NJX82: 200 | NKA82: 9.7 | NKB82: 39 | NKC82: 0.15 | NKD82: 10 | NKK82: 282.11 | NKL82: Напиток витаминнный | NKN82: 200 | NKQ82: 9.7 | NKR82: 39 | NKS82: 0.15 | NKT82: 10 | NLA82: 282.11 | NLB82: Напиток витаминнный | NLD82: 200 | NLG82: 9.7 | NLH82: 39 | NLI82: 0.15 | NLJ82: 10 | NLQ82: 282.11 | NLR82: Напиток витаминнный | NLT82: 200 | NLW82: 9.7 | NLX82: 39 | NLY82: 0.15 | NLZ82: 10 | NMG82: 282.11 | NMH82: Напиток витаминнный | NMJ82: 200 | NMM82: 9.7 | NMN82: 39 | NMO82: 0.15 | NMP82: 10 | NMW82: 282.11 | NMX82: Напиток витаминнный | NMZ82: 200 | NNC82: 9.7 | NND82: 39 | NNE82: 0.15 | NNF82: 10 | NNM82: 282.11 | NNN82: Напиток витаминнный | NNP82: 200 | NNS82: 9.7 | NNT82: 39 | NNU82: 0.15 | NNV82: 10 | NOC82: 282.11 | NOD82: Напиток витаминнный | NOF82: 200 | NOI82: 9.7 | NOJ82: 39 | NOK82: 0.15 | NOL82: 10 | NOS82: 282.11 | NOT82: Напиток витаминнный | NOV82: 200 | NOY82: 9.7 | NOZ82: 39 | NPA82: 0.15 | NPB82: 10 | NPI82: 282.11 | NPJ82: Напиток витаминнный | NPL82: 200 | NPO82: 9.7 | NPP82: 39 | NPQ82: 0.15 | NPR82: 10 | NPY82: 282.11 | NPZ82: Напиток витаминнный | NQB82: 200 | NQE82: 9.7 | NQF82: 39 | NQG82: 0.15 | NQH82: 10 | NQO82: 282.11 | NQP82: Напиток витаминнный | NQR82: 200 | NQU82: 9.7 | NQV82: 39 | NQW82: 0.15 | NQX82: 10 | NRE82: 282.11 | NRF82: Напиток витаминнный | NRH82: 200 | NRK82: 9.7 | NRL82: 39 | NRM82: 0.15 | NRN82: 10 | NRU82: 282.11 | NRV82: Напиток витаминнный | NRX82: 200 | NSA82: 9.7 | NSB82: 39 | NSC82: 0.15 | NSD82: 10 | NSK82: 282.11 | NSL82: Напиток витаминнный | NSN82: 200 | NSQ82: 9.7 | NSR82: 39 | NSS82: 0.15 | NST82: 10 | NTA82: 282.11 | NTB82: Напиток витаминнный | NTD82: 200 | NTG82: 9.7 | NTH82: 39 | NTI82: 0.15 | NTJ82: 10 | NTQ82: 282.11 | NTR82: Напиток витаминнный | NTT82: 200 | NTW82: 9.7 | NTX82: 39 | NTY82: 0.15 | NTZ82: 10 | NUG82: 282.11 | NUH82: Напиток витаминнный | NUJ82: 200 | NUM82: 9.7 | NUN82: 39 | NUO82: 0.15 | NUP82: 10 | NUW82: 282.11 | NUX82: Напиток витаминнный | NUZ82: 200 | NVC82: 9.7 | NVD82: 39 | NVE82: 0.15 | NVF82: 10 | NVM82: 282.11 | NVN82: Напиток витаминнный | NVP82: 200 | NVS82: 9.7 | NVT82: 39 | NVU82: 0.15 | NVV82: 10 | NWC82: 282.11 | NWD82: Напиток витаминнный | NWF82: 200 | NWI82: 9.7 | NWJ82: 39 | NWK82: 0.15 | NWL82: 10 | NWS82: 282.11 | NWT82: Напиток витаминнный | NWV82: 200 | NWY82: 9.7 | NWZ82: 39 | NXA82: 0.15 | NXB82: 10 | NXI82: 282.11 | NXJ82: Напиток витаминнный | NXL82: 200 | NXO82: 9.7 | NXP82: 39 | NXQ82: 0.15 | NXR82: 10 | NXY82: 282.11 | NXZ82: Напиток витаминнный | NYB82: 200 | NYE82: 9.7 | NYF82: 39 | NYG82: 0.15 | NYH82: 10 | NYO82: 282.11 | NYP82: Напиток витаминнный | NYR82: 200 | NYU82: 9.7 | NYV82: 39 | NYW82: 0.15 | NYX82: 10 | NZE82: 282.11 | NZF82: Напиток витаминнный | NZH82: 200 | NZK82: 9.7 | NZL82: 39 | NZM82: 0.15 | NZN82: 10 | NZU82: 282.11 | NZV82: Напиток витаминнный | NZX82: 200 | OAA82: 9.7 | OAB82: 39 | OAC82: 0.15 | OAD82: 10 | OAK82: 282.11 | OAL82: Напиток витаминнный | OAN82: 200 | OAQ82: 9.7 | OAR82: 39 | OAS82: 0.15 | OAT82: 10 | OBA82: 282.11 | OBB82: Напиток витаминнный | OBD82: 200 | OBG82: 9.7 | OBH82: 39 | OBI82: 0.15 | OBJ82: 10 | OBQ82: 282.11 | OBR82: Напиток витаминнный | OBT82: 200 | OBW82: 9.7 | OBX82: 39 | OBY82: 0.15 | OBZ82: 10 | OCG82: 282.11 | OCH82: Напиток витаминнный | OCJ82: 200 | OCM82: 9.7 | OCN82: 39 | OCO82: 0.15 | OCP82: 10 | OCW82: 282.11 | OCX82: Напиток витаминнный | OCZ82: 200 | ODC82: 9.7 | ODD82: 39 | ODE82: 0.15 | ODF82: 10 | ODM82: 282.11 | ODN82: Напиток витаминнный | ODP82: 200 | ODS82: 9.7 | ODT82: 39 | ODU82: 0.15 | ODV82: 10 | OEC82: 282.11 | OED82: Напиток витаминнный | OEF82: 200 | OEI82: 9.7 | OEJ82: 39 | OEK82: 0.15 | OEL82: 10 | OES82: 282.11 | OET82: Напиток витаминнный | OEV82: 200 | OEY82: 9.7 | OEZ82: 39 | OFA82: 0.15 | OFB82: 10 | OFI82: 282.11 | OFJ82: Напиток витаминнный | OFL82: 200 | OFO82: 9.7 | OFP82: 39 | OFQ82: 0.15 | OFR82: 10 | OFY82: 282.11 | OFZ82: Напиток витаминнный | OGB82: 200 | OGE82: 9.7 | OGF82: 39 | OGG82: 0.15 | OGH82: 10 | OGO82: 282.11 | OGP82: Напиток витаминнный | OGR82: 200 | OGU82: 9.7 | OGV82: 39 | OGW82: 0.15 | OGX82: 10 | OHE82: 282.11 | OHF82: Напиток витаминнный | OHH82: 200 | OHK82: 9.7 | OHL82: 39 | OHM82: 0.15 | OHN82: 10 | OHU82: 282.11 | OHV82: Напиток витаминнный | OHX82: 200 | OIA82: 9.7 | OIB82: 39 | OIC82: 0.15 | OID82: 10 | OIK82: 282.11 | OIL82: Напиток витаминнный | OIN82: 200 | OIQ82: 9.7 | OIR82: 39 | OIS82: 0.15 | OIT82: 10 | OJA82: 282.11 | OJB82: Напиток витаминнный | OJD82: 200 | OJG82: 9.7 | OJH82: 39 | OJI82: 0.15 | OJJ82: 10 | OJQ82: 282.11 | OJR82: Напиток витаминнный | OJT82: 200 | OJW82: 9.7 | OJX82: 39 | OJY82: 0.15 | OJZ82: 10 | OKG82: 282.11 | OKH82: Напиток витаминнный | OKJ82: 200 | OKM82: 9.7 | OKN82: 39 | OKO82: 0.15 | OKP82: 10 | OKW82: 282.11 | OKX82: Напиток витаминнный | OKZ82: 200 | OLC82: 9.7 | OLD82: 39 | OLE82: 0.15 | OLF82: 10 | OLM82: 282.11 | OLN82: Напиток витаминнный | OLP82: 200 | OLS82: 9.7 | OLT82: 39 | OLU82: 0.15 | OLV82: 10 | OMC82: 282.11 | OMD82: Напиток витаминнный | OMF82: 200 | OMI82: 9.7 | OMJ82: 39 | OMK82: 0.15 | OML82: 10 | OMS82: 282.11 | OMT82: Напиток витаминнный | OMV82: 200 | OMY82: 9.7 | OMZ82: 39 | ONA82: 0.15 | ONB82: 10 | ONI82: 282.11 | ONJ82: Напиток витаминнный | ONL82: 200 | ONO82: 9.7 | ONP82: 39 | ONQ82: 0.15 | ONR82: 10 | ONY82: 282.11 | ONZ82: Напиток витаминнный | OOB82: 200 | OOE82: 9.7 | OOF82: 39 | OOG82: 0.15 | OOH82: 10 | OOO82: 282.11 | OOP82: Напиток витаминнный | OOR82: 200 | OOU82: 9.7 | OOV82: 39 | OOW82: 0.15 | OOX82: 10 | OPE82: 282.11 | OPF82: Напиток витаминнный | OPH82: 200 | OPK82: 9.7 | OPL82: 39 | OPM82: 0.15 | OPN82: 10 | OPU82: 282.11 | OPV82: Напиток витаминнный | OPX82: 200 | OQA82: 9.7 | OQB82: 39 | OQC82: 0.15 | OQD82: 10 | OQK82: 282.11 | OQL82: Напиток витаминнный | OQN82: 200 | OQQ82: 9.7 | OQR82: 39 | OQS82: 0.15 | OQT82: 10 | ORA82: 282.11 | ORB82: Напиток витаминнный | ORD82: 200 | ORG82: 9.7 | ORH82: 39 | ORI82: 0.15 | ORJ82: 10 | ORQ82: 282.11 | ORR82: Напиток витаминнный | ORT82: 200 | ORW82: 9.7 | ORX82: 39 | ORY82: 0.15 | ORZ82: 10 | OSG82: 282.11 | OSH82: Напиток витаминнный | OSJ82: 200 | OSM82: 9.7 | OSN82: 39 | OSO82: 0.15 | OSP82: 10 | OSW82: 282.11 | OSX82: Напиток витаминнный | OSZ82: 200 | OTC82: 9.7 | OTD82: 39 | OTE82: 0.15 | OTF82: 10 | OTM82: 282.11 | OTN82: Напиток витаминнный | OTP82: 200 | OTS82: 9.7 | OTT82: 39 | OTU82: 0.15 | OTV82: 10 | OUC82: 282.11 | OUD82: Напиток витаминнный | OUF82: 200 | OUI82: 9.7 | OUJ82: 39 | OUK82: 0.15 | OUL82: 10 | OUS82: 282.11 | OUT82: Напиток витаминнный | OUV82: 200 | OUY82: 9.7 | OUZ82: 39 | OVA82: 0.15 | OVB82: 10 | OVI82: 282.11 | OVJ82: Напиток витаминнный | OVL82: 200 | OVO82: 9.7 | OVP82: 39 | OVQ82: 0.15 | OVR82: 10 | OVY82: 282.11 | OVZ82: Напиток витаминнный | OWB82: 200 | OWE82: 9.7 | OWF82: 39 | OWG82: 0.15 | OWH82: 10 | OWO82: 282.11 | OWP82: Напиток витаминнный | OWR82: 200 | OWU82: 9.7 | OWV82: 39 | OWW82: 0.15 | OWX82: 10 | OXE82: 282.11 | OXF82: Напиток витаминнный | OXH82: 200 | OXK82: 9.7 | OXL82: 39 | OXM82: 0.15 | OXN82: 10 | OXU82: 282.11 | OXV82: Напиток витаминнный | OXX82: 200 | OYA82: 9.7 | OYB82: 39 | OYC82: 0.15 | OYD82: 10 | OYK82: 282.11 | OYL82: Напиток витаминнный | OYN82: 200 | OYQ82: 9.7 | OYR82: 39 | OYS82: 0.15 | OYT82: 10 | OZA82: 282.11 | OZB82: Напиток витаминнный | OZD82: 200 | OZG82: 9.7 | OZH82: 39 | OZI82: 0.15 | OZJ82: 10 | OZQ82: 282.11 | OZR82: Напиток витаминнный | OZT82: 200 | OZW82: 9.7 | OZX82: 39 | OZY82: 0.15 | OZZ82: 10 | PAG82: 282.11 | PAH82: Напиток витаминнный | PAJ82: 200 | PAM82: 9.7 | PAN82: 39 | PAO82: 0.15 | PAP82: 10 | PAW82: 282.11 | PAX82: Напиток витаминнный | PAZ82: 200 | PBC82: 9.7 | PBD82: 39 | PBE82: 0.15 | PBF82: 10 | PBM82: 282.11 | PBN82: Напиток витаминнный | PBP82: 200 | PBS82: 9.7 | PBT82: 39 | PBU82: 0.15 | PBV82: 10 | PCC82: 282.11 | PCD82: Напиток витаминнный | PCF82: 200 | PCI82: 9.7 | PCJ82: 39 | PCK82: 0.15 | PCL82: 10 | PCS82: 282.11 | PCT82: Напиток витаминнный | PCV82: 200 | PCY82: 9.7 | PCZ82: 39 | PDA82: 0.15 | PDB82: 10 | PDI82: 282.11 | PDJ82: Напиток витаминнный | PDL82: 200 | PDO82: 9.7 | PDP82: 39 | PDQ82: 0.15 | PDR82: 10 | PDY82: 282.11 | PDZ82: Напиток витаминнный | PEB82: 200 | PEE82: 9.7 | PEF82: 39 | PEG82: 0.15 | PEH82: 10 | PEO82: 282.11 | PEP82: Напиток витаминнный | PER82: 200 | PEU82: 9.7 | PEV82: 39 | PEW82: 0.15 | PEX82: 10 | PFE82: 282.11 | PFF82: Напиток витаминнный | PFH82: 200 | PFK82: 9.7 | PFL82: 39 | PFM82: 0.15 | PFN82: 10 | PFU82: 282.11 | PFV82: Напиток витаминнный | PFX82: 200 | PGA82: 9.7 | PGB82: 39 | PGC82: 0.15 | PGD82: 10 | PGK82: 282.11 | PGL82: Напиток витаминнный | PGN82: 200 | PGQ82: 9.7 | PGR82: 39 | PGS82: 0.15 | PGT82: 10 | PHA82: 282.11 | PHB82: Напиток витаминнный | PHD82: 200 | PHG82: 9.7 | PHH82: 39 | PHI82: 0.15 | PHJ82: 10 | PHQ82: 282.11 | PHR82: Напиток витаминнный | PHT82: 200 | PHW82: 9.7 | PHX82: 39 | PHY82: 0.15 | PHZ82: 10 | PIG82: 282.11 | PIH82: Напиток витаминнный | PIJ82: 200 | PIM82: 9.7 | PIN82: 39 | PIO82: 0.15 | PIP82: 10 | PIW82: 282.11 | PIX82: Напиток витаминнный | PIZ82: 200 | PJC82: 9.7 | PJD82: 39 | PJE82: 0.15 | PJF82: 10 | PJM82: 282.11 | PJN82: Напиток витаминнный | PJP82: 200 | PJS82: 9.7 | PJT82: 39 | PJU82: 0.15 | PJV82: 10 | PKC82: 282.11 | PKD82: Напиток витаминнный | PKF82: 200 | PKI82: 9.7 | PKJ82: 39 | PKK82: 0.15 | PKL82: 10 | PKS82: 282.11 | PKT82: Напиток витаминнный | PKV82: 200 | PKY82: 9.7 | PKZ82: 39 | PLA82: 0.15 | PLB82: 10 | PLI82: 282.11 | PLJ82: Напиток витаминнный | PLL82: 200 | PLO82: 9.7 | PLP82: 39 | PLQ82: 0.15 | PLR82: 10 | PLY82: 282.11 | PLZ82: Напиток витаминнный | PMB82: 200 | PME82: 9.7 | PMF82: 39 | PMG82: 0.15 | PMH82: 10 | PMO82: 282.11 | PMP82: Напиток витаминнный | PMR82: 200 | PMU82: 9.7 | PMV82: 39 | PMW82: 0.15 | PMX82: 10 | PNE82: 282.11 | PNF82: Напиток витаминнный | PNH82: 200 | PNK82: 9.7 | PNL82: 39 | PNM82: 0.15 | PNN82: 10 | PNU82: 282.11 | PNV82: Напиток витаминнный | PNX82: 200 | POA82: 9.7 | POB82: 39 | POC82: 0.15 | POD82: 10 | POK82: 282.11 | POL82: Напиток витаминнный | PON82: 200 | POQ82: 9.7 | POR82: 39 | POS82: 0.15 | POT82: 10 | PPA82: 282.11 | PPB82: Напиток витаминнный | PPD82: 200 | PPG82: 9.7 | PPH82: 39 | PPI82: 0.15 | PPJ82: 10 | PPQ82: 282.11 | PPR82: Напиток витаминнный | PPT82: 200 | PPW82: 9.7 | PPX82: 39 | PPY82: 0.15 | PPZ82: 10 | PQG82: 282.11 | PQH82: Напиток витаминнный | PQJ82: 200 | PQM82: 9.7 | PQN82: 39 | PQO82: 0.15 | PQP82: 10 | PQW82: 282.11 | PQX82: Напиток витаминнный | PQZ82: 200 | PRC82: 9.7 | PRD82: 39 | PRE82: 0.15 | PRF82: 10 | PRM82: 282.11 | PRN82: Напиток витаминнный | PRP82: 200 | PRS82: 9.7 | PRT82: 39 | PRU82: 0.15 | PRV82: 10 | PSC82: 282.11 | PSD82: Напиток витаминнный | PSF82: 200 | PSI82: 9.7 | PSJ82: 39 | PSK82: 0.15 | PSL82: 10 | PSS82: 282.11 | PST82: Напиток витаминнный | PSV82: 200 | PSY82: 9.7 | PSZ82: 39 | PTA82: 0.15 | PTB82: 10 | PTI82: 282.11 | PTJ82: Напиток витаминнный | PTL82: 200 | PTO82: 9.7 | PTP82: 39 | PTQ82: 0.15 | PTR82: 10 | PTY82: 282.11 | PTZ82: Напиток витаминнный | PUB82: 200 | PUE82: 9.7 | PUF82: 39 | PUG82: 0.15 | PUH82: 10 | PUO82: 282.11 | PUP82: Напиток витаминнный | PUR82: 200 | PUU82: 9.7 | PUV82: 39 | PUW82: 0.15 | PUX82: 10 | PVE82: 282.11 | PVF82: Напиток витаминнный | PVH82: 200 | PVK82: 9.7 | PVL82: 39 | PVM82: 0.15 | PVN82: 10 | PVU82: 282.11 | PVV82: Напиток витаминнный | PVX82: 200 | PWA82: 9.7 | PWB82: 39 | PWC82: 0.15 | PWD82: 10 | PWK82: 282.11 | PWL82: Напиток витаминнный | PWN82: 200 | PWQ82: 9.7 | PWR82: 39 | PWS82: 0.15 | PWT82: 10 | PXA82: 282.11 | PXB82: Напиток витаминнный | PXD82: 200 | PXG82: 9.7 | PXH82: 39 | PXI82: 0.15 | PXJ82: 10 | PXQ82: 282.11 | PXR82: Напиток витаминнный | PXT82: 200 | PXW82: 9.7 | PXX82: 39 | PXY82: 0.15 | PXZ82: 10 | PYG82: 282.11 | PYH82: Напиток витаминнный | PYJ82: 200 | PYM82: 9.7 | PYN82: 39 | PYO82: 0.15 | PYP82: 10 | PYW82: 282.11 | PYX82: Напиток витаминнный | PYZ82: 200 | PZC82: 9.7 | PZD82: 39 | PZE82: 0.15 | PZF82: 10 | PZM82: 282.11 | PZN82: Напиток витаминнный | PZP82: 200 | PZS82: 9.7 | PZT82: 39 | PZU82: 0.15 | PZV82: 10 | QAC82: 282.11 | QAD82: Напиток витаминнный | QAF82: 200 | QAI82: 9.7 | QAJ82: 39 | QAK82: 0.15 | QAL82: 10 | QAS82: 282.11 | QAT82: Напиток витаминнный | QAV82: 200 | QAY82: 9.7 | QAZ82: 39 | QBA82: 0.15 | QBB82: 10 | QBI82: 282.11 | QBJ82: Напиток витаминнный | QBL82: 200 | QBO82: 9.7 | QBP82: 39 | QBQ82: 0.15 | QBR82: 10 | QBY82: 282.11 | QBZ82: Напиток витаминнный | QCB82: 200 | QCE82: 9.7 | QCF82: 39 | QCG82: 0.15 | QCH82: 10 | QCO82: 282.11 | QCP82: Напиток витаминнный | QCR82: 200 | QCU82: 9.7 | QCV82: 39 | QCW82: 0.15 | QCX82: 10 | QDE82: 282.11 | QDF82: Напиток витаминнный | QDH82: 200 | QDK82: 9.7 | QDL82: 39 | QDM82: 0.15 | QDN82: 10 | QDU82: 282.11 | QDV82: Напиток витаминнный | QDX82: 200 | QEA82: 9.7 | QEB82: 39 | QEC82: 0.15 | QED82: 10 | QEK82: 282.11 | QEL82: Напиток витаминнный | QEN82: 200 | QEQ82: 9.7 | QER82: 39 | QES82: 0.15 | QET82: 10 | QFA82: 282.11 | QFB82: Напиток витаминнный | QFD82: 200 | QFG82: 9.7 | QFH82: 39 | QFI82: 0.15 | QFJ82: 10 | QFQ82: 282.11 | QFR82: Напиток витаминнный | QFT82: 200 | QFW82: 9.7 | QFX82: 39 | QFY82: 0.15 | QFZ82: 10 | QGG82: 282.11 | QGH82: Напиток витаминнный | QGJ82: 200 | QGM82: 9.7 | QGN82: 39 | QGO82: 0.15 | QGP82: 10 | QGW82: 282.11 | QGX82: Напиток витаминнный | QGZ82: 200 | QHC82: 9.7 | QHD82: 39 | QHE82: 0.15 | QHF82: 10 | QHM82: 282.11 | QHN82: Напиток витаминнный | QHP82: 200 | QHS82: 9.7 | QHT82: 39 | QHU82: 0.15 | QHV82: 10 | QIC82: 282.11 | QID82: Напиток витаминнный | QIF82: 200 | QII82: 9.7 | QIJ82: 39 | QIK82: 0.15 | QIL82: 10 | QIS82: 282.11 | QIT82: Напиток витаминнный | QIV82: 200 | QIY82: 9.7 | QIZ82: 39 | QJA82: 0.15 | QJB82: 10 | QJI82: 282.11 | QJJ82: Напиток витаминнный | QJL82: 200 | QJO82: 9.7 | QJP82: 39 | QJQ82: 0.15 | QJR82: 10 | QJY82: 282.11 | QJZ82: Напиток витаминнный | QKB82: 200 | QKE82: 9.7 | QKF82: 39 | QKG82: 0.15 | QKH82: 10 | QKO82: 282.11 | QKP82: Напиток витаминнный | QKR82: 200 | QKU82: 9.7 | QKV82: 39 | QKW82: 0.15 | QKX82: 10 | QLE82: 282.11 | QLF82: Напиток витаминнный | QLH82: 200 | QLK82: 9.7 | QLL82: 39 | QLM82: 0.15 | QLN82: 10 | QLU82: 282.11 | QLV82: Напиток витаминнный | QLX82: 200 | QMA82: 9.7 | QMB82: 39 | QMC82: 0.15 | QMD82: 10 | QMK82: 282.11 | QML82: Напиток витаминнный | QMN82: 200 | QMQ82: 9.7 | QMR82: 39 | QMS82: 0.15 | QMT82: 10 | QNA82: 282.11 | QNB82: Напиток витаминнный | QND82: 200 | QNG82: 9.7 | QNH82: 39 | QNI82: 0.15 | QNJ82: 10 | QNQ82: 282.11 | QNR82: Напиток витаминнный | QNT82: 200 | QNW82: 9.7 | QNX82: 39 | QNY82: 0.15 | QNZ82: 10 | QOG82: 282.11 | QOH82: Напиток витаминнный | QOJ82: 200 | QOM82: 9.7 | QON82: 39 | QOO82: 0.15 | QOP82: 10 | QOW82: 282.11 | QOX82: Напиток витаминнный | QOZ82: 200 | QPC82: 9.7 | QPD82: 39 | QPE82: 0.15 | QPF82: 10 | QPM82: 282.11 | QPN82: Напиток витаминнный | QPP82: 200 | QPS82: 9.7 | QPT82: 39 | QPU82: 0.15 | QPV82: 10 | QQC82: 282.11 | QQD82: Напиток витаминнный | QQF82: 200 | QQI82: 9.7 | QQJ82: 39 | QQK82: 0.15 | QQL82: 10 | QQS82: 282.11 | QQT82: Напиток витаминнный | QQV82: 200 | QQY82: 9.7 | QQZ82: 39 | QRA82: 0.15 | QRB82: 10 | QRI82: 282.11 | QRJ82: Напиток витаминнный | QRL82: 200 | QRO82: 9.7 | QRP82: 39 | QRQ82: 0.15 | QRR82: 10 | QRY82: 282.11 | QRZ82: Напиток витаминнный | QSB82: 200 | QSE82: 9.7 | QSF82: 39 | QSG82: 0.15 | QSH82: 10 | QSO82: 282.11 | QSP82: Напиток витаминнный | QSR82: 200 | QSU82: 9.7 | QSV82: 39 | QSW82: 0.15 | QSX82: 10 | QTE82: 282.11 | QTF82: Напиток витаминнный | QTH82: 200 | QTK82: 9.7 | QTL82: 39 | QTM82: 0.15 | QTN82: 10 | QTU82: 282.11 | QTV82: Напиток витаминнный | QTX82: 200 | QUA82: 9.7 | QUB82: 39 | QUC82: 0.15 | QUD82: 10 | QUK82: 282.11 | QUL82: Напиток витаминнный | QUN82: 200 | QUQ82: 9.7 | QUR82: 39 | QUS82: 0.15 | QUT82: 10 | QVA82: 282.11 | QVB82: Напиток витаминнный | QVD82: 200 | QVG82: 9.7 | QVH82: 39 | QVI82: 0.15 | QVJ82: 10 | QVQ82: 282.11 | QVR82: Напиток витаминнный | QVT82: 200 | QVW82: 9.7 | QVX82: 39 | QVY82: 0.15 | QVZ82: 10 | QWG82: 282.11 | QWH82: Напиток витаминнный | QWJ82: 200 | QWM82: 9.7 | QWN82: 39 | QWO82: 0.15 | QWP82: 10 | QWW82: 282.11 | QWX82: Напиток витаминнный | QWZ82: 200 | QXC82: 9.7 | QXD82: 39 | QXE82: 0.15 | QXF82: 10 | QXM82: 282.11 | QXN82: Напиток витаминнный | QXP82: 200 | QXS82: 9.7 | QXT82: 39 | QXU82: 0.15 | QXV82: 10 | QYC82: 282.11 | QYD82: Напиток витаминнный | QYF82: 200 | QYI82: 9.7 | QYJ82: 39 | QYK82: 0.15 | QYL82: 10 | QYS82: 282.11 | QYT82: Напиток витаминнный | QYV82: 200 | QYY82: 9.7 | QYZ82: 39 | QZA82: 0.15 | QZB82: 10 | QZI82: 282.11 | QZJ82: Напиток витаминнный | QZL82: 200 | QZO82: 9.7 | QZP82: 39 | QZQ82: 0.15 | QZR82: 10 | QZY82: 282.11 | QZZ82: Напиток витаминнный | RAB82: 200 | RAE82: 9.7 | RAF82: 39 | RAG82: 0.15 | RAH82: 10 | RAO82: 282.11 | RAP82: Напиток витаминнный | RAR82: 200 | RAU82: 9.7 | RAV82: 39 | RAW82: 0.15 | RAX82: 10 | RBE82: 282.11 | RBF82: Напиток витаминнный | RBH82: 200 | RBK82: 9.7 | RBL82: 39 | RBM82: 0.15 | RBN82: 10 | RBU82: 282.11 | RBV82: Напиток витаминнный | RBX82: 200 | RCA82: 9.7 | RCB82: 39 | RCC82: 0.15 | RCD82: 10 | RCK82: 282.11 | RCL82: Напиток витаминнный | RCN82: 200 | RCQ82: 9.7 | RCR82: 39 | RCS82: 0.15 | RCT82: 10 | RDA82: 282.11 | RDB82: Напиток витаминнный | RDD82: 200 | RDG82: 9.7 | RDH82: 39 | RDI82: 0.15 | RDJ82: 10 | RDQ82: 282.11 | RDR82: Напиток витаминнный | RDT82: 200 | RDW82: 9.7 | RDX82: 39 | RDY82: 0.15 | RDZ82: 10 | REG82: 282.11 | REH82: Напиток витаминнный | REJ82: 200 | REM82: 9.7 | REN82: 39 | REO82: 0.15 | REP82: 10 | REW82: 282.11 | REX82: Напиток витаминнный | REZ82: 200 | RFC82: 9.7 | RFD82: 39 | RFE82: 0.15 | RFF82: 10 | RFM82: 282.11 | RFN82: Напиток витаминнный | RFP82: 200 | RFS82: 9.7 | RFT82: 39 | RFU82: 0.15 | RFV82: 10 | RGC82: 282.11 | RGD82: Напиток витаминнный | RGF82: 200 | RGI82: 9.7 | RGJ82: 39 | RGK82: 0.15 | RGL82: 10 | RGS82: 282.11 | RGT82: Напиток витаминнный | RGV82: 200 | RGY82: 9.7 | RGZ82: 39 | RHA82: 0.15 | RHB82: 10 | RHI82: 282.11 | RHJ82: Напиток витаминнный | RHL82: 200 | RHO82: 9.7 | RHP82: 39 | RHQ82: 0.15 | RHR82: 10 | RHY82: 282.11 | RHZ82: Напиток витаминнный | RIB82: 200 | RIE82: 9.7 | RIF82: 39 | RIG82: 0.15 | RIH82: 10 | RIO82: 282.11 | RIP82: Напиток витаминнный | RIR82: 200 | RIU82: 9.7 | RIV82: 39 | RIW82: 0.15 | RIX82: 10 | RJE82: 282.11 | RJF82: Напиток витаминнный | RJH82: 200 | RJK82: 9.7 | RJL82: 39 | RJM82: 0.15 | RJN82: 10 | RJU82: 282.11 | RJV82: Напиток витаминнный | RJX82: 200 | RKA82: 9.7 | RKB82: 39 | RKC82: 0.15 | RKD82: 10 | RKK82: 282.11 | RKL82: Напиток витаминнный | RKN82: 200 | RKQ82: 9.7 | RKR82: 39 | RKS82: 0.15 | RKT82: 10 | RLA82: 282.11 | RLB82: Напиток витаминнный | RLD82: 200 | RLG82: 9.7 | RLH82: 39 | RLI82: 0.15 | RLJ82: 10 | RLQ82: 282.11 | RLR82: Напиток витаминнный | RLT82: 200 | RLW82: 9.7 | RLX82: 39 | RLY82: 0.15 | RLZ82: 10 | RMG82: 282.11 | RMH82: Напиток витаминнный | RMJ82: 200 | RMM82: 9.7 | RMN82: 39 | RMO82: 0.15 | RMP82: 10 | RMW82: 282.11 | RMX82: Напиток витаминнный | RMZ82: 200 | RNC82: 9.7 | RND82: 39 | RNE82: 0.15 | RNF82: 10 | RNM82: 282.11 | RNN82: Напиток витаминнный | RNP82: 200 | RNS82: 9.7 | RNT82: 39 | RNU82: 0.15 | RNV82: 10 | ROC82: 282.11 | ROD82: Напиток витаминнный | ROF82: 200 | ROI82: 9.7 | ROJ82: 39 | ROK82: 0.15 | ROL82: 10 | ROS82: 282.11 | ROT82: Напиток витаминнный | ROV82: 200 | ROY82: 9.7 | ROZ82: 39 | RPA82: 0.15 | RPB82: 10 | RPI82: 282.11 | RPJ82: Напиток витаминнный | RPL82: 200 | RPO82: 9.7 | RPP82: 39 | RPQ82: 0.15 | RPR82: 10 | RPY82: 282.11 | RPZ82: Напиток витаминнный | RQB82: 200 | RQE82: 9.7 | RQF82: 39 | RQG82: 0.15 | RQH82: 10 | RQO82: 282.11 | RQP82: Напиток витаминнный | RQR82: 200 | RQU82: 9.7 | RQV82: 39 | RQW82: 0.15 | RQX82: 10 | RRE82: 282.11 | RRF82: Напиток витаминнный | RRH82: 200 | RRK82: 9.7 | RRL82: 39 | RRM82: 0.15 | RRN82: 10 | RRU82: 282.11 | RRV82: Напиток витаминнный | RRX82: 200 | RSA82: 9.7 | RSB82: 39 | RSC82: 0.15 | RSD82: 10 | RSK82: 282.11 | RSL82: Напиток витаминнный | RSN82: 200 | RSQ82: 9.7 | RSR82: 39 | RSS82: 0.15 | RST82: 10 | RTA82: 282.11 | RTB82: Напиток витаминнный | RTD82: 200 | RTG82: 9.7 | RTH82: 39 | RTI82: 0.15 | RTJ82: 10 | RTQ82: 282.11 | RTR82: Напиток витаминнный | RTT82: 200 | RTW82: 9.7 | RTX82: 39 | RTY82: 0.15 | RTZ82: 10 | RUG82: 282.11 | RUH82: Напиток витаминнный | RUJ82: 200 | RUM82: 9.7 | RUN82: 39 | RUO82: 0.15 | RUP82: 10 | RUW82: 282.11 | RUX82: Напиток витаминнный | RUZ82: 200 | RVC82: 9.7 | RVD82: 39 | RVE82: 0.15 | RVF82: 10 | RVM82: 282.11 | RVN82: Напиток витаминнный | RVP82: 200 | RVS82: 9.7 | RVT82: 39 | RVU82: 0.15 | RVV82: 10 | RWC82: 282.11 | RWD82: Напиток витаминнный | RWF82: 200 | RWI82: 9.7 | RWJ82: 39 | RWK82: 0.15 | RWL82: 10 | RWS82: 282.11 | RWT82: Напиток витаминнный | RWV82: 200 | RWY82: 9.7 | RWZ82: 39 | RXA82: 0.15 | RXB82: 10 | RXI82: 282.11 | RXJ82: Напиток витаминнный | RXL82: 200 | RXO82: 9.7 | RXP82: 39 | RXQ82: 0.15 | RXR82: 10 | RXY82: 282.11 | RXZ82: Напиток витаминнный | RYB82: 200 | RYE82: 9.7 | RYF82: 39 | RYG82: 0.15 | RYH82: 10 | RYO82: 282.11 | RYP82: Напиток витаминнный | RYR82: 200 | RYU82: 9.7 | RYV82: 39 | RYW82: 0.15 | RYX82: 10 | RZE82: 282.11 | RZF82: Напиток витаминнный | RZH82: 200 | RZK82: 9.7 | RZL82: 39 | RZM82: 0.15 | RZN82: 10 | RZU82: 282.11 | RZV82: Напиток витаминнный | RZX82: 200 | SAA82: 9.7 | SAB82: 39 | SAC82: 0.15 | SAD82: 10 | SAK82: 282.11 | SAL82: Напиток витаминнный | SAN82: 200 | SAQ82: 9.7 | SAR82: 39 | SAS82: 0.15 | SAT82: 10 | SBA82: 282.11 | SBB82: Напиток витаминнный | SBD82: 200 | SBG82: 9.7 | SBH82: 39 | SBI82: 0.15 | SBJ82: 10 | SBQ82: 282.11 | SBR82: Напиток витаминнный | SBT82: 200 | SBW82: 9.7 | SBX82: 39 | SBY82: 0.15 | SBZ82: 10 | SCG82: 282.11 | SCH82: Напиток витаминнный | SCJ82: 200 | SCM82: 9.7 | SCN82: 39 | SCO82: 0.15 | SCP82: 10 | SCW82: 282.11 | SCX82: Напиток витаминнный | SCZ82: 200 | SDC82: 9.7 | SDD82: 39 | SDE82: 0.15 | SDF82: 10 | SDM82: 282.11 | SDN82: Напиток витаминнный | SDP82: 200 | SDS82: 9.7 | SDT82: 39 | SDU82: 0.15 | SDV82: 10 | SEC82: 282.11 | SED82: Напиток витаминнный | SEF82: 200 | SEI82: 9.7 | SEJ82: 39 | SEK82: 0.15 | SEL82: 10 | SES82: 282.11 | SET82: Напиток витаминнный | SEV82: 200 | SEY82: 9.7 | SEZ82: 39 | SFA82: 0.15 | SFB82: 10 | SFI82: 282.11 | SFJ82: Напиток витаминнный | SFL82: 200 | SFO82: 9.7 | SFP82: 39 | SFQ82: 0.15 | SFR82: 10 | SFY82: 282.11 | SFZ82: Напиток витаминнный | SGB82: 200 | SGE82: 9.7 | SGF82: 39 | SGG82: 0.15 | SGH82: 10 | SGO82: 282.11 | SGP82: Напиток витаминнный | SGR82: 200 | SGU82: 9.7 | SGV82: 39 | SGW82: 0.15 | SGX82: 10 | SHE82: 282.11 | SHF82: Напиток витаминнный | SHH82: 200 | SHK82: 9.7 | SHL82: 39 | SHM82: 0.15 | SHN82: 10 | SHU82: 282.11 | SHV82: Напиток витаминнный | SHX82: 200 | SIA82: 9.7 | SIB82: 39 | SIC82: 0.15 | SID82: 10 | SIK82: 282.11 | SIL82: Напиток витаминнный | SIN82: 200 | SIQ82: 9.7 | SIR82: 39 | SIS82: 0.15 | SIT82: 10 | SJA82: 282.11 | SJB82: Напиток витаминнный | SJD82: 200 | SJG82: 9.7 | SJH82: 39 | SJI82: 0.15 | SJJ82: 10 | SJQ82: 282.11 | SJR82: Напиток витаминнный | SJT82: 200 | SJW82: 9.7 | SJX82: 39 | SJY82: 0.15 | SJZ82: 10 | SKG82: 282.11 | SKH82: Напиток витаминнный | SKJ82: 200 | SKM82: 9.7 | SKN82: 39 | SKO82: 0.15 | SKP82: 10 | SKW82: 282.11 | SKX82: Напиток витаминнный | SKZ82: 200 | SLC82: 9.7 | SLD82: 39 | SLE82: 0.15 | SLF82: 10 | SLM82: 282.11 | SLN82: Напиток витаминнный | SLP82: 200 | SLS82: 9.7 | SLT82: 39 | SLU82: 0.15 | SLV82: 10 | SMC82: 282.11 | SMD82: Напиток витаминнный | SMF82: 200 | SMI82: 9.7 | SMJ82: 39 | SMK82: 0.15 | SML82: 10 | SMS82: 282.11 | SMT82: Напиток витаминнный | SMV82: 200 | SMY82: 9.7 | SMZ82: 39 | SNA82: 0.15 | SNB82: 10 | SNI82: 282.11 | SNJ82: Напиток витаминнный | SNL82: 200 | SNO82: 9.7 | SNP82: 39 | SNQ82: 0.15 | SNR82: 10 | SNY82: 282.11 | SNZ82: Напиток витаминнный | SOB82: 200 | SOE82: 9.7 | SOF82: 39 | SOG82: 0.15 | SOH82: 10 | SOO82: 282.11 | SOP82: Напиток витаминнный | SOR82: 200 | SOU82: 9.7 | SOV82: 39 | SOW82: 0.15 | SOX82: 10 | SPE82: 282.11 | SPF82: Напиток витаминнный | SPH82: 200 | SPK82: 9.7 | SPL82: 39 | SPM82: 0.15 | SPN82: 10 | SPU82: 282.11 | SPV82: Напиток витаминнный | SPX82: 200 | SQA82: 9.7 | SQB82: 39 | SQC82: 0.15 | SQD82: 10 | SQK82: 282.11 | SQL82: Напиток витаминнный | SQN82: 200 | SQQ82: 9.7 | SQR82: 39 | SQS82: 0.15 | SQT82: 10 | SRA82: 282.11 | SRB82: Напиток витаминнный | SRD82: 200 | SRG82: 9.7 | SRH82: 39 | SRI82: 0.15 | SRJ82: 10 | SRQ82: 282.11 | SRR82: Напиток витаминнный | SRT82: 200 | SRW82: 9.7 | SRX82: 39 | SRY82: 0.15 | SRZ82: 10 | SSG82: 282.11 | SSH82: Напиток витаминнный | SSJ82: 200 | SSM82: 9.7 | SSN82: 39 | SSO82: 0.15 | SSP82: 10 | SSW82: 282.11 | SSX82: Напиток витаминнный | SSZ82: 200 | STC82: 9.7 | STD82: 39 | STE82: 0.15 | STF82: 10 | STM82: 282.11 | STN82: Напиток витаминнный | STP82: 200 | STS82: 9.7 | STT82: 39 | STU82: 0.15 | STV82: 10 | SUC82: 282.11 | SUD82: Напиток витаминнный | SUF82: 200 | SUI82: 9.7 | SUJ82: 39 | SUK82: 0.15 | SUL82: 10 | SUS82: 282.11 | SUT82: Напиток витаминнный | SUV82: 200 | SUY82: 9.7 | SUZ82: 39 | SVA82: 0.15 | SVB82: 10 | SVI82: 282.11 | SVJ82: Напиток витаминнный | SVL82: 200 | SVO82: 9.7 | SVP82: 39 | SVQ82: 0.15 | SVR82: 10 | SVY82: 282.11 | SVZ82: Напиток витаминнный | SWB82: 200 | SWE82: 9.7 | SWF82: 39 | SWG82: 0.15 | SWH82: 10 | SWO82: 282.11 | SWP82: Напиток витаминнный | SWR82: 200 | SWU82: 9.7 | SWV82: 39 | SWW82: 0.15 | SWX82: 10 | SXE82: 282.11 | SXF82: Напиток витаминнный | SXH82: 200 | SXK82: 9.7 | SXL82: 39 | SXM82: 0.15 | SXN82: 10 | SXU82: 282.11 | SXV82: Напиток витаминнный | SXX82: 200 | SYA82: 9.7 | SYB82: 39 | SYC82: 0.15 | SYD82: 10 | SYK82: 282.11 | SYL82: Напиток витаминнный | SYN82: 200 | SYQ82: 9.7 | SYR82: 39 | SYS82: 0.15 | SYT82: 10 | SZA82: 282.11 | SZB82: Напиток витаминнный | SZD82: 200 | SZG82: 9.7 | SZH82: 39 | SZI82: 0.15 | SZJ82: 10 | SZQ82: 282.11 | SZR82: Напиток витаминнный | SZT82: 200 | SZW82: 9.7 | SZX82: 39 | SZY82: 0.15 | SZZ82: 10 | TAG82: 282.11 | TAH82: Напиток витаминнный | TAJ82: 200 | TAM82: 9.7 | TAN82: 39 | TAO82: 0.15 | TAP82: 10 | TAW82: 282.11 | TAX82: Напиток витаминнный | TAZ82: 200 | TBC82: 9.7 | TBD82: 39 | TBE82: 0.15 | TBF82: 10 | TBM82: 282.11 | TBN82: Напиток витаминнный | TBP82: 200 | TBS82: 9.7 | TBT82: 39 | TBU82: 0.15 | TBV82: 10 | TCC82: 282.11 | TCD82: Напиток витаминнный | TCF82: 200 | TCI82: 9.7 | TCJ82: 39 | TCK82: 0.15 | TCL82: 10 | TCS82: 282.11 | TCT82: Напиток витаминнный | TCV82: 200 | TCY82: 9.7 | TCZ82: 39 | TDA82: 0.15 | TDB82: 10 | TDI82: 282.11 | TDJ82: Напиток витаминнный | TDL82: 200 | TDO82: 9.7 | TDP82: 39 | TDQ82: 0.15 | TDR82: 10 | TDY82: 282.11 | TDZ82: Напиток витаминнный | TEB82: 200 | TEE82: 9.7 | TEF82: 39 | TEG82: 0.15 | TEH82: 10 | TEO82: 282.11 | TEP82: Напиток витаминнный | TER82: 200 | TEU82: 9.7 | TEV82: 39 | TEW82: 0.15 | TEX82: 10 | TFE82: 282.11 | TFF82: Напиток витаминнный | TFH82: 200 | TFK82: 9.7 | TFL82: 39 | TFM82: 0.15 | TFN82: 10 | TFU82: 282.11 | TFV82: Напиток витаминнный | TFX82: 200 | TGA82: 9.7 | TGB82: 39 | TGC82: 0.15 | TGD82: 10 | TGK82: 282.11 | TGL82: Напиток витаминнный | TGN82: 200 | TGQ82: 9.7 | TGR82: 39 | TGS82: 0.15 | TGT82: 10 | THA82: 282.11 | THB82: Напиток витаминнный | THD82: 200 | THG82: 9.7 | THH82: 39 | THI82: 0.15 | THJ82: 10 | THQ82: 282.11 | THR82: Напиток витаминнный | THT82: 200 | THW82: 9.7 | THX82: 39 | THY82: 0.15 | THZ82: 10 | TIG82: 282.11 | TIH82: Напиток витаминнный | TIJ82: 200 | TIM82: 9.7 | TIN82: 39 | TIO82: 0.15 | TIP82: 10 | TIW82: 282.11 | TIX82: Напиток витаминнный | TIZ82: 200 | TJC82: 9.7 | TJD82: 39 | TJE82: 0.15 | TJF82: 10 | TJM82: 282.11 | TJN82: Напиток витаминнный | TJP82: 200 | TJS82: 9.7 | TJT82: 39 | TJU82: 0.15 | TJV82: 10 | TKC82: 282.11 | TKD82: Напиток витаминнный | TKF82: 200 | TKI82: 9.7 | TKJ82: 39 | TKK82: 0.15 | TKL82: 10 | TKS82: 282.11 | TKT82: Напиток витаминнный | TKV82: 200 | TKY82: 9.7 | TKZ82: 39 | TLA82: 0.15 | TLB82: 10 | TLI82: 282.11 | TLJ82: Напиток витаминнный | TLL82: 200 | TLO82: 9.7 | TLP82: 39 | TLQ82: 0.15 | TLR82: 10 | TLY82: 282.11 | TLZ82: Напиток витаминнный | TMB82: 200 | TME82: 9.7 | TMF82: 39 | TMG82: 0.15 | TMH82: 10 | TMO82: 282.11 | TMP82: Напиток витаминнный | TMR82: 200 | TMU82: 9.7 | TMV82: 39 | TMW82: 0.15 | TMX82: 10 | TNE82: 282.11 | TNF82: Напиток витаминнный | TNH82: 200 | TNK82: 9.7 | TNL82: 39 | TNM82: 0.15 | TNN82: 10 | TNU82: 282.11 | TNV82: Напиток витаминнный | TNX82: 200 | TOA82: 9.7 | TOB82: 39 | TOC82: 0.15 | TOD82: 10 | TOK82: 282.11 | TOL82: Напиток витаминнный | TON82: 200 | TOQ82: 9.7 | TOR82: 39 | TOS82: 0.15 | TOT82: 10 | TPA82: 282.11 | TPB82: Напиток витаминнный | TPD82: 200 | TPG82: 9.7 | TPH82: 39 | TPI82: 0.15 | TPJ82: 10 | TPQ82: 282.11 | TPR82: Напиток витаминнный | TPT82: 200 | TPW82: 9.7 | TPX82: 39 | TPY82: 0.15 | TPZ82: 10 | TQG82: 282.11 | TQH82: Напиток витаминнный | TQJ82: 200 | TQM82: 9.7 | TQN82: 39 | TQO82: 0.15 | TQP82: 10 | TQW82: 282.11 | TQX82: Напиток витаминнный | TQZ82: 200 | TRC82: 9.7 | TRD82: 39 | TRE82: 0.15 | TRF82: 10 | TRM82: 282.11 | TRN82: Напиток витаминнный | TRP82: 200 | TRS82: 9.7 | TRT82: 39 | TRU82: 0.15 | TRV82: 10 | TSC82: 282.11 | TSD82: Напиток витаминнный | TSF82: 200 | TSI82: 9.7 | TSJ82: 39 | TSK82: 0.15 | TSL82: 10 | TSS82: 282.11 | TST82: Напиток витаминнный | TSV82: 200 | TSY82: 9.7 | TSZ82: 39 | TTA82: 0.15 | TTB82: 10 | TTI82: 282.11 | TTJ82: Напиток витаминнный | TTL82: 200 | TTO82: 9.7 | TTP82: 39 | TTQ82: 0.15 | TTR82: 10 | TTY82: 282.11 | TTZ82: Напиток витаминнный | TUB82: 200 | TUE82: 9.7 | TUF82: 39 | TUG82: 0.15 | TUH82: 10 | TUO82: 282.11 | TUP82: Напиток витаминнный | TUR82: 200 | TUU82: 9.7 | TUV82: 39 | TUW82: 0.15 | TUX82: 10 | TVE82: 282.11 | TVF82: Напиток витаминнный | TVH82: 200 | TVK82: 9.7 | TVL82: 39 | TVM82: 0.15 | TVN82: 10 | TVU82: 282.11 | TVV82: Напиток витаминнный | TVX82: 200 | TWA82: 9.7 | TWB82: 39 | TWC82: 0.15 | TWD82: 10 | TWK82: 282.11 | TWL82: Напиток витаминнный | TWN82: 200 | TWQ82: 9.7 | TWR82: 39 | TWS82: 0.15 | TWT82: 10 | TXA82: 282.11 | TXB82: Напиток витаминнный | TXD82: 200 | TXG82: 9.7 | TXH82: 39 | TXI82: 0.15 | TXJ82: 10 | TXQ82: 282.11 | TXR82: Напиток витаминнный | TXT82: 200 | TXW82: 9.7 | TXX82: 39 | TXY82: 0.15 | TXZ82: 10 | TYG82: 282.11 | TYH82: Напиток витаминнный | TYJ82: 200 | TYM82: 9.7 | TYN82: 39 | TYO82: 0.15 | TYP82: 10 | TYW82: 282.11 | TYX82: Напиток витаминнный | TYZ82: 200 | TZC82: 9.7 | TZD82: 39 | TZE82: 0.15 | TZF82: 10 | TZM82: 282.11 | TZN82: Напиток витаминнный | TZP82: 200 | TZS82: 9.7 | TZT82: 39 | TZU82: 0.15 | TZV82: 10 | UAC82: 282.11 | UAD82: Напиток витаминнный | UAF82: 200 | UAI82: 9.7 | UAJ82: 39 | UAK82: 0.15 | UAL82: 10 | UAS82: 282.11 | UAT82: Напиток витаминнный | UAV82: 200 | UAY82: 9.7 | UAZ82: 39 | UBA82: 0.15 | UBB82: 10 | UBI82: 282.11 | UBJ82: Напиток витаминнный | UBL82: 200 | UBO82: 9.7 | UBP82: 39 | UBQ82: 0.15 | UBR82: 10 | UBY82: 282.11 | UBZ82: Напиток витаминнный | UCB82: 200 | UCE82: 9.7 | UCF82: 39 | UCG82: 0.15 | UCH82: 10 | UCO82: 282.11 | UCP82: Напиток витаминнный | UCR82: 200 | UCU82: 9.7 | UCV82: 39 | UCW82: 0.15 | UCX82: 10 | UDE82: 282.11 | UDF82: Напиток витаминнный | UDH82: 200 | UDK82: 9.7 | UDL82: 39 | UDM82: 0.15 | UDN82: 10 | UDU82: 282.11 | UDV82: Напиток витаминнный | UDX82: 200 | UEA82: 9.7 | UEB82: 39 | UEC82: 0.15 | UED82: 10 | UEK82: 282.11 | UEL82: Напиток витаминнный | UEN82: 200 | UEQ82: 9.7 | UER82: 39 | UES82: 0.15 | UET82: 10 | UFA82: 282.11 | UFB82: Напиток витаминнный | UFD82: 200 | UFG82: 9.7 | UFH82: 39 | UFI82: 0.15 | UFJ82: 10 | UFQ82: 282.11 | UFR82: Напиток витаминнный | UFT82: 200 | UFW82: 9.7 | UFX82: 39 | UFY82: 0.15 | UFZ82: 10 | UGG82: 282.11 | UGH82: Напиток витаминнный | UGJ82: 200 | UGM82: 9.7 | UGN82: 39 | UGO82: 0.15 | UGP82: 10 | UGW82: 282.11 | UGX82: Напиток витаминнный | UGZ82: 200 | UHC82: 9.7 | UHD82: 39 | UHE82: 0.15 | UHF82: 10 | UHM82: 282.11 | UHN82: Напиток витаминнный | UHP82: 200 | UHS82: 9.7 | UHT82: 39 | UHU82: 0.15 | UHV82: 10 | UIC82: 282.11 | UID82: Напиток витаминнный | UIF82: 200 | UII82: 9.7 | UIJ82: 39 | UIK82: 0.15 | UIL82: 10 | UIS82: 282.11 | UIT82: Напиток витаминнный | UIV82: 200 | UIY82: 9.7 | UIZ82: 39 | UJA82: 0.15 | UJB82: 10 | UJI82: 282.11 | UJJ82: Напиток витаминнный | UJL82: 200 | UJO82: 9.7 | UJP82: 39 | UJQ82: 0.15 | UJR82: 10 | UJY82: 282.11 | UJZ82: Напиток витаминнный | UKB82: 200 | UKE82: 9.7 | UKF82: 39 | UKG82: 0.15 | UKH82: 10 | UKO82: 282.11 | UKP82: Напиток витаминнный | UKR82: 200 | UKU82: 9.7 | UKV82: 39 | UKW82: 0.15 | UKX82: 10 | ULE82: 282.11 | ULF82: Напиток витаминнный | ULH82: 200 | ULK82: 9.7 | ULL82: 39 | ULM82: 0.15 | ULN82: 10 | ULU82: 282.11 | ULV82: Напиток витаминнный | ULX82: 200 | UMA82: 9.7 | UMB82: 39 | UMC82: 0.15 | UMD82: 10 | UMK82: 282.11 | UML82: Напиток витаминнный | UMN82: 200 | UMQ82: 9.7 | UMR82: 39 | UMS82: 0.15 | UMT82: 10 | UNA82: 282.11 | UNB82: Напиток витаминнный | UND82: 200 | UNG82: 9.7 | UNH82: 39 | UNI82: 0.15 | UNJ82: 10 | UNQ82: 282.11 | UNR82: Напиток витаминнный | UNT82: 200 | UNW82: 9.7 | UNX82: 39 | UNY82: 0.15 | UNZ82: 10 | UOG82: 282.11 | UOH82: Напиток витаминнный | UOJ82: 200 | UOM82: 9.7 | UON82: 39 | UOO82: 0.15 | UOP82: 10 | UOW82: 282.11 | UOX82: Напиток витаминнный | UOZ82: 200 | UPC82: 9.7 | UPD82: 39 | UPE82: 0.15 | UPF82: 10 | UPM82: 282.11 | UPN82: Напиток витаминнный | UPP82: 200 | UPS82: 9.7 | UPT82: 39 | UPU82: 0.15 | UPV82: 10 | UQC82: 282.11 | UQD82: Напиток витаминнный | UQF82: 200 | UQI82: 9.7 | UQJ82: 39 | UQK82: 0.15 | UQL82: 10 | UQS82: 282.11 | UQT82: Напиток витаминнный | UQV82: 200 | UQY82: 9.7 | UQZ82: 39 | URA82: 0.15 | URB82: 10 | URI82: 282.11 | URJ82: Напиток витаминнный | URL82: 200 | URO82: 9.7 | URP82: 39 | URQ82: 0.15 | URR82: 10 | URY82: 282.11 | URZ82: Напиток витаминнный | USB82: 200 | USE82: 9.7 | USF82: 39 | USG82: 0.15 | USH82: 10 | USO82: 282.11 | USP82: Напиток витаминнный | USR82: 200 | USU82: 9.7 | USV82: 39 | USW82: 0.15 | USX82: 10 | UTE82: 282.11 | UTF82: Напиток витаминнный | UTH82: 200 | UTK82: 9.7 | UTL82: 39 | UTM82: 0.15 | UTN82: 10 | UTU82: 282.11 | UTV82: Напиток витаминнный | UTX82: 200 | UUA82: 9.7 | UUB82: 39 | UUC82: 0.15 | UUD82: 10 | UUK82: 282.11 | UUL82: Напиток витаминнный | UUN82: 200 | UUQ82: 9.7 | UUR82: 39 | UUS82: 0.15 | UUT82: 10 | UVA82: 282.11 | UVB82: Напиток витаминнный | UVD82: 200 | UVG82: 9.7 | UVH82: 39 | UVI82: 0.15 | UVJ82: 10 | UVQ82: 282.11 | UVR82: Напиток витаминнный | UVT82: 200 | UVW82: 9.7 | UVX82: 39 | UVY82: 0.15 | UVZ82: 10 | UWG82: 282.11 | UWH82: Напиток витаминнный | UWJ82: 200 | UWM82: 9.7 | UWN82: 39 | UWO82: 0.15 | UWP82: 10 | UWW82: 282.11 | UWX82: Напиток витаминнный | UWZ82: 200 | UXC82: 9.7 | UXD82: 39 | UXE82: 0.15 | UXF82: 10 | UXM82: 282.11 | UXN82: Напиток витаминнный | UXP82: 200 | UXS82: 9.7 | UXT82: 39 | UXU82: 0.15 | UXV82: 10 | UYC82: 282.11 | UYD82: Напиток витаминнный | UYF82: 200 | UYI82: 9.7 | UYJ82: 39 | UYK82: 0.15 | UYL82: 10 | UYS82: 282.11 | UYT82: Напиток витаминнный | UYV82: 200 | UYY82: 9.7 | UYZ82: 39 | UZA82: 0.15 | UZB82: 10 | UZI82: 282.11 | UZJ82: Напиток витаминнный | UZL82: 200 | UZO82: 9.7 | UZP82: 39 | UZQ82: 0.15 | UZR82: 10 | UZY82: 282.11 | UZZ82: Напиток витаминнный | VAB82: 200 | VAE82: 9.7 | VAF82: 39 | VAG82: 0.15 | VAH82: 10 | VAO82: 282.11 | VAP82: Напиток витаминнный | VAR82: 200 | VAU82: 9.7 | VAV82: 39 | VAW82: 0.15 | VAX82: 10 | VBE82: 282.11 | VBF82: Напиток витаминнный | VBH82: 200 | VBK82: 9.7 | VBL82: 39 | VBM82: 0.15 | VBN82: 10 | VBU82: 282.11 | VBV82: Напиток витаминнный | VBX82: 200 | VCA82: 9.7 | VCB82: 39 | VCC82: 0.15 | VCD82: 10 | VCK82: 282.11 | VCL82: Напиток витаминнный | VCN82: 200 | VCQ82: 9.7 | VCR82: 39 | VCS82: 0.15 | VCT82: 10 | VDA82: 282.11 | VDB82: Напиток витаминнный | VDD82: 200 | VDG82: 9.7 | VDH82: 39 | VDI82: 0.15 | VDJ82: 10 | VDQ82: 282.11 | VDR82: Напиток витаминнный | VDT82: 200 | VDW82: 9.7 | VDX82: 39 | VDY82: 0.15 | VDZ82: 10 | VEG82: 282.11 | VEH82: Напиток витаминнный | VEJ82: 200 | VEM82: 9.7 | VEN82: 39 | VEO82: 0.15 | VEP82: 10 | VEW82: 282.11 | VEX82: Напиток витаминнный | VEZ82: 200 | VFC82: 9.7 | VFD82: 39 | VFE82: 0.15 | VFF82: 10 | VFM82: 282.11 | VFN82: Напиток витаминнный | VFP82: 200 | VFS82: 9.7 | VFT82: 39 | VFU82: 0.15 | VFV82: 10 | VGC82: 282.11 | VGD82: Напиток витаминнный | VGF82: 200 | VGI82: 9.7 | VGJ82: 39 | VGK82: 0.15 | VGL82: 10 | VGS82: 282.11 | VGT82: Напиток витаминнный | VGV82: 200 | VGY82: 9.7 | VGZ82: 39 | VHA82: 0.15 | VHB82: 10 | VHI82: 282.11 | VHJ82: Напиток витаминнный | VHL82: 200 | VHO82: 9.7 | VHP82: 39 | VHQ82: 0.15 | VHR82: 10 | VHY82: 282.11 | VHZ82: Напиток витаминнный | VIB82: 200 | VIE82: 9.7 | VIF82: 39 | VIG82: 0.15 | VIH82: 10 | VIO82: 282.11 | VIP82: Напиток витаминнный | VIR82: 200 | VIU82: 9.7 | VIV82: 39 | VIW82: 0.15 | VIX82: 10 | VJE82: 282.11 | VJF82: Напиток витаминнный | VJH82: 200 | VJK82: 9.7 | VJL82: 39 | VJM82: 0.15 | VJN82: 10 | VJU82: 282.11 | VJV82: Напиток витаминнный | VJX82: 200 | VKA82: 9.7 | VKB82: 39 | VKC82: 0.15 | VKD82: 10 | VKK82: 282.11 | VKL82: Напиток витаминнный | VKN82: 200 | VKQ82: 9.7 | VKR82: 39 | VKS82: 0.15 | VKT82: 10 | VLA82: 282.11 | VLB82: Напиток витаминнный | VLD82: 200 | VLG82: 9.7 | VLH82: 39 | VLI82: 0.15 | VLJ82: 10 | VLQ82: 282.11 | VLR82: Напиток витаминнный | VLT82: 200 | VLW82: 9.7 | VLX82: 39 | VLY82: 0.15 | VLZ82: 10 | VMG82: 282.11 | VMH82: Напиток витаминнный | VMJ82: 200 | VMM82: 9.7 | VMN82: 39 | VMO82: 0.15 | VMP82: 10 | VMW82: 282.11 | VMX82: Напиток витаминнный | VMZ82: 200 | VNC82: 9.7 | VND82: 39 | VNE82: 0.15 | VNF82: 10 | VNM82: 282.11 | VNN82: Напиток витаминнный | VNP82: 200 | VNS82: 9.7 | VNT82: 39 | VNU82: 0.15 | VNV82: 10 | VOC82: 282.11 | VOD82: Напиток витаминнный | VOF82: 200 | VOI82: 9.7 | VOJ82: 39 | VOK82: 0.15 | VOL82: 10 | VOS82: 282.11 | VOT82: Напиток витаминнный | VOV82: 200 | VOY82: 9.7 | VOZ82: 39 | VPA82: 0.15 | VPB82: 10 | VPI82: 282.11 | VPJ82: Напиток витаминнный | VPL82: 200 | VPO82: 9.7 | VPP82: 39 | VPQ82: 0.15 | VPR82: 10 | VPY82: 282.11 | VPZ82: Напиток витаминнный | VQB82: 200 | VQE82: 9.7 | VQF82: 39 | VQG82: 0.15 | VQH82: 10 | VQO82: 282.11 | VQP82: Напиток витаминнный | VQR82: 200 | VQU82: 9.7 | VQV82: 39 | VQW82: 0.15 | VQX82: 10 | VRE82: 282.11 | VRF82: Напиток витаминнный | VRH82: 200 | VRK82: 9.7 | VRL82: 39 | VRM82: 0.15 | VRN82: 10 | VRU82: 282.11 | VRV82: Напиток витаминнный | VRX82: 200 | VSA82: 9.7 | VSB82: 39 | VSC82: 0.15 | VSD82: 10 | VSK82: 282.11 | VSL82: Напиток витаминнный | VSN82: 200 | VSQ82: 9.7 | VSR82: 39 | VSS82: 0.15 | VST82: 10 | VTA82: 282.11 | VTB82: Напиток витаминнный | VTD82: 200 | VTG82: 9.7 | VTH82: 39 | VTI82: 0.15 | VTJ82: 10 | VTQ82: 282.11 | VTR82: Напиток витаминнный | VTT82: 200 | VTW82: 9.7 | VTX82: 39 | VTY82: 0.15 | VTZ82: 10 | VUG82: 282.11 | VUH82: Напиток витаминнный | VUJ82: 200 | VUM82: 9.7 | VUN82: 39 | VUO82: 0.15 | VUP82: 10 | VUW82: 282.11 | VUX82: Напиток витаминнный | VUZ82: 200 | VVC82: 9.7 | VVD82: 39 | VVE82: 0.15 | VVF82: 10 | VVM82: 282.11 | VVN82: Напиток витаминнный | VVP82: 200 | VVS82: 9.7 | VVT82: 39 | VVU82: 0.15 | VVV82: 10 | VWC82: 282.11 | VWD82: Напиток витаминнный | VWF82: 200 | VWI82: 9.7 | VWJ82: 39 | VWK82: 0.15 | VWL82: 10 | VWS82: 282.11 | VWT82: Напиток витаминнный | VWV82: 200 | VWY82: 9.7 | VWZ82: 39 | VXA82: 0.15 | VXB82: 10 | VXI82: 282.11 | VXJ82: Напиток витаминнный | VXL82: 200 | VXO82: 9.7 | VXP82: 39 | VXQ82: 0.15 | VXR82: 10 | VXY82: 282.11 | VXZ82: Напиток витаминнный | VYB82: 200 | VYE82: 9.7 | VYF82: 39 | VYG82: 0.15 | VYH82: 10 | VYO82: 282.11 | VYP82: Напиток витаминнный | VYR82: 200 | VYU82: 9.7 | VYV82: 39 | VYW82: 0.15 | VYX82: 10 | VZE82: 282.11 | VZF82: Напиток витаминнный | VZH82: 200 | VZK82: 9.7 | VZL82: 39 | VZM82: 0.15 | VZN82: 10 | VZU82: 282.11 | VZV82: Напиток витаминнный | VZX82: 200 | WAA82: 9.7 | WAB82: 39 | WAC82: 0.15 | WAD82: 10 | WAK82: 282.11 | WAL82: Напиток витаминнный | WAN82: 200 | WAQ82: 9.7 | WAR82: 39 | WAS82: 0.15 | WAT82: 10 | WBA82: 282.11 | WBB82: Напиток витаминнный | WBD82: 200 | WBG82: 9.7 | WBH82: 39 | WBI82: 0.15 | WBJ82: 10 | WBQ82: 282.11 | WBR82: Напиток витаминнный | WBT82: 200 | WBW82: 9.7 | WBX82: 39 | WBY82: 0.15 | WBZ82: 10 | WCG82: 282.11 | WCH82: Напиток витаминнный | WCJ82: 200 | WCM82: 9.7 | WCN82: 39 | WCO82: 0.15 | WCP82: 10 | WCW82: 282.11 | WCX82: Напиток витаминнный | WCZ82: 200 | WDC82: 9.7 | WDD82: 39 | WDE82: 0.15 | WDF82: 10 | WDM82: 282.11 | WDN82: Напиток витаминнный | WDP82: 200 | WDS82: 9.7 | WDT82: 39 | WDU82: 0.15 | WDV82: 10 | WEC82: 282.11 | WED82: Напиток витаминнный | WEF82: 200 | WEI82: 9.7 | WEJ82: 39 | WEK82: 0.15 | WEL82: 10 | WES82: 282.11 | WET82: Напиток витаминнный | WEV82: 200 | WEY82: 9.7 | WEZ82: 39 | WFA82: 0.15 | WFB82: 10 | WFI82: 282.11 | WFJ82: Напиток витаминнный | WFL82: 200 | WFO82: 9.7 | WFP82: 39 | WFQ82: 0.15 | WFR82: 10 | WFY82: 282.11 | WFZ82: Напиток витаминнный | WGB82: 200 | WGE82: 9.7 | WGF82: 39 | WGG82: 0.15 | WGH82: 10 | WGO82: 282.11 | WGP82: Напиток витаминнный | WGR82: 200 | WGU82: 9.7 | WGV82: 39 | WGW82: 0.15 | WGX82: 10 | WHE82: 282.11 | WHF82: Напиток витаминнный | WHH82: 200 | WHK82: 9.7 | WHL82: 39 | WHM82: 0.15 | WHN82: 10 | WHU82: 282.11 | WHV82: Напиток витаминнный | WHX82: 200 | WIA82: 9.7 | WIB82: 39 | WIC82: 0.15 | WID82: 10 | WIK82: 282.11 | WIL82: Напиток витаминнный | WIN82: 200 | WIQ82: 9.7 | WIR82: 39 | WIS82: 0.15 | WIT82: 10 | WJA82: 282.11 | WJB82: Напиток витаминнный | WJD82: 200 | WJG82: 9.7 | WJH82: 39 | WJI82: 0.15 | WJJ82: 10 | WJQ82: 282.11 | WJR82: Напиток витаминнный | WJT82: 200 | WJW82: 9.7 | WJX82: 39 | WJY82: 0.15 | WJZ82: 10 | WKG82: 282.11 | WKH82: Напиток витаминнный | WKJ82: 200 | WKM82: 9.7 | WKN82: 39 | WKO82: 0.15 | WKP82: 10 | WKW82: 282.11 | WKX82: Напиток витаминнный | WKZ82: 200 | WLC82: 9.7 | WLD82: 39 | WLE82: 0.15 | WLF82: 10 | WLM82: 282.11 | WLN82: Напиток витаминнный | WLP82: 200 | WLS82: 9.7 | WLT82: 39 | WLU82: 0.15 | WLV82: 10 | WMC82: 282.11 | WMD82: Напиток витаминнный | WMF82: 200 | WMI82: 9.7 | WMJ82: 39 | WMK82: 0.15 | WML82: 10 | WMS82: 282.11 | WMT82: Напиток витаминнный | WMV82: 200 | WMY82: 9.7 | WMZ82: 39 | WNA82: 0.15 | WNB82: 10 | WNI82: 282.11 | WNJ82: Напиток витаминнный | WNL82: 200 | WNO82: 9.7 | WNP82: 39 | WNQ82: 0.15 | WNR82: 10 | WNY82: 282.11 | WNZ82: Напиток витаминнный | WOB82: 200 | WOE82: 9.7 | WOF82: 39 | WOG82: 0.15 | WOH82: 10 | WOO82: 282.11 | WOP82: Напиток витаминнный | WOR82: 200 | WOU82: 9.7 | WOV82: 39 | WOW82: 0.15 | WOX82: 10 | WPE82: 282.11 | WPF82: Напиток витаминнный | WPH82: 200 | WPK82: 9.7 | WPL82: 39 | WPM82: 0.15 | WPN82: 10 | WPU82: 282.11 | WPV82: Напиток витаминнный | WPX82: 200 | WQA82: 9.7 | WQB82: 39 | WQC82: 0.15 | WQD82: 10 | WQK82: 282.11 | WQL82: Напиток витаминнный | WQN82: 200 | WQQ82: 9.7 | WQR82: 39 | WQS82: 0.15 | WQT82: 10 | WRA82: 282.11 | WRB82: Напиток витаминнный | WRD82: 200 | WRG82: 9.7 | WRH82: 39 | WRI82: 0.15 | WRJ82: 10 | WRQ82: 282.11 | WRR82: Напиток витаминнный | WRT82: 200 | WRW82: 9.7 | WRX82: 39 | WRY82: 0.15 | WRZ82: 10 | WSG82: 282.11 | WSH82: Напиток витаминнный | WSJ82: 200 | WSM82: 9.7 | WSN82: 39 | WSO82: 0.15 | WSP82: 10 | WSW82: 282.11 | WSX82: Напиток витаминнный | WSZ82: 200 | WTC82: 9.7 | WTD82: 39 | WTE82: 0.15 | WTF82: 10 | WTM82: 282.11 | WTN82: Напиток витаминнный | WTP82: 200 | WTS82: 9.7 | WTT82: 39 | WTU82: 0.15 | WTV82: 10 | WUC82: 282.11 | WUD82: Напиток витаминнный | WUF82: 200 | WUI82: 9.7 | WUJ82: 39 | WUK82: 0.15 | WUL82: 10 | WUS82: 282.11 | WUT82: Напиток витаминнный | WUV82: 200 | WUY82: 9.7 | WUZ82: 39 | WVA82: 0.15 | WVB82: 10 | WVI82: 282.11 | WVJ82: Напиток витаминнный | WVL82: 200 | WVO82: 9.7 | WVP82: 39 | WVQ82: 0.15 | WVR82: 10 | WVY82: 282.11 | WVZ82: Напиток витаминнный | WWB82: 200 | WWE82: 9.7 | WWF82: 39 | WWG82: 0.15 | WWH82: 10 | WWO82: 282.11 | WWP82: Напиток витаминнный | WWR82: 200 | WWU82: 9.7 | WWV82: 39 | WWW82: 0.15 | WWX82: 10 | WXE82: 282.11 | WXF82: Напиток витаминнный | WXH82: 200 | WXK82: 9.7 | WXL82: 39 | WXM82: 0.15 | WXN82: 10 | WXU82: 282.11 | WXV82: Напиток витаминнный | WXX82: 200 | WYA82: 9.7 | WYB82: 39 | WYC82: 0.15 | WYD82: 10 | WYK82: 282.11 | WYL82: Напиток витаминнный | WYN82: 200 | WYQ82: 9.7 | WYR82: 39 | WYS82: 0.15 | WYT82: 10 | WZA82: 282.11 | WZB82: Напиток витаминнный | WZD82: 200 | WZG82: 9.7 | WZH82: 39 | WZI82: 0.15 | WZJ82: 10 | WZQ82: 282.11 | WZR82: Напиток витаминнный | WZT82: 200 | WZW82: 9.7 | WZX82: 39 | WZY82: 0.15 | WZZ82: 10 | XAG82: 282.11 | XAH82: Напиток витаминнный | XAJ82: 200 | XAM82: 9.7 | XAN82: 39 | XAO82: 0.15 | XAP82: 10 | XAW82: 282.11 | XAX82: Напиток витаминнный | XAZ82: 200 | XBC82: 9.7 | XBD82: 39 | XBE82: 0.15 | XBF82: 10 | XBM82: 282.11 | XBN82: Напиток витаминнный | XBP82: 200 | XBS82: 9.7 | XBT82: 39 | XBU82: 0.15 | XBV82: 10 | XCC82: 282.11 | XCD82: Напиток витаминнный | XCF82: 200 | XCI82: 9.7 | XCJ82: 39 | XCK82: 0.15 | XCL82: 10 | XCS82: 282.11 | XCT82: Напиток витаминнный | XCV82: 200 | XCY82: 9.7 | XCZ82: 39 | XDA82: 0.15 | XDB82: 10 | XDI82: 282.11 | XDJ82: Напиток витаминнный | XDL82: 200 | XDO82: 9.7 | XDP82: 39 | XDQ82: 0.15 | XDR82: 10 | XDY82: 282.11 | XDZ82: Напиток витаминнный | XEB82: 200 | XEE82: 9.7 | XEF82: 39 | XEG82: 0.15 | XEH82: 10 | XEO82: 282.11 | XEP82: Напиток витаминнный | XER82: 200 | XEU82: 9.7 | XEV82: 39 | XEW82: 0.15 | XEX82: 10
A83: 1,1 | B83: Хлеб пшеничный обогащенный витаминами для детского питания | D83: 30 | E83: 2,4 | F83: 0,3 | G83: 16,5 | H83: 78 | I83: 0,1 | L83: 0,45 | M83: 6 | N83: 19,5 | O83: 4,2 | P83: 0,75
A84: 1,2 | B84: Хлеб ржано-пшеничный для детского питания | D84: 30 | E84: 2.40 | F84: 0,3 | G84: 13,8 | H84: 66 | I84: 0.12 | L84: 0,51 | M84: 8,7 | N84: 39 | O84: 12,6 | P84: 0,9
A85: Итого за Завтрак суммарная масса порции: 560 | E85: =E80+E81+E82+E84+E83 -> 23.25 | F85: =F80+F81+F82+F84+F83 -> 19.50 | G85: 91.60 | H85: 571.00 | I85: 0.37 | J85: 109.40 | K85: 275.60 | L85: 4.74 | M85: 50.70 | N85: 261.55 | O85: 66.74 | P85: 6.69
A86: Обед | Q86: Обед | AG86: Обед | AW86: Обед | BM86: Обед | CC86: Обед | CS86: Обед | DI86: Обед | DY86: Обед | EO86: Обед | FE86: Обед | FU86: Обед | GK86: Обед | HA86: Обед | HQ86: Обед | IG86: Обед | IW86: Обед | JM86: Обед | KC86: Обед | KS86: Обед | LI86: Обед | LY86: Обед | MO86: Обед | NE86: Обед | NU86: Обед | OK86: Обед | PA86: Обед | PQ86: Обед | QG86: Обед | QW86: Обед | RM86: Обед | SC86: Обед | SS86: Обед | TI86: Обед | TY86: Обед | UO86: Обед | VE86: Обед | VU86: Обед | WK86: Обед | XA86: Обед | XQ86: Обед | YG86: Обед | YW86: Обед | ZM86: Обед | AAC86: Обед | AAS86: Обед | ABI86: Обед | ABY86: Обед | ACO86: Обед | ADE86: Обед | ADU86: Обед | AEK86: Обед | AFA86: Обед | AFQ86: Обед | AGG86: Обед | AGW86: Обед | AHM86: Обед | AIC86: Обед | AIS86: Обед | AJI86: Обед | AJY86: Обед | AKO86: Обед | ALE86: Обед | ALU86: Обед | AMK86: Обед | ANA86: Обед | ANQ86: Обед | AOG86: Обед | AOW86: Обед | APM86: Обед | AQC86: Обед | AQS86: Обед | ARI86: Обед | ARY86: Обед | ASO86: Обед | ATE86: Обед | ATU86: Обед | AUK86: Обед | AVA86: Обед | AVQ86: Обед | AWG86: Обед | AWW86: Обед | AXM86: Обед | AYC86: Обед | AYS86: Обед | AZI86: Обед | AZY86: Обед | BAO86: Обед | BBE86: Обед | BBU86: Обед | BCK86: Обед | BDA86: Обед | BDQ86: Обед | BEG86: Обед | BEW86: Обед | BFM86: Обед | BGC86: Обед | BGS86: Обед | BHI86: Обед | BHY86: Обед | BIO86: Обед | BJE86: Обед | BJU86: Обед | BKK86: Обед | BLA86: Обед | BLQ86: Обед | BMG86: Обед | BMW86: Обед | BNM86: Обед | BOC86: Обед | BOS86: Обед | BPI86: Обед | BPY86: Обед | BQO86: Обед | BRE86: Обед | BRU86: Обед | BSK86: Обед | BTA86: Обед | BTQ86: Обед | BUG86: Обед | BUW86: Обед | BVM86: Обед | BWC86: Обед | BWS86: Обед | BXI86: Обед | BXY86: Обед | BYO86: Обед | BZE86: Обед | BZU86: Обед | CAK86: Обед | CBA86: Обед | CBQ86: Обед | CCG86: Обед | CCW86: Обед | CDM86: Обед | CEC86: Обед | CES86: Обед | CFI86: Обед | CFY86: Обед | CGO86: Обед | CHE86: Обед | CHU86: Обед | CIK86: Обед | CJA86: Обед | CJQ86: Обед | CKG86: Обед | CKW86: Обед | CLM86: Обед | CMC86: Обед | CMS86: Обед | CNI86: Обед | CNY86: Обед | COO86: Обед | CPE86: Обед | CPU86: Обед | CQK86: Обед | CRA86: Обед | CRQ86: Обед | CSG86: Обед | CSW86: Обед | CTM86: Обед | CUC86: Обед | CUS86: Обед | CVI86: Обед | CVY86: Обед | CWO86: Обед | CXE86: Обед | CXU86: Обед | CYK86: Обед | CZA86: Обед | CZQ86: Обед | DAG86: Обед | DAW86: Обед | DBM86: Обед | DCC86: Обед | DCS86: Обед | DDI86: Обед | DDY86: Обед | DEO86: Обед | DFE86: Обед | DFU86: Обед | DGK86: Обед | DHA86: Обед | DHQ86: Обед | DIG86: Обед | DIW86: Обед | DJM86: Обед | DKC86: Обед | DKS86: Обед | DLI86: Обед | DLY86: Обед | DMO86: Обед | DNE86: Обед | DNU86: Обед | DOK86: Обед | DPA86: Обед | DPQ86: Обед | DQG86: Обед | DQW86: Обед | DRM86: Обед | DSC86: Обед | DSS86: Обед | DTI86: Обед | DTY86: Обед | DUO86: Обед | DVE86: Обед | DVU86: Обед | DWK86: Обед | DXA86: Обед | DXQ86: Обед | DYG86: Обед | DYW86: Обед | DZM86: Обед | EAC86: Обед | EAS86: Обед | EBI86: Обед | EBY86: Обед | ECO86: Обед | EDE86: Обед | EDU86: Обед | EEK86: Обед | EFA86: Обед | EFQ86: Обед | EGG86: Обед | EGW86: Обед | EHM86: Обед | EIC86: Обед | EIS86: Обед | EJI86: Обед | EJY86: Обед | EKO86: Обед | ELE86: Обед | ELU86: Обед | EMK86: Обед | ENA86: Обед | ENQ86: Обед | EOG86: Обед | EOW86: Обед | EPM86: Обед | EQC86: Обед | EQS86: Обед | ERI86: Обед | ERY86: Обед | ESO86: Обед | ETE86: Обед | ETU86: Обед | EUK86: Обед | EVA86: Обед | EVQ86: Обед | EWG86: Обед | EWW86: Обед | EXM86: Обед | EYC86: Обед | EYS86: Обед | EZI86: Обед | EZY86: Обед | FAO86: Обед | FBE86: Обед | FBU86: Обед | FCK86: Обед | FDA86: Обед | FDQ86: Обед | FEG86: Обед | FEW86: Обед | FFM86: Обед | FGC86: Обед | FGS86: Обед | FHI86: Обед | FHY86: Обед | FIO86: Обед | FJE86: Обед | FJU86: Обед | FKK86: Обед | FLA86: Обед | FLQ86: Обед | FMG86: Обед | FMW86: Обед | FNM86: Обед | FOC86: Обед | FOS86: Обед | FPI86: Обед | FPY86: Обед | FQO86: Обед | FRE86: Обед | FRU86: Обед | FSK86: Обед | FTA86: Обед | FTQ86: Обед | FUG86: Обед | FUW86: Обед | FVM86: Обед | FWC86: Обед | FWS86: Обед | FXI86: Обед | FXY86: Обед | FYO86: Обед | FZE86: Обед | FZU86: Обед | GAK86: Обед | GBA86: Обед | GBQ86: Обед | GCG86: Обед | GCW86: Обед | GDM86: Обед | GEC86: Обед | GES86: Обед | GFI86: Обед | GFY86: Обед | GGO86: Обед | GHE86: Обед | GHU86: Обед | GIK86: Обед | GJA86: Обед | GJQ86: Обед | GKG86: Обед | GKW86: Обед | GLM86: Обед | GMC86: Обед | GMS86: Обед | GNI86: Обед | GNY86: Обед | GOO86: Обед | GPE86: Обед | GPU86: Обед | GQK86: Обед | GRA86: Обед | GRQ86: Обед | GSG86: Обед | GSW86: Обед | GTM86: Обед | GUC86: Обед | GUS86: Обед | GVI86: Обед | GVY86: Обед | GWO86: Обед | GXE86: Обед | GXU86: Обед | GYK86: Обед | GZA86: Обед | GZQ86: Обед | HAG86: Обед | HAW86: Обед | HBM86: Обед | HCC86: Обед | HCS86: Обед | HDI86: Обед | HDY86: Обед | HEO86: Обед | HFE86: Обед | HFU86: Обед | HGK86: Обед | HHA86: Обед | HHQ86: Обед | HIG86: Обед | HIW86: Обед | HJM86: Обед | HKC86: Обед | HKS86: Обед | HLI86: Обед | HLY86: Обед | HMO86: Обед | HNE86: Обед | HNU86: Обед | HOK86: Обед | HPA86: Обед | HPQ86: Обед | HQG86: Обед | HQW86: Обед | HRM86: Обед | HSC86: Обед | HSS86: Обед | HTI86: Обед | HTY86: Обед | HUO86: Обед | HVE86: Обед | HVU86: Обед | HWK86: Обед | HXA86: Обед | HXQ86: Обед | HYG86: Обед | HYW86: Обед | HZM86: Обед | IAC86: Обед | IAS86: Обед | IBI86: Обед | IBY86: Обед | ICO86: Обед | IDE86: Обед | IDU86: Обед | IEK86: Обед | IFA86: Обед | IFQ86: Обед | IGG86: Обед | IGW86: Обед | IHM86: Обед | IIC86: Обед | IIS86: Обед | IJI86: Обед | IJY86: Обед | IKO86: Обед | ILE86: Обед | ILU86: Обед | IMK86: Обед | INA86: Обед | INQ86: Обед | IOG86: Обед | IOW86: Обед | IPM86: Обед | IQC86: Обед | IQS86: Обед | IRI86: Обед | IRY86: Обед | ISO86: Обед | ITE86: Обед | ITU86: Обед | IUK86: Обед | IVA86: Обед | IVQ86: Обед | IWG86: Обед | IWW86: Обед | IXM86: Обед | IYC86: Обед | IYS86: Обед | IZI86: Обед | IZY86: Обед | JAO86: Обед | JBE86: Обед | JBU86: Обед | JCK86: Обед | JDA86: Обед | JDQ86: Обед | JEG86: Обед | JEW86: Обед | JFM86: Обед | JGC86: Обед | JGS86: Обед | JHI86: Обед | JHY86: Обед | JIO86: Обед | JJE86: Обед | JJU86: Обед | JKK86: Обед | JLA86: Обед | JLQ86: Обед | JMG86: Обед | JMW86: Обед | JNM86: Обед | JOC86: Обед | JOS86: Обед | JPI86: Обед | JPY86: Обед | JQO86: Обед | JRE86: Обед | JRU86: Обед | JSK86: Обед | JTA86: Обед | JTQ86: Обед | JUG86: Обед | JUW86: Обед | JVM86: Обед | JWC86: Обед | JWS86: Обед | JXI86: Обед | JXY86: Обед | JYO86: Обед | JZE86: Обед | JZU86: Обед | KAK86: Обед | KBA86: Обед | KBQ86: Обед | KCG86: Обед | KCW86: Обед | KDM86: Обед | KEC86: Обед | KES86: Обед | KFI86: Обед | KFY86: Обед | KGO86: Обед | KHE86: Обед | KHU86: Обед | KIK86: Обед | KJA86: Обед | KJQ86: Обед | KKG86: Обед | KKW86: Обед | KLM86: Обед | KMC86: Обед | KMS86: Обед | KNI86: Обед | KNY86: Обед | KOO86: Обед | KPE86: Обед | KPU86: Обед | KQK86: Обед | KRA86: Обед | KRQ86: Обед | KSG86: Обед | KSW86: Обед | KTM86: Обед | KUC86: Обед | KUS86: Обед | KVI86: Обед | KVY86: Обед | KWO86: Обед | KXE86: Обед | KXU86: Обед | KYK86: Обед | KZA86: Обед | KZQ86: Обед | LAG86: Обед | LAW86: Обед | LBM86: Обед | LCC86: Обед | LCS86: Обед | LDI86: Обед | LDY86: Обед | LEO86: Обед | LFE86: Обед | LFU86: Обед | LGK86: Обед | LHA86: Обед | LHQ86: Обед | LIG86: Обед | LIW86: Обед | LJM86: Обед | LKC86: Обед | LKS86: Обед | LLI86: Обед | LLY86: Обед | LMO86: Обед | LNE86: Обед | LNU86: Обед | LOK86: Обед | LPA86: Обед | LPQ86: Обед | LQG86: Обед | LQW86: Обед | LRM86: Обед | LSC86: Обед | LSS86: Обед | LTI86: Обед | LTY86: Обед | LUO86: Обед | LVE86: Обед | LVU86: Обед | LWK86: Обед | LXA86: Обед | LXQ86: Обед | LYG86: Обед | LYW86: Обед | LZM86: Обед | MAC86: Обед | MAS86: Обед | MBI86: Обед | MBY86: Обед | MCO86: Обед | MDE86: Обед | MDU86: Обед | MEK86: Обед | MFA86: Обед | MFQ86: Обед | MGG86: Обед | MGW86: Обед | MHM86: Обед | MIC86: Обед | MIS86: Обед | MJI86: Обед | MJY86: Обед | MKO86: Обед | MLE86: Обед | MLU86: Обед | MMK86: Обед | MNA86: Обед | MNQ86: Обед | MOG86: Обед | MOW86: Обед | MPM86: Обед | MQC86: Обед | MQS86: Обед | MRI86: Обед | MRY86: Обед | MSO86: Обед | MTE86: Обед | MTU86: Обед | MUK86: Обед | MVA86: Обед | MVQ86: Обед | MWG86: Обед | MWW86: Обед | MXM86: Обед | MYC86: Обед | MYS86: Обед | MZI86: Обед | MZY86: Обед | NAO86: Обед | NBE86: Обед | NBU86: Обед | NCK86: Обед | NDA86: Обед | NDQ86: Обед | NEG86: Обед | NEW86: Обед | NFM86: Обед | NGC86: Обед | NGS86: Обед | NHI86: Обед | NHY86: Обед | NIO86: Обед | NJE86: Обед | NJU86: Обед | NKK86: Обед | NLA86: Обед | NLQ86: Обед | NMG86: Обед | NMW86: Обед | NNM86: Обед | NOC86: Обед | NOS86: Обед | NPI86: Обед | NPY86: Обед | NQO86: Обед | NRE86: Обед | NRU86: Обед | NSK86: Обед | NTA86: Обед | NTQ86: Обед | NUG86: Обед | NUW86: Обед | NVM86: Обед | NWC86: Обед | NWS86: Обед | NXI86: Обед | NXY86: Обед | NYO86: Обед | NZE86: Обед | NZU86: Обед | OAK86: Обед | OBA86: Обед | OBQ86: Обед | OCG86: Обед | OCW86: Обед | ODM86: Обед | OEC86: Обед | OES86: Обед | OFI86: Обед | OFY86: Обед | OGO86: Обед | OHE86: Обед | OHU86: Обед | OIK86: Обед | OJA86: Обед | OJQ86: Обед | OKG86: Обед | OKW86: Обед | OLM86: Обед | OMC86: Обед | OMS86: Обед | ONI86: Обед | ONY86: Обед | OOO86: Обед | OPE86: Обед | OPU86: Обед | OQK86: Обед | ORA86: Обед | ORQ86: Обед | OSG86: Обед | OSW86: Обед | OTM86: Обед | OUC86: Обед | OUS86: Обед | OVI86: Обед | OVY86: Обед | OWO86: Обед | OXE86: Обед | OXU86: Обед | OYK86: Обед | OZA86: Обед | OZQ86: Обед | PAG86: Обед | PAW86: Обед | PBM86: Обед | PCC86: Обед | PCS86: Обед | PDI86: Обед | PDY86: Обед | PEO86: Обед | PFE86: Обед | PFU86: Обед | PGK86: Обед | PHA86: Обед | PHQ86: Обед | PIG86: Обед | PIW86: Обед | PJM86: Обед | PKC86: Обед | PKS86: Обед | PLI86: Обед | PLY86: Обед | PMO86: Обед | PNE86: Обед | PNU86: Обед | POK86: Обед | PPA86: Обед | PPQ86: Обед | PQG86: Обед | PQW86: Обед | PRM86: Обед | PSC86: Обед | PSS86: Обед | PTI86: Обед | PTY86: Обед | PUO86: Обед | PVE86: Обед | PVU86: Обед | PWK86: Обед | PXA86: Обед | PXQ86: Обед | PYG86: Обед | PYW86: Обед | PZM86: Обед | QAC86: Обед | QAS86: Обед | QBI86: Обед | QBY86: Обед | QCO86: Обед | QDE86: Обед | QDU86: Обед | QEK86: Обед | QFA86: Обед | QFQ86: Обед | QGG86: Обед | QGW86: Обед | QHM86: Обед | QIC86: Обед | QIS86: Обед | QJI86: Обед | QJY86: Обед | QKO86: Обед | QLE86: Обед | QLU86: Обед | QMK86: Обед | QNA86: Обед | QNQ86: Обед | QOG86: Обед | QOW86: Обед | QPM86: Обед | QQC86: Обед | QQS86: Обед | QRI86: Обед | QRY86: Обед | QSO86: Обед | QTE86: Обед | QTU86: Обед | QUK86: Обед | QVA86: Обед | QVQ86: Обед | QWG86: Обед | QWW86: Обед | QXM86: Обед | QYC86: Обед | QYS86: Обед | QZI86: Обед | QZY86: Обед | RAO86: Обед | RBE86: Обед | RBU86: Обед | RCK86: Обед | RDA86: Обед | RDQ86: Обед | REG86: Обед | REW86: Обед | RFM86: Обед | RGC86: Обед | RGS86: Обед | RHI86: Обед | RHY86: Обед | RIO86: Обед | RJE86: Обед | RJU86: Обед | RKK86: Обед | RLA86: Обед | RLQ86: Обед | RMG86: Обед | RMW86: Обед | RNM86: Обед | ROC86: Обед | ROS86: Обед | RPI86: Обед | RPY86: Обед | RQO86: Обед | RRE86: Обед | RRU86: Обед | RSK86: Обед | RTA86: Обед | RTQ86: Обед | RUG86: Обед | RUW86: Обед | RVM86: Обед | RWC86: Обед | RWS86: Обед | RXI86: Обед | RXY86: Обед | RYO86: Обед | RZE86: Обед | RZU86: Обед | SAK86: Обед | SBA86: Обед | SBQ86: Обед | SCG86: Обед | SCW86: Обед | SDM86: Обед | SEC86: Обед | SES86: Обед | SFI86: Обед | SFY86: Обед | SGO86: Обед | SHE86: Обед | SHU86: Обед | SIK86: Обед | SJA86: Обед | SJQ86: Обед | SKG86: Обед | SKW86: Обед | SLM86: Обед | SMC86: Обед | SMS86: Обед | SNI86: Обед | SNY86: Обед | SOO86: Обед | SPE86: Обед | SPU86: Обед | SQK86: Обед | SRA86: Обед | SRQ86: Обед | SSG86: Обед | SSW86: Обед | STM86: Обед | SUC86: Обед | SUS86: Обед | SVI86: Обед | SVY86: Обед | SWO86: Обед | SXE86: Обед | SXU86: Обед | SYK86: Обед | SZA86: Обед | SZQ86: Обед | TAG86: Обед | TAW86: Обед | TBM86: Обед | TCC86: Обед | TCS86: Обед | TDI86: Обед | TDY86: Обед | TEO86: Обед | TFE86: Обед | TFU86: Обед | TGK86: Обед | THA86: Обед | THQ86: Обед | TIG86: Обед | TIW86: Обед | TJM86: Обед | TKC86: Обед | TKS86: Обед | TLI86: Обед | TLY86: Обед | TMO86: Обед | TNE86: Обед | TNU86: Обед | TOK86: Обед | TPA86: Обед | TPQ86: Обед | TQG86: Обед | TQW86: Обед | TRM86: Обед | TSC86: Обед | TSS86: Обед | TTI86: Обед | TTY86: Обед | TUO86: Обед | TVE86: Обед | TVU86: Обед | TWK86: Обед | TXA86: Обед | TXQ86: Обед | TYG86: Обед | TYW86: Обед | TZM86: Обед | UAC86: Обед | UAS86: Обед | UBI86: Обед | UBY86: Обед | UCO86: Обед | UDE86: Обед | UDU86: Обед | UEK86: Обед | UFA86: Обед | UFQ86: Обед | UGG86: Обед | UGW86: Обед | UHM86: Обед | UIC86: Обед | UIS86: Обед | UJI86: Обед | UJY86: Обед | UKO86: Обед | ULE86: Обед | ULU86: Обед | UMK86: Обед | UNA86: Обед | UNQ86: Обед | UOG86: Обед | UOW86: Обед | UPM86: Обед | UQC86: Обед | UQS86: Обед | URI86: Обед | URY86: Обед | USO86: Обед | UTE86: Обед | UTU86: Обед | UUK86: Обед | UVA86: Обед | UVQ86: Обед | UWG86: Обед | UWW86: Обед | UXM86: Обед | UYC86: Обед | UYS86: Обед | UZI86: Обед | UZY86: Обед | VAO86: Обед | VBE86: Обед | VBU86: Обед | VCK86: Обед | VDA86: Обед | VDQ86: Обед | VEG86: Обед | VEW86: Обед | VFM86: Обед | VGC86: Обед | VGS86: Обед | VHI86: Обед | VHY86: Обед | VIO86: Обед | VJE86: Обед | VJU86: Обед | VKK86: Обед | VLA86: Обед | VLQ86: Обед | VMG86: Обед | VMW86: Обед | VNM86: Обед | VOC86: Обед | VOS86: Обед | VPI86: Обед | VPY86: Обед | VQO86: Обед | VRE86: Обед | VRU86: Обед | VSK86: Обед | VTA86: Обед | VTQ86: Обед | VUG86: Обед | VUW86: Обед | VVM86: Обед | VWC86: Обед | VWS86: Обед | VXI86: Обед | VXY86: Обед | VYO86: Обед | VZE86: Обед | VZU86: Обед | WAK86: Обед | WBA86: Обед | WBQ86: Обед | WCG86: Обед | WCW86: Обед | WDM86: Обед | WEC86: Обед | WES86: Обед | WFI86: Обед | WFY86: Обед | WGO86: Обед | WHE86: Обед | WHU86: Обед | WIK86: Обед | WJA86: Обед | WJQ86: Обед | WKG86: Обед | WKW86: Обед | WLM86: Обед | WMC86: Обед | WMS86: Обед | WNI86: Обед | WNY86: Обед | WOO86: Обед | WPE86: Обед | WPU86: Обед | WQK86: Обед | WRA86: Обед | WRQ86: Обед | WSG86: Обед | WSW86: Обед | WTM86: Обед | WUC86: Обед | WUS86: Обед | WVI86: Обед | WVY86: Обед | WWO86: Обед | WXE86: Обед | WXU86: Обед | WYK86: Обед | WZA86: Обед | WZQ86: Обед | XAG86: Обед | XAW86: Обед | XBM86: Обед | XCC86: Обед | XCS86: Обед | XDI86: Обед | XDY86: Обед | XEO86: Обед
A87: 25.27 | B87: Салат из свеклы с растительным маслом | D87: 100 | E87: 1.87 | F87: 8.42 | G87: 10.97 | H87: 126.99 | I87: 0.02 | J87: 12.47 | K87: 2.49 | L87: 3.78 | M87: 49.82 | N87: 53.79 | O87: 27.65 | P87: 1.77
A88: 53.05 | B88: Щи из свежей капусты со сметаной | D88: 250/10 | E88: 1.7 | F88: 5.6 | G88: 8.4 | H88: 91 | I88: 0.05 | J88: 24.04 | K88: 172.62 | L88: 1.55 | M88: 37.98 | N88: 41.52 | O88: 17.16 | P88: 0.62
A89: 38\83 | B89: Пельмени отварные | D89: 200 | E89: 20 | F89: 20 | G89: 38.2 | H89: 399 | M89: 36 | N89: 85 | O89: 1
A90: 294.01 | B90: Компот из свежих плодов | D90: 200 | E90: 0.16 | F90: 0.16 | G90: 18.89 | H90: 68 | I90: 0.01 | J90: 4 | K90: 2 | L90: 0.08 | M90: 6.85 | N90: 4.4 | O90: 3.6 | P90: 0.93
A91: 420.02 | B91: Хлеб пшеничный обогащенный витаминами для детского питания | D91: 40 | E91: 3.2 | F91: 0.4 | G91: 22 | H91: 104 | I91: 0.14 | L91: 0.6 | M91: 8 | N91: 26 | O91: 5.6 | P91: 1
A92: 1,2 | B92: Хлеб ржано-пшеничный для детского питания | D92: 30 | E92: 2.40 | F92: 0,3 | G92: 13,8 | H92: 66 | I92: 0.12 | L92: 0,51 | M92: 8,7 | N92: 39 | O92: 12,6 | P92: 0,9
A93: Итого за Обед суммарная масса порции: 830 | E93: =E88+E89+E90+E91+E92+E87 -> 29.33 | F93: =F88+F89+F90+F91+F92+F87 -> 34.88 | G93: 112.26 | H93: 854.99 | I93: 0.34 | J93: 40.51 | K93: 177.11 | L93: 6.52 | M93: 147.35 | N93: 249.71 | O93: 67.61 | P93: 5.22
A94: Итого за день | E94: =E85+E93 -> 52.58 | F94: =F85+F93 -> 54.38 | G94: 203.86 | H94: 1425.99 | I94: 0.71 | J94: 149.91 | K94: 452.71 | L94: 11.26 | M94: 198.05 | N94: 511.26 | O94: 134.35 | P94: 11.91
A106: Основное (организованное меню) и пищевая ценность приготовляемых блюд для обучающихся 12 лет и старше (лист 5)
A107: Рацион: ШК 11-18 лет | B107: 12 лет и старше | E107: День: | F107: пятница
D108: Неделя: | F108: 1 | I108: Возраст: | K108: 12 лет и старше
A109: № рец. | B109: Прием пищи, наименование блюда | D109: Масса порции | E109: Пищевые вещества (г) | H109: Энерге- тическая ценность (ккал) | I109: Витамины (мг) | M109: Минеральные вещества (мг)
E110: Б | F110: Ж | G110: У | I110: B1 | J110: C | K110: A | L110: E | M110: Ca | N110: P | O110: Mg | P110: Fe
A111: 1 | B111: 2 | D111: 3 | E111: 4 | F111: 5 | G111: 6 | H111: 7 | I111: 8 | J111: 9 | K111: 10 | L111: 11 | M111: 12 | N111: 13 | O111: 14 | P111: 15
A112: Завтрак
A113: 195/1 | B113: Каша пшеничная молочная жидкая | D113: 250/7 | E113: 9.1 | F113: 10.1 | G113: 44.66 | H113: 296 | I113: 0.17 | J113: 0.64 | K113: 75.9 | L113: 0.24 | M113: 163.75 | N113: 57.7 | O113: 44.35 | P113: 0.96
A114: 283 | B114: Чай с сахаром | D114: 200 | G114: 9,98 | H114: 39,9 | M114: 0,3 | P114: 0,03
A115: 38 | B115: Яблоко | D115: 100 | E115: 0.4 | F115: 0.4 | G115: 9.8 | H115: 47 | I115: 0.03 | J115: 10 | L115: 0.2 | M115: 16 | N115: 11 | O115: 9 | P115: 2.2
